Capital or Revenue,Directorate,Transaction Number,Date,Service Area,Expenses Type,Amount,Supplier Name
Revenue,Community Wellbeing & Social Care,5105641130,11.12.2013,Drug Misuse - Adults,Charges from Independent Providers,120.00,REDACTED PERSONAL DATA
Revenue,Community Wellbeing & Social Care,5105643884,24.12.2013,Leaseholds by LA,Accommodation Costs - Leaseholder Payments,695.89,REDACTED PERSONAL DATA
Revenue,Community Wellbeing & Social Care,5105643884,24.12.2013,Leaseholds by LA,Accommodation Costs - Leaseholder Payments,695.89,REDACTED PERSONAL DATA
Revenue,Community Wellbeing & Social Care,5105643884,24.12.2013,Leaseholds by LA,Accommodation Costs - Leaseholder Payments,695.89,REDACTED PERSONAL DATA
Revenue,Community Wellbeing & Social Care,5105643884,24.12.2013,Leaseholds by LA,Accommodation Costs - Leaseholder Payments,695.89,REDACTED PERSONAL DATA
Revenue,Community Wellbeing & Social Care,5105643884,24.12.2013,Leaseholds by LA,Accommodation Costs - Leaseholder Payments,695.89,REDACTED PERSONAL DATA
Revenue,Childrens Services,5105643507,20.12.2013,Learning & Achievement Commissioned Activity,Bought in Professional Services - Curriculum (Schools),35.00,REDACTED PERSONAL DATA
Revenue,Childrens Services,5105644094,24.12.2013,Duty and Assessment 2,Professional Services,206.70,REDACTED PERSONAL DATA
Revenue,Childrens Services,5105644124,24.12.2013,Duty and Assessment 2,Professional Services,240.40,REDACTED PERSONAL DATA
Revenue,Economy & Environment,5105641126,11.12.2013,LSTF Grant,Professional Services,300.00,REDACTED PERSONAL DATA
Revenue,Childrens Services,5105643085,20.12.2013,Independ. & Non-Maint. Special Schls & Independ. Specialist Provision,Charges from Independent Providers,390.00,REDACTED PERSONAL DATA
Capital,Resources,5105643500,24.12.2013,Capital Receipts,Property Services - Day to day maintenance,30.00,REDACTED PERSONAL DATA
Capital,Resources,5105643500,24.12.2013,Capital Receipts,Property Services - Day to day maintenance,100.00,REDACTED PERSONAL DATA
Capital,Resources,5105643500,24.12.2013,Capital Receipts,Property Services - Day to day maintenance,100.00,REDACTED PERSONAL DATA
Capital,Resources,5105637961,11.12.2013,Capital Receipts,Capital Contractor Payments,100.00,REDACTED PERSONAL DATA
Capital,Resources,5105637961,11.12.2013,Capital Receipts,Capital Contractor Payments,80.00,REDACTED PERSONAL DATA
Capital,Resources,5105637961,11.12.2013,Capital Receipts,Capital Contractor Payments,750.00,REDACTED PERSONAL DATA
Capital,Resources,5105637961,11.12.2013,Capital Receipts,Capital Contractor Payments,300.00,REDACTED PERSONAL DATA
Capital,Resources,5105637961,11.12.2013,Capital Receipts,Capital Contractor Payments,100.00,REDACTED PERSONAL DATA
Capital,Resources,5105637961,11.12.2013,Capital Receipts,Capital Contractor Payments,100.00,REDACTED PERSONAL DATA
Capital,Resources,5105637961,11.12.2013,Capital Receipts,Capital Contractor Payments,100.00,REDACTED PERSONAL DATA
Capital,Resources,5105637961,11.12.2013,Capital Receipts,Capital Contractor Payments,100.00,REDACTED PERSONAL DATA
Capital,Resources,5105637961,11.12.2013,Capital Receipts,Capital Contractor Payments,100.00,REDACTED PERSONAL DATA
Capital,Resources,5105637961,11.12.2013,Capital Receipts,Capital Contractor Payments,100.00,REDACTED PERSONAL DATA
Capital,Resources,5105637961,11.12.2013,Capital Receipts,Capital Contractor Payments,100.00,REDACTED PERSONAL DATA
Capital,Resources,5105637961,11.12.2013,Capital Receipts,Capital Contractor Payments,90.00,REDACTED PERSONAL DATA
Capital,Resources,5105643500,24.12.2013,Capital Receipts,Capital Contractor Payments,300.00,REDACTED PERSONAL DATA
Capital,Resources,5105643500,24.12.2013,Capital Receipts,Capital Contractor Payments,100.00,REDACTED PERSONAL DATA
Capital,Resources,5105643500,24.12.2013,Capital Receipts,Capital Contractor Payments,100.00,REDACTED PERSONAL DATA
Capital,Resources,5105643500,24.12.2013,Capital Receipts,Capital Contractor Payments,100.00,REDACTED PERSONAL DATA
Revenue,Economy & Environment,5105642720,18.12.2013,Old Cowes Enterprise College,Security of Buildings,600.00,REDACTED PERSONAL DATA
Revenue,Economy & Environment,5105642720,18.12.2013,Old Cowes Enterprise College,Security of Buildings,25.00,REDACTED PERSONAL DATA
Revenue,Economy & Environment,5105642720,18.12.2013,Old Cowes Enterprise College,Security of Buildings,50.00,REDACTED PERSONAL DATA
Revenue,Economy & Environment,5105642720,18.12.2013,Old Cowes Enterprise College,Security of Buildings,300.00,REDACTED PERSONAL DATA
Revenue,Economy & Environment,5105642720,18.12.2013,Old Cowes Enterprise College,Security of Buildings,150.00,REDACTED PERSONAL DATA
Revenue,Economy & Environment,5105642720,18.12.2013,Old Cowes Enterprise College,Security of Buildings,120.00,REDACTED PERSONAL DATA
Revenue,Economy & Environment,5105642720,18.12.2013,Old Cowes Enterprise College,Security of Buildings,120.00,REDACTED PERSONAL DATA
Revenue,Economy & Environment,5105642720,18.12.2013,Love Lane Primary School,Security of Buildings,300.00,REDACTED PERSONAL DATA
Revenue,Economy & Environment,5105642720,18.12.2013,The Bay Primary School Disposal,Minor Works,200.00,REDACTED PERSONAL DATA
Revenue,Childrens Services,5105642226,18.12.2013,Short Breaks,Payment to Private Contractors,40.00,REDACTED PERSONAL DATA
Revenue,Childrens Services,5105641985,13.12.2013,Short Breaks,Payment to Private Contractors,40.00,REDACTED PERSONAL DATA
Revenue,Community Wellbeing & Social Care,5105640093,04.12.2013,Arts Projects,Office Equipment,315.00,REDACTED PERSONAL DATA
Revenue,Community Wellbeing & Social Care,5105640093,04.12.2013,Arts Projects,Professional Services,40.00,REDACTED PERSONAL DATA
Revenue,Community Wellbeing & Social Care,5105641138,11.12.2013,Drug Misuse - Adults,Charges from Independent Providers,120.00,REDACTED PERSONAL DATA
Revenue,Community Wellbeing & Social Care,5105640581,06.12.2013,Shared Lives Scheme,Charges from Independent Providers,632.40,REDACTED PERSONAL DATA
Revenue,Community Wellbeing & Social Care,5105642412,18.12.2013,Shared Lives Scheme,Charges from Independent Providers,632.40,REDACTED PERSONAL DATA
Revenue,Community Wellbeing & Social Care,5105641071,11.12.2013,Governors  Support,Training,200.00,REDACTED PERSONAL DATA
Revenue,Childrens Services,5105640628,06.12.2013,Short Breaks,Payment to Private Contractors,80.00,REDACTED PERSONAL DATA
Revenue,Economy & Environment,5105642197,13.12.2013,Dog Service,Professional Services,40.00,*ISLANDWIDE WINDSCREENS
Revenue,Economy & Environment,5105642436,18.12.2013,A.O.N.B.,Consultants Fees,"2,500.00",REDACTED PERSONAL DATA
Revenue,Community Wellbeing & Social Care,5105640084,04.12.2013,Arts Projects,Professional Services,505.00,REDACTED PERSONAL DATA
Revenue,Community Wellbeing & Social Care,5105640084,04.12.2013,Arts Projects,Professional Services,30.00,REDACTED PERSONAL DATA
Revenue,Resources,5105642431,18.12.2013,ICT Contracts,Computer Maintenance,200.00,REDACTED PERSONAL DATA
Revenue,Community Wellbeing & Social Care,5105641101,11.12.2013,Workforce Development - Early Years,Training,500.00,REDACTED PERSONAL DATA
Revenue,Community Wellbeing & Social Care,5105641101,11.12.2013,Workforce Development - Early Years,Training,500.00,REDACTED PERSONAL DATA
Revenue,Community Wellbeing & Social Care,5105641101,11.12.2013,Workforce Development Schools,Training,500.00,REDACTED PERSONAL DATA
Revenue,Economy & Environment,5105643413,20.12.2013,Waste Contract Management,Training,331.00,REDACTED PERSONAL DATA
Revenue,Community Wellbeing & Social Care,5105640144,18.12.2013,Workforce Development - Early Years,Training,896.40,REDACTED PERSONAL DATA
Revenue,Childrens Services,5105641465,11.12.2013,Thompson House Tuition Centre (PRU),Client Expenses,400.00,*LUCY MUNDY T/A ISLAND EQUUS +
Revenue,Childrens Services,5105640694,06.12.2013,Clatterford Pupil Referral Unit (PRU),Professional Services,"1,920.00",*LUCY MUNDY T/A ISLAND EQUUS +
Revenue,Childrens Services,5105631476,18.12.2013,Support for Looked After Children,Support Children,130.00,*LUCY MUNDY T/A ISLAND EQUUS +
Revenue,Childrens Services,5105641147,11.12.2013,Support for Looked After Children,Support Children,300.00,*LUCY MUNDY T/A ISLAND EQUUS +
Revenue,Childrens Services,5105641147,11.12.2013,Support for Looked After Children,Support Children,375.00,*LUCY MUNDY T/A ISLAND EQUUS +
Revenue,Childrens Services,5105641147,11.12.2013,Support for Looked After Children,Support Children,300.00,*LUCY MUNDY T/A ISLAND EQUUS +
Revenue,Childrens Services,5105641147,11.12.2013,Support for Looked After Children,Support Children,150.00,*LUCY MUNDY T/A ISLAND EQUUS +
Revenue,Childrens Services,5105641147,11.12.2013,Support for Looked After Children,Support Children,150.00,*LUCY MUNDY T/A ISLAND EQUUS +
Revenue,Childrens Services,5105641147,11.12.2013,Support for Looked After Children,Support Children,225.00,*LUCY MUNDY T/A ISLAND EQUUS +
Revenue,Community Wellbeing & Social Care,5105641882,13.12.2013,Hub Coordinators,Training,498.33,REDACTED PERSONAL DATA
Revenue,Childrens Services,5105641940,13.12.2013,Adult Social Care - Workforce Development,Training,900.00,REDACTED PERSONAL DATA
Revenue,Childrens Services,5105642583,18.12.2013,Education Participation Team,Cleaning Contracts,8.00,REDACTED PERSONAL DATA
Revenue,Economy & Environment,5105644010,24.12.2013,A.O.N.B. Projects,Consultants Fees,920.00,REDACTED PERSONAL DATA
Revenue,Childrens Services,5105638590,06.12.2013,LSCB (Local Safeguarding Childrens Brd),Travel Expenses,210.00,*ONE HOLYROOD
Revenue,Community Wellbeing & Social Care,5105641925,13.12.2013,Workforce Development - Early Years,Training,902.70,REDACTED PERSONAL DATA
Revenue,Childrens Services,5105642550,18.12.2013,Clatterford Pupil Referral Unit (PRU),Professional Services,180.00,*P MARTIN T/A HAVEN FALCONRY
Revenue,Economy & Environment,5105642976,18.12.2013,Diversity & Workforce,Training,"1,200.00",*R BARNARD CONSULTING
Revenue,Community Wellbeing & Social Care,5105643496,20.12.2013,Drug Misuse - Adults,Payment to Private Contractors,120.00,REDACTED PERSONAL DATA
Revenue,Community Wellbeing & Social Care,5105644138,24.12.2013,Workforce Development Schools,Training,600.00,REDACTED PERSONAL DATA
Revenue,Childrens Services,5105641064,13.12.2013,Moderation,Bought in Professional Services - Curriculum (Schools),35.00,REDACTED PERSONAL DATA
Revenue,Community Wellbeing & Social Care,5105642697,18.12.2013,Workforce Development Schools,Training,519.50,REDACTED PERSONAL DATA
Revenue,Community Wellbeing & Social Care,5105640102,04.12.2013,Workforce Development Schools,Training,369.50,REDACTED PERSONAL DATA
Revenue,Community Wellbeing & Social Care,5105643837,24.12.2013,Drug Misuse - Adults,Payment to Private Contractors,120.00,REDACTED PERSONAL DATA
Revenue,Childrens Services,5105642582,18.12.2013,Clatterford Pupil Referral Unit (PRU),Professional Services,200.00,REDACTED PERSONAL DATA
Revenue,Childrens Services,5105642582,18.12.2013,Clatterford Pupil Referral Unit (PRU),Professional Services,200.00,REDACTED PERSONAL DATA
Revenue,Childrens Services,5105644121,24.12.2013,S17 Disabled Children,Transport of Clients,118.80,24-7 TAXIS
Revenue,Community Wellbeing & Social Care,5105643904,24.12.2013,Leaseholds by LA,Accommodation Costs - Leaseholder Payments,866.67,2K PROPERTY
Revenue,Community Wellbeing & Social Care,5105640682,06.12.2013,Adelaide Resource Centre,Catering Purchases,416.09,3663 (BFS GROUP LTD)
Revenue,Community Wellbeing & Social Care,5105640667,06.12.2013,Adelaide Resource Centre,Catering Purchases,11.94,3663 (BFS GROUP LTD)
Revenue,Community Wellbeing & Social Care,5105640665,06.12.2013,Adelaide Resource Centre,Catering Purchases,106.78,3663 (BFS GROUP LTD)
Revenue,Community Wellbeing & Social Care,5105640669,06.12.2013,Adelaide Resource Centre,Catering Purchases,185.16,3663 (BFS GROUP LTD)
Revenue,Community Wellbeing & Social Care,5105640665,06.12.2013,Adelaide Resource Centre,Catering Purchases,4.84,3663 (BFS GROUP LTD)
Revenue,Community Wellbeing & Social Care,5105640667,06.12.2013,Adelaide Resource Centre,Catering Purchases,7.26,3663 (BFS GROUP LTD)
Revenue,Community Wellbeing & Social Care,5105640682,06.12.2013,Adelaide Resource Centre,Catering Purchases,38.53,3663 (BFS GROUP LTD)
Revenue,Community Wellbeing & Social Care,5105643407,20.12.2013,Adelaide Resource Centre,Catering Purchases,-21.54,3663 (BFS GROUP LTD)
Revenue,Community Wellbeing & Social Care,5105643514,20.12.2013,Adelaide Resource Centre,Catering Purchases,463.98,3663 (BFS GROUP LTD)
Revenue,Community Wellbeing & Social Care,5105643515,20.12.2013,Adelaide Resource Centre,Catering Purchases,189.15,3663 (BFS GROUP LTD)
Revenue,Community Wellbeing & Social Care,5105643515,20.12.2013,Adelaide Resource Centre,Catering Purchases,4.84,3663 (BFS GROUP LTD)
Revenue,Community Wellbeing & Social Care,5105642675,18.12.2013,Adelaide Resource Centre,Catering Purchases,113.27,3663 (BFS GROUP LTD)
Revenue,Community Wellbeing & Social Care,5105642674,18.12.2013,Adelaide Resource Centre,Catering Purchases,281.81,3663 (BFS GROUP LTD)
Revenue,Community Wellbeing & Social Care,5105642674,18.12.2013,Adelaide Resource Centre,Catering Purchases,24.00,3663 (BFS GROUP LTD)
Revenue,Community Wellbeing & Social Care,5105642675,18.12.2013,Adelaide Resource Centre,Catering Purchases,4.84,3663 (BFS GROUP LTD)
Revenue,Community Wellbeing & Social Care,5105641124,11.12.2013,Adelaide Resource Centre,Catering Purchases,153.37,3663 (BFS GROUP LTD)
Revenue,Community Wellbeing & Social Care,5105641125,20.12.2013,Adelaide Resource Centre,Catering Purchases,58.64,3663 (BFS GROUP LTD)
Revenue,Community Wellbeing & Social Care,5105641125,20.12.2013,Adelaide Resource Centre,Catering Purchases,16.99,3663 (BFS GROUP LTD)
Revenue,Community Wellbeing & Social Care,5105641124,11.12.2013,Adelaide Resource Centre,Catering Purchases,0.01,3663 (BFS GROUP LTD)
Revenue,Community Wellbeing & Social Care,5105640822,06.12.2013,Adelaide Resource Centre,Catering Purchases,-17.50,3663 (BFS GROUP LTD)
Revenue,Community Wellbeing & Social Care,5105640821,06.12.2013,Adelaide Resource Centre,Catering Purchases,152.51,3663 (BFS GROUP LTD)
Revenue,Community Wellbeing & Social Care,5105640821,06.12.2013,Adelaide Resource Centre,Catering Purchases,12.59,3663 (BFS GROUP LTD)
Revenue,Community Wellbeing & Social Care,5105643512,20.12.2013,Gouldings Resource Centre,Catering Purchases,488.96,3663 (BFS GROUP LTD)
Revenue,Community Wellbeing & Social Care,5105643512,20.12.2013,Gouldings Resource Centre,Catering Purchases,32.13,3663 (BFS GROUP LTD)
Revenue,Community Wellbeing & Social Care,5105641494,11.12.2013,Gouldings Resource Centre,Catering Purchases,171.03,3663 (BFS GROUP LTD)
Revenue,Community Wellbeing & Social Care,5105641494,11.12.2013,Gouldings Resource Centre,Catering Purchases,9.95,3663 (BFS GROUP LTD)
Revenue,Community Wellbeing & Social Care,5105640253,04.12.2013,Gouldings Resource Centre,Catering Purchases,300.07,3663 (BFS GROUP LTD)
Revenue,Community Wellbeing & Social Care,5105640253,04.12.2013,Gouldings Resource Centre,Catering Purchases,32.52,3663 (BFS GROUP LTD)
Revenue,Community Wellbeing & Social Care,5105642543,18.12.2013,Westminster House,Catering Purchases,191.77,3663 (BFS GROUP LTD)
Revenue,Community Wellbeing & Social Care,5105642544,18.12.2013,Westminster House,Catering Purchases,81.99,3663 (BFS GROUP LTD)
Revenue,Community Wellbeing & Social Care,5105642545,18.12.2013,Westminster House,Catering Purchases,75.67,3663 (BFS GROUP LTD)
Revenue,Community Wellbeing & Social Care,5105640272,04.12.2013,Westminster House,Catering Purchases,49.17,3663 (BFS GROUP LTD)
Revenue,Community Wellbeing & Social Care,5105640271,04.12.2013,Westminster House,Catering Purchases,45.01,3663 (BFS GROUP LTD)
Revenue,Community Wellbeing & Social Care,5105640154,18.12.2013,Westminster House,Catering Purchases,112.26,3663 (BFS GROUP LTD)
Revenue,Economy & Environment,5105642170,13.12.2013,Ryde Sports Centre,Catering Purchases,118.67,3663 (BFS GROUP LTD)
Revenue,Economy & Environment,5105640210,04.12.2013,Ryde Sports Centre,Catering Purchases,111.43,3663 (BFS GROUP LTD)
Revenue,Economy & Environment,5105642934,18.12.2013,Fairway Sports Complex,Operational Equipment,154.39,3663 (BFS GROUP LTD)
Revenue,Economy & Environment,5105644139,24.12.2013,The Heights,Stock Purchases,186.27,3663 (BFS GROUP LTD)
Revenue,Economy & Environment,5105644139,24.12.2013,The Heights,Stock Purchases,56.36,3663 (BFS GROUP LTD)
Revenue,Economy & Environment,5105640019,04.12.2013,Westridge Squash Courts,Operational Equipment,61.17,3663 (BFS GROUP LTD)
Revenue,Economy & Environment,5105642670,18.12.2013,Westridge Squash Courts,Operational Equipment,131.76,3663 (BFS GROUP LTD)
Revenue,Childrens Services,5105640582,06.12.2013,North & East Provision,Catering Purchases,10.24,3663 (BFS GROUP LTD)
Revenue,Childrens Services,5105640582,06.12.2013,North & East Provision,Catering Purchases,203.69,3663 (BFS GROUP LTD)
Revenue,Childrens Services,5105640584,06.12.2013,North & East Provision,Catering Purchases,224.12,3663 (BFS GROUP LTD)
Revenue,Childrens Services,5400001764,24.12.2013,Central & West Provision,Catering Equipment,960.13,3663 (BFS GROUP LTD)
Revenue,Childrens Services,5105640625,06.12.2013,South Provision,Catering Purchases,190.95,3663 (BFS GROUP LTD)
Revenue,Economy & Environment,5105642169,13.12.2013,Medina Vending Machine Stock,Order Settlement,240.39,3663 (BFS GROUP LTD)
Revenue,Economy & Environment,5105644114,24.12.2013,Medina Vending Machine Stock,Order Settlement,339.14,3663 (BFS GROUP LTD)
Revenue,Economy & Environment,5105643516,20.12.2013,Medina Vending Machine Stock,Order Settlement,171.64,3663 (BFS GROUP LTD)
Revenue,Economy & Environment,5105641123,11.12.2013,Medina Vending Machine Stock,Order Settlement,938.25,3663 (BFS GROUP LTD)
Revenue,Economy & Environment,5105640025,04.12.2013,Heights Cafe Stock,Order Settlement,265.95,3663 (BFS GROUP LTD)
Revenue,Economy & Environment,5105640025,04.12.2013,Heights Cafe Stock,Order Settlement,54.90,3663 (BFS GROUP LTD)
Revenue,Economy & Environment,5105643063,18.12.2013,Heights Cafe Stock,Order Settlement,189.76,3663 (BFS GROUP LTD)
Revenue,Economy & Environment,5105643063,18.12.2013,Heights Cafe Stock,Order Settlement,27.98,3663 (BFS GROUP LTD)
Revenue,Economy & Environment,5105640189,04.12.2013,Heights Cafe Stock,Order Settlement,61.03,3663 (BFS GROUP LTD)
Revenue,Economy & Environment,5105640189,04.12.2013,Heights Cafe Stock,Order Settlement,286.82,3663 (BFS GROUP LTD)
Revenue,Economy & Environment,5105640186,04.12.2013,Heights Vending Stock,Order Settlement,248.15,3663 (BFS GROUP LTD)
Revenue,Economy & Environment,5105640022,04.12.2013,Heights Vending Stock,Order Settlement,56.22,3663 (BFS GROUP LTD)
Revenue,Economy & Environment,5105642673,18.12.2013,Heights Vending Stock,Order Settlement,219.87,3663 (BFS GROUP LTD)
Revenue,Economy & Environment,5105643061,18.12.2013,Heights Vending Stock,Order Settlement,94.16,3663 (BFS GROUP LTD)
Revenue,Economy & Environment,5105644154,24.12.2013,Heights Vending Stock,Order Settlement,280.18,3663 (BFS GROUP LTD)
Revenue,Economy & Environment,5105640049,04.12.2013,Project Manager Waste Strategy,Consultants Fees,461.25,4 PROJECTS LIMITED
Revenue,Economy & Environment,5105644164,24.12.2013,Project Manager Waste Strategy,Consultants Fees,461.25,4 PROJECTS LIMITED
Revenue,Community Wellbeing & Social Care,5105641996,13.12.2013,Adelaide Resource Centre,Consumable Cleaning Materials,261.00,A & M APPLIANCE CARE
Revenue,Community Wellbeing & Social Care,5105644143,24.12.2013,Gouldings Resource Centre,Consumable Cleaning Materials,171.00,A & M APPLIANCE CARE
Revenue,Community Wellbeing & Social Care,5105640064,04.12.2013,Gouldings Resource Centre,Consumable Cleaning Materials,150.00,A & M APPLIANCE CARE
Revenue,Community Wellbeing & Social Care,5105642987,18.12.2013,Gouldings Resource Centre,Consumable Cleaning Materials,36.00,A & M APPLIANCE CARE
Revenue,Economy & Environment,5105644141,24.12.2013,Fire Technical Support,General Materials,120.00,A & M APPLIANCE CARE
Revenue,Economy & Environment,5105644141,24.12.2013,Fire Technical Support,General Materials,30.00,A & M APPLIANCE CARE
Revenue,Childrens Services,5105642546,18.12.2013,Adult Social Care - Workforce Development,Training,725.00,REDACTED PERSONAL DATA
Revenue,Community Wellbeing & Social Care,5105640206,04.12.2013,Workforce Development - Early Years,Training,725.00,REDACTED PERSONAL DATA
Revenue,Community Wellbeing & Social Care,5105643890,24.12.2013,Leaseholds by LA,Accommodation Costs - Leaseholder Payments,780.00,REDACTED PERSONAL DATA
Revenue,Childrens Services,5105643194,20.12.2013,Special Guardianship Order Costs,Support Children,265.38,REDACTED PERSONAL DATA
Revenue,Childrens Services,5105643194,20.12.2013,Special Guardianship Order Costs,Support Children,336.78,REDACTED PERSONAL DATA
Revenue,Childrens Services,5105641609,13.12.2013,Special Guardianship Order Costs,Support Children,132.69,REDACTED PERSONAL DATA
Revenue,Childrens Services,5105641609,13.12.2013,Special Guardianship Order Costs,Support Children,168.39,REDACTED PERSONAL DATA
Revenue,Childrens Services,5105640388,06.12.2013,Special Guardianship Order Costs,Support Children,132.69,REDACTED PERSONAL DATA
Revenue,Childrens Services,5105640388,06.12.2013,Special Guardianship Order Costs,Support Children,168.39,REDACTED PERSONAL DATA
Revenue,Childrens Services,5105643274,20.12.2013,Leaving Care Costs,Accommodation Costs - Service Users,115.00,REDACTED PERSONAL DATA
Revenue,Childrens Services,5105640467,06.12.2013,Leaving Care Costs,Accommodation Costs - Service Users,57.50,REDACTED PERSONAL DATA
Revenue,Childrens Services,5105641688,13.12.2013,Leaving Care Costs,Accommodation Costs - Service Users,57.50,REDACTED PERSONAL DATA
Revenue,Childrens Services,5105643274,20.12.2013,Leaving Care Costs,Support Children,241.78,REDACTED PERSONAL DATA
Revenue,Childrens Services,5105640467,06.12.2013,Leaving Care Costs,Support Children,120.89,REDACTED PERSONAL DATA
Revenue,Childrens Services,5105641688,13.12.2013,Leaving Care Costs,Support Children,120.89,REDACTED PERSONAL DATA
Revenue,Community Wellbeing & Social Care,5105643899,24.12.2013,Leaseholds by LA,Accommodation Costs - Leaseholder Payments,510.25,REDACTED PERSONAL DATA
Revenue,Community Wellbeing & Social Care,5105643899,24.12.2013,Leaseholds by LA,Accommodation Costs - Leaseholder Payments,510.25,REDACTED PERSONAL DATA
Revenue,Community Wellbeing & Social Care,5105643899,24.12.2013,Leaseholds by LA,Accommodation Costs - Leaseholder Payments,510.25,REDACTED PERSONAL DATA
Revenue,Community Wellbeing & Social Care,5105643899,24.12.2013,Leaseholds by LA,Accommodation Costs - Leaseholder Payments,510.25,REDACTED PERSONAL DATA
Revenue,Community Wellbeing & Social Care,5105643899,24.12.2013,Leaseholds by LA,Accommodation Costs - Leaseholder Payments,510.25,REDACTED PERSONAL DATA
Revenue,Community Wellbeing & Social Care,5105643899,24.12.2013,Leaseholds by LA,Accommodation Costs - Leaseholder Payments,510.25,REDACTED PERSONAL DATA
Revenue,Childrens Services,5105641583,13.12.2013,Adoption Costs,Support Children,186.49,REDACTED PERSONAL DATA
Revenue,Childrens Services,5105643168,20.12.2013,Adoption Costs,Support Children,372.98,REDACTED PERSONAL DATA
Revenue,Childrens Services,5105640362,06.12.2013,Adoption Costs,Support Children,186.49,REDACTED PERSONAL DATA
Revenue,Childrens Services,5105643236,20.12.2013,In-house Fostering,Boarding Out Allowances,442.26,REDACTED PERSONAL DATA
Revenue,Childrens Services,5105641651,13.12.2013,In-house Fostering,Boarding Out Allowances,221.13,REDACTED PERSONAL DATA
Revenue,Childrens Services,5105640430,06.12.2013,In-house Fostering,Boarding Out Allowances,221.13,REDACTED PERSONAL DATA
Revenue,Community Wellbeing & Social Care,5105643901,24.12.2013,Leaseholds by LA,Accommodation Costs - Leaseholder Payments,780.00,REDACTED PERSONAL DATA
Revenue,Community Wellbeing & Social Care,5105643888,24.12.2013,Leaseholds by LA,Accommodation Costs - Leaseholder Payments,649.83,REDACTED PERSONAL DATA
Revenue,Community Wellbeing & Social Care,5105643888,24.12.2013,Leaseholds by LA,Accommodation Costs - Leaseholder Payments,789.01,REDACTED PERSONAL DATA
Revenue,Community Wellbeing & Social Care,5105643888,24.12.2013,Leaseholds by LA,Accommodation Costs - Leaseholder Payments,835.08,REDACTED PERSONAL DATA
Revenue,Childrens Services,5105643163,20.12.2013,Adoption Costs,Support Children,174.30,REDACTED PERSONAL DATA
Revenue,Childrens Services,5105641578,13.12.2013,Adoption Costs,Support Children,87.15,REDACTED PERSONAL DATA
Revenue,Childrens Services,5105640357,06.12.2013,Adoption Costs,Support Children,87.15,REDACTED PERSONAL DATA
Revenue,Childrens Services,5105643945,24.12.2013,Beaulieu House,Minor Works,282.00,A-1 GARAGE DOOR SPECIALISTS(IOW)
Revenue,Community Wellbeing & Social Care,5105642989,18.12.2013,Ryde Library,Publications,478.25,AB NEWS
Revenue,Community Wellbeing & Social Care,5105641533,17.12.2013,Ryde Library,Publications,501.15,AB NEWS
Revenue,Community Wellbeing & Social Care,5105642647,17.12.2013,Ryde Library,Publications,-501.15,AB NEWS
Revenue,Community Wellbeing & Social Care,5105642799,18.12.2013,Supporting People Older Persons,Payment to Private Contractors,892.80,ABBEYFIELD WEST WIGHT SOCIETY
Revenue,Community Wellbeing & Social Care,5105644347,24.12.2013,Elderly Frail Residential Care,Charges from Independent Providers,"1,622.60",ACACIA CARE HOME
Revenue,Community Wellbeing & Social Care,5105644347,24.12.2013,Elderly Frail Residential Care,Charges from Independent Providers,"1,622.60",ACACIA CARE HOME
Revenue,Community Wellbeing & Social Care,5105639395,04.12.2013,Elderly Frail Residential Care,Charges from Independent Providers,"1,622.60",ACACIA CARE HOME
Revenue,Community Wellbeing & Social Care,5105639395,04.12.2013,Elderly Frail Residential Care,Charges from Independent Providers,"1,622.60",ACACIA CARE HOME
Revenue,Community Wellbeing & Social Care,5105644347,24.12.2013,Elderly Frail Residential Care,Charges from Independent Providers,"1,622.60",ACACIA CARE HOME
Revenue,Community Wellbeing & Social Care,5105639395,04.12.2013,Elderly Frail Residential Care,Charges from Independent Providers,"1,622.60",ACACIA CARE HOME
Revenue,Community Wellbeing & Social Care,5105644347,24.12.2013,Elderly Mentally Ill Residential Care,Charges from Independent Providers,"1,699.88",ACACIA CARE HOME
Revenue,Community Wellbeing & Social Care,5105639395,04.12.2013,Elderly Mentally Ill Residential Care,Charges from Independent Providers,"1,699.88",ACACIA CARE HOME
Revenue,Community Wellbeing & Social Care,5105640231,04.12.2013,Elderly Mentally Ill Residential Care,Charges from Independent Providers,424.97,ACACIA CARE HOME
Revenue,Economy & Environment,5105637386,11.12.2013,Licensing Services,Interview & recruitment expenses,616.00,ACCESS PERSONAL CHECKING
Revenue,Economy & Environment,5105642179,13.12.2013,Licensing Services,Interview & recruitment expenses,264.00,ACCESS PERSONAL CHECKING
Revenue,Economy & Environment,5105642179,13.12.2013,Licensing Services,Professional Services,36.00,ACCESS PERSONAL CHECKING
Revenue,Economy & Environment,5105637386,11.12.2013,Licensing Services,Professional Services,84.00,ACCESS PERSONAL CHECKING
Revenue,Community Wellbeing & Social Care,5105642526,17.12.2013,Elderly Frail Homecare,Charges from Independent Providers,35.00,ACORN CARE SERVICE LTD
Revenue,Community Wellbeing & Social Care,5105642537,18.12.2013,Elderly Frail Homecare,Charges from Independent Providers,87.12,ACORN CARE SERVICE LTD
Revenue,Community Wellbeing & Social Care,5105642527,17.12.2013,Elderly Frail Homecare,Charges from Independent Providers,24.50,ACORN CARE SERVICE LTD
Revenue,Community Wellbeing & Social Care,5105642528,17.12.2013,Elderly Frail Homecare,Charges from Independent Providers,35.00,ACORN CARE SERVICE LTD
Revenue,Community Wellbeing & Social Care,5105642528,17.12.2013,Elderly Frail Homecare,Charges from Independent Providers,312.18,ACORN CARE SERVICE LTD
Revenue,Community Wellbeing & Social Care,5105642529,17.12.2013,Elderly Frail Homecare,Charges from Independent Providers,0.50,ACORN CARE SERVICE LTD
Revenue,Community Wellbeing & Social Care,5105642534,17.12.2013,Elderly Frail Homecare,Charges from Independent Providers,7.26,ACORN CARE SERVICE LTD
Revenue,Community Wellbeing & Social Care,5105642535,17.12.2013,Elderly Frail Homecare,Charges from Independent Providers,87.12,ACORN CARE SERVICE LTD
Revenue,Community Wellbeing & Social Care,5105642531,17.12.2013,Elderly Frail Homecare,Charges from Independent Providers,84.00,ACORN CARE SERVICE LTD
Revenue,Community Wellbeing & Social Care,5105642533,17.12.2013,Elderly Frail Homecare,Charges from Independent Providers,152.43,ACORN CARE SERVICE LTD
Revenue,Community Wellbeing & Social Care,5105642533,17.12.2013,Elderly Frail Homecare,Charges from Independent Providers,203.28,ACORN CARE SERVICE LTD
Revenue,Community Wellbeing & Social Care,5105642533,17.12.2013,Elderly Frail Homecare,Charges from Independent Providers,203.28,ACORN CARE SERVICE LTD
Revenue,Community Wellbeing & Social Care,5105642080,13.12.2013,Elderly Frail Homecare,Charges from Independent Providers,326.70,ACORN CARE SERVICE LTD
Revenue,Community Wellbeing & Social Care,5105642076,13.12.2013,Elderly Frail Homecare,Charges from Independent Providers,798.60,ACORN CARE SERVICE LTD
Revenue,Community Wellbeing & Social Care,5105642078,13.12.2013,Elderly Frail Homecare,Charges from Independent Providers,254.10,ACORN CARE SERVICE LTD
Revenue,Community Wellbeing & Social Care,5105642079,13.12.2013,Elderly Frail Homecare,Charges from Independent Providers,101.64,ACORN CARE SERVICE LTD
Revenue,Community Wellbeing & Social Care,5105643559,20.12.2013,Elderly Frail Homecare,Charges from Independent Providers,319.44,ACORN CARE SERVICE LTD
Revenue,Community Wellbeing & Social Care,5105643560,20.12.2013,Elderly Frail Homecare,Charges from Independent Providers,101.64,ACORN CARE SERVICE LTD
Revenue,Community Wellbeing & Social Care,5105643558,20.12.2013,Elderly Frail Homecare,Charges from Independent Providers,595.92,ACORN CARE SERVICE LTD
Revenue,Community Wellbeing & Social Care,5105642065,13.12.2013,Elderly Frail Homecare,Regular Respite Care,87.12,ACORN CARE SERVICE LTD
Revenue,Community Wellbeing & Social Care,5105642067,13.12.2013,Elderly Frail Homecare,Regular Respite Care,116.16,ACORN CARE SERVICE LTD
Revenue,Community Wellbeing & Social Care,5105642042,13.12.2013,Elderly Frail Homecare,Charges from Independent Providers,377.52,ACORN CARE SERVICE LTD
Revenue,Community Wellbeing & Social Care,5105642043,13.12.2013,Elderly Frail Homecare,Charges from Independent Providers,"2,359.50",ACORN CARE SERVICE LTD
Revenue,Community Wellbeing & Social Care,5105642044,13.12.2013,Elderly Frail Homecare,Charges from Independent Providers,784.08,ACORN CARE SERVICE LTD
Revenue,Community Wellbeing & Social Care,5105642045,13.12.2013,Elderly Frail Homecare,Charges from Independent Providers,"2,250.60",ACORN CARE SERVICE LTD
Revenue,Community Wellbeing & Social Care,5105642046,13.12.2013,Elderly Frail Homecare,Charges from Independent Providers,246.84,ACORN CARE SERVICE LTD
Revenue,Community Wellbeing & Social Care,5105642047,13.12.2013,Elderly Frail Homecare,Charges from Independent Providers,534.06,ACORN CARE SERVICE LTD
Revenue,Community Wellbeing & Social Care,5105642048,13.12.2013,Elderly Frail Homecare,Charges from Independent Providers,"1,550.01",ACORN CARE SERVICE LTD
Revenue,Community Wellbeing & Social Care,5105642049,13.12.2013,Elderly Frail Homecare,Charges from Independent Providers,"1,379.40",ACORN CARE SERVICE LTD
Revenue,Community Wellbeing & Social Care,5105642050,13.12.2013,Elderly Frail Homecare,Charges from Independent Providers,377.52,ACORN CARE SERVICE LTD
Revenue,Community Wellbeing & Social Care,5105642051,13.12.2013,Elderly Frail Homecare,Charges from Independent Providers,"1,118.04",ACORN CARE SERVICE LTD
Revenue,Community Wellbeing & Social Care,5105642052,13.12.2013,Elderly Frail Homecare,Charges from Independent Providers,827.64,ACORN CARE SERVICE LTD
Revenue,Community Wellbeing & Social Care,5105642053,13.12.2013,Elderly Frail Homecare,Charges from Independent Providers,203.28,ACORN CARE SERVICE LTD
Revenue,Community Wellbeing & Social Care,5105642064,13.12.2013,Elderly Frail Homecare,Charges from Independent Providers,203.28,ACORN CARE SERVICE LTD
Revenue,Community Wellbeing & Social Care,5105642074,13.12.2013,Elderly Frail Homecare,Charges from Independent Providers,116.16,ACORN CARE SERVICE LTD
Revenue,Community Wellbeing & Social Care,5105642075,13.12.2013,Elderly Frail Homecare,Charges from Independent Providers,"2,642.64",ACORN CARE SERVICE LTD
Revenue,Community Wellbeing & Social Care,5105642069,13.12.2013,Elderly Frail Homecare,Charges from Independent Providers,348.48,ACORN CARE SERVICE LTD
Revenue,Community Wellbeing & Social Care,5105642072,13.12.2013,Elderly Frail Homecare,Charges from Independent Providers,696.96,ACORN CARE SERVICE LTD
Revenue,Community Wellbeing & Social Care,5105642070,13.12.2013,Elderly Frail Homecare,Charges from Independent Providers,421.08,ACORN CARE SERVICE LTD
Revenue,Community Wellbeing & Social Care,5105642066,13.12.2013,Elderly Frail Homecare,Charges from Independent Providers,522.72,ACORN CARE SERVICE LTD
Revenue,Community Wellbeing & Social Care,5105642073,13.12.2013,Elderly Frail Homecare,Charges from Independent Providers,577.17,ACORN CARE SERVICE LTD
Revenue,Community Wellbeing & Social Care,5105642062,13.12.2013,Elderly Frail Homecare,Charges from Independent Providers,130.68,ACORN CARE SERVICE LTD
Revenue,Community Wellbeing & Social Care,5105642060,13.12.2013,Elderly Frail Homecare,Charges from Independent Providers,203.28,ACORN CARE SERVICE LTD
Revenue,Community Wellbeing & Social Care,5105642057,13.12.2013,Elderly Frail Homecare,Charges from Independent Providers,58.08,ACORN CARE SERVICE LTD
Revenue,Community Wellbeing & Social Care,5105642054,13.12.2013,Elderly Frail Homecare,Charges from Independent Providers,522.72,ACORN CARE SERVICE LTD
Revenue,Community Wellbeing & Social Care,5105642055,13.12.2013,Elderly Frail Homecare,Charges from Independent Providers,686.07,ACORN CARE SERVICE LTD
Revenue,Community Wellbeing & Social Care,5105642056,13.12.2013,Elderly Frail Homecare,Charges from Independent Providers,101.64,ACORN CARE SERVICE LTD
Revenue,Community Wellbeing & Social Care,5105642058,13.12.2013,Elderly Frail Homecare,Charges from Independent Providers,203.28,ACORN CARE SERVICE LTD
Revenue,Community Wellbeing & Social Care,5105642059,13.12.2013,Elderly Frail Homecare,Charges from Independent Providers,203.28,ACORN CARE SERVICE LTD
Revenue,Community Wellbeing & Social Care,5105642061,13.12.2013,Elderly Frail Homecare,Charges from Independent Providers,406.56,ACORN CARE SERVICE LTD
Revenue,Community Wellbeing & Social Care,5105642063,13.12.2013,Elderly Frail Homecare,Charges from Independent Providers,363.00,ACORN CARE SERVICE LTD
Revenue,Community Wellbeing & Social Care,5105642077,13.12.2013,Elderly Mentally Ill Homecare,Charges from Independent Providers,196.02,ACORN CARE SERVICE LTD
Revenue,Community Wellbeing & Social Care,5105642530,17.12.2013,Physical Disability Homecare,Charges from Independent Providers,150.50,ACORN CARE SERVICE LTD
Revenue,Community Wellbeing & Social Care,5105642071,13.12.2013,Elderly Frail Managed Accounts,Regular Respite Care,116.16,ACORN CARE SERVICE LTD
Revenue,Community Wellbeing & Social Care,5105642068,13.12.2013,Elderly Frail Managed Accounts,Charges from Independent Providers,755.04,ACORN CARE SERVICE LTD
Revenue,Community Wellbeing & Social Care,5105642536,18.12.2013,Elderly Frail Managed Accounts,Charges from Independent Providers,65.34,ACORN CARE SERVICE LTD
Revenue,Community Wellbeing & Social Care,5105643561,20.12.2013,Elderly Frail Managed Accounts,Charges from Independent Providers,314.16,ACORN CARE SERVICE LTD
Revenue,Economy & Environment,5105643630,20.12.2013,Fire Technical Support,Vehicle Maintenance Costs,121.89,ADAMS MOREY LTD
Revenue,Economy & Environment,5105643630,20.12.2013,Fire Technical Support,Vehicle Maintenance Costs,2.06,ADAMS MOREY LTD
Revenue,Economy & Environment,5105643630,20.12.2013,Fire Technical Support,Vehicle Maintenance Costs,5.05,ADAMS MOREY LTD
Revenue,Economy & Environment,5105643630,20.12.2013,Fire Technical Support,Vehicle Maintenance Costs,9.16,ADAMS MOREY LTD
Revenue,Economy & Environment,5105643630,20.12.2013,Fire Technical Support,Vehicle Maintenance Costs,7.68,ADAMS MOREY LTD
Revenue,Economy & Environment,5105643630,20.12.2013,Fire Technical Support,Vehicle Maintenance Costs,5.98,ADAMS MOREY LTD
Revenue,Economy & Environment,5105643630,20.12.2013,Fire Technical Support,Vehicle Maintenance Costs,10.80,ADAMS MOREY LTD
Revenue,Economy & Environment,5105643633,20.12.2013,Fire Technical Support,Vehicle Maintenance Costs,57.74,ADAMS MOREY LTD
Revenue,Economy & Environment,5105643633,20.12.2013,Fire Technical Support,Vehicle Maintenance Costs,52.61,ADAMS MOREY LTD
Revenue,Economy & Environment,5105643635,20.12.2013,Fire Technical Support,Vehicle Maintenance Costs,40.00,ADAMS MOREY LTD
Revenue,Economy & Environment,5105641172,11.12.2013,Fire Technical Support,Vehicle Maintenance Costs,117.00,ADAMS MOREY LTD
Revenue,Economy & Environment,5105640654,06.12.2013,Fire Technical Support,Vehicle Maintenance Costs,14.50,ADAMS MOREY LTD
Revenue,Economy & Environment,5105640654,06.12.2013,Fire Technical Support,Vehicle Maintenance Costs,15.00,ADAMS MOREY LTD
Revenue,Economy & Environment,5105642516,17.12.2013,Fire Technical Support,Vehicle Maintenance Costs,29.50,ADAMS MOREY LTD
Revenue,Economy & Environment,5105643097,20.12.2013,Fire Technical Support,Vehicle Maintenance Costs,14.50,ADAMS MOREY LTD
Revenue,Economy & Environment,5105643098,20.12.2013,Fire Technical Support,Vehicle Maintenance Costs,14.50,ADAMS MOREY LTD
Revenue,Economy & Environment,5105643099,20.12.2013,Fire Technical Support,Vehicle Maintenance Costs,115.90,ADAMS MOREY LTD
Revenue,Economy & Environment,5105641102,11.12.2013,Bikeability,Operational Equipment,34.82,ADAMS MOREY LTD
Revenue,Economy & Environment,5105641102,11.12.2013,Bikeability,Operational Equipment,137.76,ADAMS MOREY LTD
Revenue,Economy & Environment,5105641102,11.12.2013,Bikeability,Operational Equipment,16.04,ADAMS MOREY LTD
Revenue,Childrens Services,5105641517,11.12.2013,Adoption Costs,Payments to Voluntary and Other Associations,"4,777.68",ADOPTION MATTERS NORTHWEST
Revenue,Childrens Services,5105642156,13.12.2013,Adoption Costs,Payments to Voluntary and Other Associations,"1,194.42",ADOPTION MATTERS NORTHWEST
Revenue,Community Wellbeing & Social Care,5105641183,11.12.2013,Cothey Bottom Store RYDE,Payment to Private Contractors,62.31,ADT FIRE AND SECURITY PLC
Revenue,Community Wellbeing & Social Care,5105640237,04.12.2013,Mental Health Other Care,Charges from Independent Providers,240.00,AGE CONCERN ISLE OF WIGHT
Revenue,Community Wellbeing & Social Care,5105640030,04.12.2013,Renewal & Enforcement,Payments to Voluntary and Other Associations,"26,163.00",AGE CONCERN T/A AGE UK
Revenue,Community Wellbeing & Social Care,5105641990,18.12.2013,Emergency Duty Service,Agency staff,"9,618.00",AIR SOCIAL CARE
Revenue,Community Wellbeing & Social Care,5105641541,13.12.2013,Emergency Duty Service,Agency staff,"2,068.00",AIR SOCIAL CARE
Revenue,Community Wellbeing & Social Care,5105640572,11.12.2013,Emergency Duty Service,Agency staff,"1,739.00",AIR SOCIAL CARE
Revenue,Childrens Services,5105640580,06.12.2013,Reviewing Officer,Agency staff,"1,350.00",AIR SOCIAL CARE
Revenue,Childrens Services,5105640580,06.12.2013,Reviewing Officer,Agency staff,184.62,AIR SOCIAL CARE
Revenue,Childrens Services,5105641947,13.12.2013,Reviewing Officer,Agency staff,"1,350.00",AIR SOCIAL CARE
Revenue,Childrens Services,5105641947,13.12.2013,Reviewing Officer,Agency staff,184.57,AIR SOCIAL CARE
Revenue,Childrens Services,5105643077,20.12.2013,LSCB (Local Safeguarding Childrens Brd),Professional Services,"6,983.40",ALAN BEDFORD CONSULTING
Revenue,Childrens Services,5105644128,24.12.2013,Children's office costs,Payment to Private Contractors,50.00,ALAN SHEPARD (IOW)
Revenue,Childrens Services,5105640021,04.12.2013,Beaulieu House,Minor Works,829.17,ALBANY FARM & G MACHINERY LTD
Revenue,Childrens Services,5105640026,04.12.2013,Beaulieu House,Minor Works,245.74,ALBANY FARM & G MACHINERY LTD
Revenue,Economy & Environment,5105642586,18.12.2013,Development Control,Advertising & Publicity,328.65,ALEXANDER ADVERTISING (INT) LTD
Revenue,Economy & Environment,5105642547,18.12.2013,Development Control,Advertising & Publicity,431.35,ALEXANDER ADVERTISING (INT) LTD
Revenue,Economy & Environment,5105642548,18.12.2013,Development Control,Advertising & Publicity,256.76,ALEXANDER ADVERTISING (INT) LTD
Revenue,Economy & Environment,5105642549,18.12.2013,Development Control,Advertising & Publicity,236.22,ALEXANDER ADVERTISING (INT) LTD
Revenue,Childrens Services,5105644096,24.12.2013,Special Educational Needs Transport,Taxis - Contract Hire,84.40,ALPHA (IOW) LTD
Revenue,Childrens Services,5105644096,24.12.2013,Special Educational Needs Transport,Taxis - Contract Hire,316.40,ALPHA (IOW) LTD
Revenue,Childrens Services,5105644096,24.12.2013,Special Educational Needs Transport,Taxis - Contract Hire,300.00,ALPHA (IOW) LTD
Revenue,Childrens Services,5105644096,24.12.2013,Special Educational Needs Transport,Taxis - Contract Hire,185.05,ALPHA (IOW) LTD
Revenue,Childrens Services,5105644096,24.12.2013,Special Educational Needs Transport,Taxis - Contract Hire,263.70,ALPHA (IOW) LTD
Revenue,Childrens Services,5105644096,24.12.2013,Special Educational Needs Transport,Taxis - Contract Hire,450.00,ALPHA (IOW) LTD
Revenue,Childrens Services,5105644096,24.12.2013,Special Educational Needs Transport,Taxis - Contract Hire,308.40,ALPHA (IOW) LTD
Revenue,Childrens Services,5105644096,24.12.2013,Special Educational Needs Transport,Taxis - Contract Hire,390.65,ALPHA (IOW) LTD
Revenue,Childrens Services,5105644096,24.12.2013,Special Educational Needs Transport,Taxis - Contract Hire,123.35,ALPHA (IOW) LTD
Revenue,Childrens Services,5105644096,24.12.2013,Special Educational Needs Transport,Taxis - Contract Hire,210.00,ALPHA (IOW) LTD
Revenue,Childrens Services,5105644096,24.12.2013,Special Educational Needs Transport,Taxis - Contract Hire,300.00,ALPHA (IOW) LTD
Revenue,Childrens Services,5105644096,24.12.2013,Special Educational Needs Transport,Taxis - Contract Hire,370.10,ALPHA (IOW) LTD
Revenue,Childrens Services,5105644096,24.12.2013,Special Educational Needs Transport,Taxis - Contract Hire,359.80,ALPHA (IOW) LTD
Revenue,Childrens Services,5105643432,20.12.2013,Special Educational Needs Transport,Taxis - Contract Hire,210.00,ALPHA (IOW) LTD
Revenue,Childrens Services,5105643432,20.12.2013,Special Educational Needs Transport,Taxis - Contract Hire,300.00,ALPHA (IOW) LTD
Revenue,Childrens Services,5105643432,20.12.2013,Special Educational Needs Transport,Taxis - Contract Hire,370.10,ALPHA (IOW) LTD
Revenue,Childrens Services,5105643432,20.12.2013,Special Educational Needs Transport,Taxis - Contract Hire,359.80,ALPHA (IOW) LTD
Revenue,Childrens Services,5105643432,20.12.2013,Special Educational Needs Transport,Taxis - Contract Hire,300.00,ALPHA (IOW) LTD
Revenue,Childrens Services,5105643432,20.12.2013,Special Educational Needs Transport,Taxis - Contract Hire,185.05,ALPHA (IOW) LTD
Revenue,Childrens Services,5105643432,20.12.2013,Special Educational Needs Transport,Taxis - Contract Hire,84.40,ALPHA (IOW) LTD
Revenue,Childrens Services,5105643432,20.12.2013,Special Educational Needs Transport,Taxis - Contract Hire,316.40,ALPHA (IOW) LTD
Revenue,Childrens Services,5105643432,20.12.2013,Special Educational Needs Transport,Taxis - Contract Hire,263.70,ALPHA (IOW) LTD
Revenue,Childrens Services,5105643432,20.12.2013,Special Educational Needs Transport,Taxis - Contract Hire,450.00,ALPHA (IOW) LTD
Revenue,Childrens Services,5105643432,20.12.2013,Special Educational Needs Transport,Taxis - Contract Hire,308.40,ALPHA (IOW) LTD
Revenue,Childrens Services,5105643432,20.12.2013,Special Educational Needs Transport,Taxis - Contract Hire,390.65,ALPHA (IOW) LTD
Revenue,Childrens Services,5105643432,20.12.2013,Special Educational Needs Transport,Taxis - Contract Hire,123.35,ALPHA (IOW) LTD
Revenue,Childrens Services,5105640807,06.12.2013,Special Educational Needs Transport,Taxis - Contract Hire,390.65,ALPHA (IOW) LTD
Revenue,Childrens Services,5105640831,06.12.2013,Special Educational Needs Transport,Taxis - Contract Hire,390.65,ALPHA (IOW) LTD
Revenue,Childrens Services,5105640831,06.12.2013,Special Educational Needs Transport,Taxis - Contract Hire,123.35,ALPHA (IOW) LTD
Revenue,Childrens Services,5105640807,06.12.2013,Special Educational Needs Transport,Taxis - Contract Hire,153.35,ALPHA (IOW) LTD
Revenue,Childrens Services,5105640831,06.12.2013,Special Educational Needs Transport,Taxis - Contract Hire,210.00,ALPHA (IOW) LTD
Revenue,Childrens Services,5105640807,06.12.2013,Special Educational Needs Transport,Taxis - Contract Hire,210.00,ALPHA (IOW) LTD
Revenue,Childrens Services,5105640807,06.12.2013,Special Educational Needs Transport,Taxis - Contract Hire,300.00,ALPHA (IOW) LTD
Revenue,Childrens Services,5105640831,06.12.2013,Special Educational Needs Transport,Taxis - Contract Hire,300.00,ALPHA (IOW) LTD
Revenue,Childrens Services,5105640831,06.12.2013,Special Educational Needs Transport,Taxis - Contract Hire,370.10,ALPHA (IOW) LTD
Revenue,Childrens Services,5105640807,06.12.2013,Special Educational Needs Transport,Taxis - Contract Hire,370.10,ALPHA (IOW) LTD
Revenue,Childrens Services,5105640807,06.12.2013,Special Educational Needs Transport,Taxis - Contract Hire,359.80,ALPHA (IOW) LTD
Revenue,Childrens Services,5105640831,06.12.2013,Special Educational Needs Transport,Taxis - Contract Hire,359.80,ALPHA (IOW) LTD
Revenue,Childrens Services,5105642449,18.12.2013,Special Educational Needs Transport,Taxis - Contract Hire,210.00,ALPHA (IOW) LTD
Revenue,Childrens Services,5105642449,18.12.2013,Special Educational Needs Transport,Taxis - Contract Hire,300.00,ALPHA (IOW) LTD
Revenue,Childrens Services,5105642449,18.12.2013,Special Educational Needs Transport,Taxis - Contract Hire,370.10,ALPHA (IOW) LTD
Revenue,Childrens Services,5105642449,18.12.2013,Special Educational Needs Transport,Taxis - Contract Hire,359.80,ALPHA (IOW) LTD
Revenue,Childrens Services,5105642449,18.12.2013,Special Educational Needs Transport,Taxis - Contract Hire,300.00,ALPHA (IOW) LTD
Revenue,Childrens Services,5105642449,18.12.2013,Special Educational Needs Transport,Taxis - Contract Hire,185.05,ALPHA (IOW) LTD
Revenue,Childrens Services,5105642449,18.12.2013,Special Educational Needs Transport,Taxis - Contract Hire,263.70,ALPHA (IOW) LTD
Revenue,Childrens Services,5105642449,18.12.2013,Special Educational Needs Transport,Taxis - Contract Hire,400.00,ALPHA (IOW) LTD
Revenue,Childrens Services,5105642449,18.12.2013,Special Educational Needs Transport,Taxis - Contract Hire,308.40,ALPHA (IOW) LTD
Revenue,Childrens Services,5105642449,18.12.2013,Special Educational Needs Transport,Taxis - Contract Hire,390.65,ALPHA (IOW) LTD
Revenue,Childrens Services,5105642449,18.12.2013,Special Educational Needs Transport,Taxis - Contract Hire,123.35,ALPHA (IOW) LTD
Revenue,Childrens Services,5105642449,18.12.2013,Special Educational Needs Transport,Taxis - Contract Hire,84.40,ALPHA (IOW) LTD
Revenue,Childrens Services,5105642449,18.12.2013,Special Educational Needs Transport,Taxis - Contract Hire,316.40,ALPHA (IOW) LTD
Revenue,Childrens Services,5105640831,06.12.2013,Special Educational Needs Transport,Taxis - Contract Hire,236.45,ALPHA (IOW) LTD
Revenue,Childrens Services,5105640807,06.12.2013,Special Educational Needs Transport,Taxis - Contract Hire,236.45,ALPHA (IOW) LTD
Revenue,Childrens Services,5105640807,06.12.2013,Special Educational Needs Transport,Taxis - Contract Hire,185.05,ALPHA (IOW) LTD
Revenue,Childrens Services,5105640831,06.12.2013,Special Educational Needs Transport,Taxis - Contract Hire,185.05,ALPHA (IOW) LTD
Revenue,Childrens Services,5105640831,06.12.2013,Special Educational Needs Transport,Taxis - Contract Hire,84.40,ALPHA (IOW) LTD
Revenue,Childrens Services,5105640807,06.12.2013,Special Educational Needs Transport,Taxis - Contract Hire,84.40,ALPHA (IOW) LTD
Revenue,Childrens Services,5105640807,06.12.2013,Special Educational Needs Transport,Taxis - Contract Hire,316.40,ALPHA (IOW) LTD
Revenue,Childrens Services,5105640831,06.12.2013,Special Educational Needs Transport,Taxis - Contract Hire,316.40,ALPHA (IOW) LTD
Revenue,Childrens Services,5105640831,06.12.2013,Special Educational Needs Transport,Taxis - Contract Hire,263.70,ALPHA (IOW) LTD
Revenue,Childrens Services,5105640807,06.12.2013,Special Educational Needs Transport,Taxis - Contract Hire,263.70,ALPHA (IOW) LTD
Revenue,Childrens Services,5105640807,06.12.2013,Special Educational Needs Transport,Taxis - Contract Hire,421.50,ALPHA (IOW) LTD
Revenue,Childrens Services,5105640831,06.12.2013,Special Educational Needs Transport,Taxis - Contract Hire,400.00,ALPHA (IOW) LTD
Revenue,Childrens Services,5105640831,06.12.2013,Special Educational Needs Transport,Taxis - Contract Hire,308.40,ALPHA (IOW) LTD
Revenue,Childrens Services,5105640807,06.12.2013,Special Educational Needs Transport,Taxis - Contract Hire,308.40,ALPHA (IOW) LTD
Revenue,Childrens Services,5105644096,24.12.2013,Home to School Transport,Taxis - Contract Hire,328.95,ALPHA (IOW) LTD
Revenue,Childrens Services,5105644096,24.12.2013,Home to School Transport,Taxis - Contract Hire,390.65,ALPHA (IOW) LTD
Revenue,Childrens Services,5105644096,24.12.2013,Home to School Transport,Taxis - Contract Hire,250.00,ALPHA (IOW) LTD
Revenue,Childrens Services,5105642449,18.12.2013,Home to School Transport,Taxis - Contract Hire,328.95,ALPHA (IOW) LTD
Revenue,Childrens Services,5105642449,18.12.2013,Home to School Transport,Taxis - Contract Hire,390.65,ALPHA (IOW) LTD
Revenue,Childrens Services,5105642449,18.12.2013,Home to School Transport,Taxis - Contract Hire,250.00,ALPHA (IOW) LTD
Revenue,Childrens Services,5105642449,18.12.2013,Home to School Transport,Taxis - Contract Hire,128.50,ALPHA (IOW) LTD
Revenue,Childrens Services,5105642449,18.12.2013,Home to School Transport,Taxis - Contract Hire,421.50,ALPHA (IOW) LTD
Revenue,Childrens Services,5105642449,18.12.2013,Home to School Transport,Taxis - Contract Hire,310.00,ALPHA (IOW) LTD
Revenue,Childrens Services,5105642449,18.12.2013,Home to School Transport,Taxis - Contract Hire,11.31,ALPHA (IOW) LTD
Revenue,Childrens Services,5105642449,18.12.2013,Home to School Transport,Taxis - Contract Hire,158.20,ALPHA (IOW) LTD
Revenue,Childrens Services,5105640807,06.12.2013,Home to School Transport,Taxis - Contract Hire,11.31,ALPHA (IOW) LTD
Revenue,Childrens Services,5105640831,06.12.2013,Home to School Transport,Taxis - Contract Hire,11.31,ALPHA (IOW) LTD
Revenue,Childrens Services,5105640831,06.12.2013,Home to School Transport,Taxis - Contract Hire,158.20,ALPHA (IOW) LTD
Revenue,Childrens Services,5105640807,06.12.2013,Home to School Transport,Taxis - Contract Hire,158.20,ALPHA (IOW) LTD
Revenue,Childrens Services,5105640807,06.12.2013,Home to School Transport,Taxis - Contract Hire,128.50,ALPHA (IOW) LTD
Revenue,Childrens Services,5105640831,06.12.2013,Home to School Transport,Taxis - Contract Hire,128.50,ALPHA (IOW) LTD
Revenue,Childrens Services,5105640831,06.12.2013,Home to School Transport,Taxis - Contract Hire,328.95,ALPHA (IOW) LTD
Revenue,Childrens Services,5105640807,06.12.2013,Home to School Transport,Taxis - Contract Hire,328.95,ALPHA (IOW) LTD
Revenue,Childrens Services,5105640807,06.12.2013,Home to School Transport,Taxis - Contract Hire,390.65,ALPHA (IOW) LTD
Revenue,Childrens Services,5105640831,06.12.2013,Home to School Transport,Taxis - Contract Hire,390.65,ALPHA (IOW) LTD
Revenue,Childrens Services,5105640807,06.12.2013,Home to School Transport,Taxis - Contract Hire,250.00,ALPHA (IOW) LTD
Revenue,Childrens Services,5105640831,06.12.2013,Home to School Transport,Taxis - Contract Hire,250.00,ALPHA (IOW) LTD
Revenue,Childrens Services,5105640831,06.12.2013,Home to School Transport,Taxis - Contract Hire,421.50,ALPHA (IOW) LTD
Revenue,Childrens Services,5105640807,06.12.2013,Home to School Transport,Taxis - Contract Hire,421.50,ALPHA (IOW) LTD
Revenue,Childrens Services,5105640807,06.12.2013,Home to School Transport,Taxis - Contract Hire,310.00,ALPHA (IOW) LTD
Revenue,Childrens Services,5105640831,06.12.2013,Home to School Transport,Taxis - Contract Hire,310.00,ALPHA (IOW) LTD
Revenue,Childrens Services,5105643432,20.12.2013,Home to School Transport,Taxis - Contract Hire,128.50,ALPHA (IOW) LTD
Revenue,Childrens Services,5105643432,20.12.2013,Home to School Transport,Taxis - Contract Hire,328.95,ALPHA (IOW) LTD
Revenue,Childrens Services,5105643432,20.12.2013,Home to School Transport,Taxis - Contract Hire,390.65,ALPHA (IOW) LTD
Revenue,Childrens Services,5105643432,20.12.2013,Home to School Transport,Taxis - Contract Hire,250.00,ALPHA (IOW) LTD
Revenue,Childrens Services,5105643432,20.12.2013,Home to School Transport,Taxis - Contract Hire,421.50,ALPHA (IOW) LTD
Revenue,Childrens Services,5105643432,20.12.2013,Home to School Transport,Taxis - Contract Hire,310.00,ALPHA (IOW) LTD
Revenue,Childrens Services,5105643432,20.12.2013,Home to School Transport,Taxis - Contract Hire,11.31,ALPHA (IOW) LTD
Revenue,Childrens Services,5105643432,20.12.2013,Home to School Transport,Taxis - Contract Hire,158.20,ALPHA (IOW) LTD
Revenue,Childrens Services,5105644096,24.12.2013,Home to School Transport,Taxis - Contract Hire,11.31,ALPHA (IOW) LTD
Revenue,Childrens Services,5105644096,24.12.2013,Home to School Transport,Taxis - Contract Hire,158.20,ALPHA (IOW) LTD
Revenue,Childrens Services,5105644096,24.12.2013,Home to School Transport,Taxis - Contract Hire,128.50,ALPHA (IOW) LTD
Revenue,Childrens Services,5105644096,24.12.2013,Home to School Transport,Taxis - Contract Hire,421.50,ALPHA (IOW) LTD
Revenue,Childrens Services,5105644096,24.12.2013,Home to School Transport,Taxis - Contract Hire,310.00,ALPHA (IOW) LTD
Revenue,Community Wellbeing & Social Care,5105644249,24.12.2013,Learning Disability Residential Care,Charges from Independent Providers,"3,409.00",ALPHAGRANGE LTD
Revenue,Community Wellbeing & Social Care,5105639300,04.12.2013,Learning Disability Residential Care,Charges from Independent Providers,"3,409.00",ALPHAGRANGE LTD
Revenue,Childrens Services,5105640825,06.12.2013,Safeguarding Support,Travel Expenses,349.00,AMANDA GETHIN CONSULTANCY
Revenue,Childrens Services,5105640825,06.12.2013,Safeguarding Support,Consultants Fees,"5,400.00",AMANDA GETHIN CONSULTANCY
Revenue,Childrens Services,5105640832,06.12.2013,Home to School Transport,Taxis - Contract Hire,418.00,AMAR CABS OF NEWPORT
Revenue,Community Wellbeing & Social Care,5105642173,18.12.2013,Drug Misuse - Adults,Payment to Private Contractors,"1,270.00",ANA TREATMENT CENTRES LTD
Revenue,Resources,5105640299,04.12.2013,Applications Support,Agency staff,280.80,ANCHOR RECRUITMENT
Revenue,Resources,5105640101,04.12.2013,Applications Support,Agency staff,314.60,ANCHOR RECRUITMENT
Revenue,Community Wellbeing & Social Care,5105640298,06.12.2013,Central Management Support,Agency staff,223.20,ANCHOR RECRUITMENT
Revenue,Community Wellbeing & Social Care,5105644251,24.12.2013,Elderly Frail Residential Care,Charges from Independent Providers,"1,998.08",ANCONA CARE HOME
Revenue,Community Wellbeing & Social Care,5105644251,24.12.2013,Elderly Frail Residential Care,Charges from Independent Providers,"1,699.88",ANCONA CARE HOME
Revenue,Community Wellbeing & Social Care,5105639302,04.12.2013,Elderly Frail Residential Care,Charges from Independent Providers,"1,998.08",ANCONA CARE HOME
Revenue,Community Wellbeing & Social Care,5105639302,04.12.2013,Elderly Frail Residential Care,Charges from Independent Providers,"1,699.88",ANCONA CARE HOME
Revenue,Community Wellbeing & Social Care,5105644251,24.12.2013,Elderly Mentally Ill Residential Care,Charges from Independent Providers,"1,699.88",ANCONA CARE HOME
Revenue,Community Wellbeing & Social Care,5105639302,04.12.2013,Elderly Mentally Ill Residential Care,Charges from Independent Providers,"1,699.88",ANCONA CARE HOME
Revenue,Community Wellbeing & Social Care,5105644251,24.12.2013,REDACTED PERSONAL DATA,Order Settlement,"1,998.08",ANCONA CARE HOME
Revenue,Community Wellbeing & Social Care,5105639302,04.12.2013,REDACTED PERSONAL DATA,Order Settlement,"1,998.08",ANCONA CARE HOME
Revenue,Community Wellbeing & Social Care,5105639252,04.12.2013,REDACTED PERSONAL DATA,Order Settlement,"1,699.88",ANCONA CARE HOME
Revenue,Community Wellbeing & Social Care,5105644199,24.12.2013,REDACTED PERSONAL DATA,Order Settlement,"1,699.88",ANCONA CARE HOME
Revenue,Childrens Services,5105640119,18.12.2013,Youth Offending Team,Cleaning Contracts,156.63,ANDREWS AIR CONDITIONING
Revenue,Economy & Environment,5105642991,18.12.2013,Fire Technical Support,Vehicle Maintenance Costs,49.00,ANGLOCO LTD
Revenue,Economy & Environment,5105642991,18.12.2013,Fire Technical Support,Vehicle Maintenance Costs,15.00,ANGLOCO LTD
Revenue,Economy & Environment,5105641260,11.12.2013,Print Unit,Printing Costs,116.50,ANTALIS MCNAUGHTON
Revenue,Economy & Environment,5105643603,20.12.2013,Print Unit,Printing Costs,140.16,ANTALIS MCNAUGHTON
Revenue,Economy & Environment,5105643602,20.12.2013,Print Unit,Printing Costs,90.60,ANTALIS MCNAUGHTON
Revenue,Economy & Environment,5105643602,20.12.2013,Print Unit,Printing Costs,32.88,ANTALIS MCNAUGHTON
Revenue,Economy & Environment,5105641410,11.12.2013,Print Unit,Printing Costs,88.30,ANTALIS MCNAUGHTON
Revenue,Economy & Environment,5105641261,11.12.2013,Print Unit,Printing Costs,46.72,ANTALIS MCNAUGHTON
Revenue,Community Wellbeing & Social Care,5105641059,11.12.2013,Integrated Community Equipment Service,Operational Equipment,"1,999.50",APOLLO HEALTHCARE TECHNOLOGIES
Revenue,Community Wellbeing & Social Care,5105644171,24.12.2013,Integrated Community Equipment Service,Operational Equipment,648.00,APOLLO HEALTHCARE TECHNOLOGIES
Revenue,Community Wellbeing & Social Care,5105644172,24.12.2013,Arts Projects,Payments to Voluntary and Other Associations,215.00,APPLES AND SNAKES LTD
Revenue,Community Wellbeing & Social Care,5105640308,06.12.2013,Arts Projects,Payments to Voluntary and Other Associations,"1,010.45",APPLES AND SNAKES LTD
Revenue,Community Wellbeing & Social Care,5105640308,06.12.2013,Arts Projects,Payments to Voluntary and Other Associations,410.00,APPLES AND SNAKES LTD
Capital,Resources,5400001760,24.12.2013,Information Assurance Project,External Design and Supervision Fees,1.80,APPSENSE LTD
Revenue,Resources,5105641258,11.12.2013,County Hall Central Mail Room,Clothing & Laundry,15.24,ARCO LTD
Revenue,Resources,5105641258,11.12.2013,County Hall Central Mail Room,Clothing & Laundry,10.16,ARCO LTD
Revenue,Resources,5105641258,11.12.2013,County Hall Central Mail Room,Clothing & Laundry,9.00,ARCO LTD
Revenue,Resources,5105640306,06.12.2013,County Hall Central Mail Room,Clothing & Laundry,11.19,ARCO LTD
Revenue,Economy & Environment,5105640016,04.12.2013,The Heights,Operational Equipment,8.54,ARCO LTD
Revenue,Economy & Environment,5105643067,20.12.2013,The Heights,Clothing & Laundry,14.40,ARCO LTD
Revenue,Economy & Environment,5105643067,20.12.2013,The Heights,Clothing & Laundry,40.64,ARCO LTD
Revenue,Economy & Environment,5105642935,18.12.2013,The Heights,Clothing & Laundry,20.00,ARCO LTD
Revenue,Economy & Environment,5105642935,18.12.2013,The Heights,Clothing & Laundry,3.60,ARCO LTD
Revenue,Economy & Environment,5105640060,04.12.2013,The Heights,Clothing & Laundry,8.01,ARCO LTD
Revenue,Economy & Environment,5105640274,04.12.2013,Medina Leisure Centre,Clothing & Laundry,9.62,ARCO LTD
Revenue,Economy & Environment,5105640060,04.12.2013,Westridge Squash Courts,Clothing & Laundry,1.61,ARCO LTD
Revenue,Economy & Environment,5105644118,24.12.2013,Fire Technical Support,General Materials,84.20,ARCO LTD
Revenue,Economy & Environment,5105644118,24.12.2013,Fire Technical Support,General Materials,71.10,ARCO LTD
Revenue,Economy & Environment,5105644118,24.12.2013,Fire Technical Support,General Materials,192.00,ARCO LTD
Revenue,Economy & Environment,5105644118,24.12.2013,Fire Technical Support,General Materials,239.28,ARCO LTD
Revenue,Economy & Environment,5105643604,20.12.2013,Planning Business Support,Office Equipment,32.92,ARCO LTD
Revenue,Economy & Environment,5105640056,04.12.2013,Development Control,Clothing & Laundry,19.99,ARCO LTD
Revenue,Economy & Environment,5105642405,18.12.2013,Emergency Management,Operational Equipment,633.33,ARGOS BUSINESS SOLUTIONS-CORP.LINK
Revenue,Economy & Environment,5105642405,18.12.2013,Emergency Management,Operational Equipment,15.82,ARGOS BUSINESS SOLUTIONS-CORP.LINK
Capital,Resources,5105639203,04.12.2013,Capital Receipts,External Design and Supervision Fees,"1,450.00",ARID DESIGN LTD
Revenue,Community Wellbeing & Social Care,5105640097,06.12.2013,Integrated Community Equipment Service,Operational Equipment,621.00,ARJO MED AB LTD
Revenue,Community Wellbeing & Social Care,5105640097,06.12.2013,Integrated Community Equipment Service,Operational Equipment,13.00,ARJO MED AB LTD
Revenue,Community Wellbeing & Social Care,5105641272,13.12.2013,31 Carter Avenue,Maintenance of Operational Equipment,39.00,ARJO MED AB LTD
Revenue,Community Wellbeing & Social Care,5105641506,13.12.2013,40 Venner Avenue,Maintenance of Operational Equipment,226.40,ARJO MED AB LTD
Revenue,Community Wellbeing & Social Care,5105642023,24.12.2013,Highmead,Maintenance of Operational Equipment,135.22,ARJO MED AB LTD
Revenue,Childrens Services,5105642437,18.12.2013,Beaulieu House,Operational Equipment,128.21,ARJO MED AB LTD
Revenue,Childrens Services,5105642437,18.12.2013,Beaulieu House,Operational Equipment,66.00,ARJO MED AB LTD
Revenue,Childrens Services,5105640216,04.12.2013,Beaulieu House,Minor Works,39.00,ARJO MED AB LTD
Revenue,Childrens Services,5105640219,04.12.2013,Beaulieu House,Minor Works,80.00,ARJO MED AB LTD
Revenue,Childrens Services,5105640221,04.12.2013,Beaulieu House,Minor Works,308.50,ARJO MED AB LTD
Revenue,Childrens Services,5105640222,04.12.2013,Beaulieu House,Minor Works,78.00,ARJO MED AB LTD
Revenue,Economy & Environment,5105643390,20.12.2013,Rights of Way Operations,Advertising & Publicity,30.00,ARRETON COMMUNITY HALL FUND
Revenue,Childrens Services,5105641250,13.12.2013,In-house Fostering,Support Children,702.00,ASSESSMENT & QUALIFICATION ALLIANCE
Revenue,Resources,5105641492,11.12.2013,Electoral Registration Office,Training,695.00,ASSOCIATION OF ELECTORAL ADMINISTRATORS
Revenue,Economy & Environment,5105641246,11.12.2013,Fire Technical Support,Vehicle Maintenance Costs,-7.37,ATS EUROMASTER LTD
Revenue,Economy & Environment,5105641246,11.12.2013,Fire Technical Support,Vehicle Maintenance Costs,-7.37,ATS EUROMASTER LTD
Revenue,Economy & Environment,5105641244,11.12.2013,Fire Technical Support,Vehicle Maintenance Costs,14.74,ATS EUROMASTER LTD
Revenue,Economy & Environment,5105641244,11.12.2013,Fire Technical Support,Vehicle Maintenance Costs,226.34,ATS EUROMASTER LTD
Revenue,Economy & Environment,5105641246,11.12.2013,Fire Technical Support,Vehicle Maintenance Costs,-113.17,ATS EUROMASTER LTD
Revenue,Economy & Environment,5105636631,11.12.2013,Fire Technical Support,Vehicle Maintenance Costs,130.84,ATS EUROMASTER LTD
Revenue,Economy & Environment,5105636631,11.12.2013,Fire Technical Support,Vehicle Maintenance Costs,62.00,ATS EUROMASTER LTD
Revenue,Economy & Environment,5105630013,09.12.2013,Fire Technical Support,Vehicle Maintenance Costs,14.74,ATS EUROMASTER LTD
Revenue,Economy & Environment,5105640002,04.12.2013,Fire Technical Support,Vehicle Maintenance Costs,-43.31,ATS EUROMASTER LTD
Revenue,Economy & Environment,5105640002,04.12.2013,Fire Technical Support,Vehicle Maintenance Costs,-7.37,ATS EUROMASTER LTD
Revenue,Economy & Environment,5105640002,04.12.2013,Fire Technical Support,Vehicle Maintenance Costs,-7.37,ATS EUROMASTER LTD
Revenue,Economy & Environment,5105640002,04.12.2013,Fire Technical Support,Vehicle Maintenance Costs,-113.17,ATS EUROMASTER LTD
Revenue,Economy & Environment,5105641028,09.12.2013,Fire Technical Support,Vehicle Maintenance Costs,-422.38,ATS EUROMASTER LTD
Revenue,Economy & Environment,5105641028,09.12.2013,Fire Technical Support,Vehicle Maintenance Costs,-121.06,ATS EUROMASTER LTD
Revenue,Economy & Environment,5105641028,09.12.2013,Fire Technical Support,Vehicle Maintenance Costs,-14.74,ATS EUROMASTER LTD
Revenue,Economy & Environment,5105641027,09.12.2013,Fire Technical Support,Vehicle Maintenance Costs,43.31,ATS EUROMASTER LTD
Revenue,Economy & Environment,5105641028,09.12.2013,Fire Technical Support,Vehicle Maintenance Costs,-86.62,ATS EUROMASTER LTD
Revenue,Economy & Environment,5105641028,09.12.2013,Fire Technical Support,Vehicle Maintenance Costs,-14.74,ATS EUROMASTER LTD
Revenue,Economy & Environment,5105641027,09.12.2013,Fire Technical Support,Vehicle Maintenance Costs,7.37,ATS EUROMASTER LTD
Revenue,Economy & Environment,5105641027,09.12.2013,Fire Technical Support,Vehicle Maintenance Costs,7.37,ATS EUROMASTER LTD
Revenue,Economy & Environment,5105641028,09.12.2013,Fire Technical Support,Vehicle Maintenance Costs,-14.74,ATS EUROMASTER LTD
Revenue,Economy & Environment,5105641028,09.12.2013,Fire Technical Support,Vehicle Maintenance Costs,-226.34,ATS EUROMASTER LTD
Revenue,Economy & Environment,5105641027,09.12.2013,Fire Technical Support,Vehicle Maintenance Costs,113.17,ATS EUROMASTER LTD
Revenue,Economy & Environment,5105641244,11.12.2013,Fire Technical Support,Vehicle Maintenance Costs,121.06,ATS EUROMASTER LTD
Revenue,Economy & Environment,5105641244,11.12.2013,Fire Technical Support,Vehicle Maintenance Costs,14.74,ATS EUROMASTER LTD
Revenue,Economy & Environment,5105641244,11.12.2013,Fire Technical Support,Vehicle Maintenance Costs,422.38,ATS EUROMASTER LTD
Revenue,Economy & Environment,5105641246,11.12.2013,Fire Technical Support,Vehicle Maintenance Costs,-43.31,ATS EUROMASTER LTD
Revenue,Economy & Environment,5105641244,11.12.2013,Fire Technical Support,Vehicle Maintenance Costs,86.62,ATS EUROMASTER LTD
Revenue,Economy & Environment,5105641244,11.12.2013,Fire Technical Support,Vehicle Maintenance Costs,14.74,ATS EUROMASTER LTD
Revenue,Economy & Environment,5105636631,11.12.2013,Fire Technical Support,Vehicle Maintenance Costs,132.95,ATS EUROMASTER LTD
Revenue,Economy & Environment,5105630013,09.12.2013,Fire Technical Support,Vehicle Maintenance Costs,422.38,ATS EUROMASTER LTD
Revenue,Economy & Environment,5105636631,11.12.2013,Fire Technical Support,Vehicle Maintenance Costs,377.98,ATS EUROMASTER LTD
Revenue,Economy & Environment,5105630013,09.12.2013,Fire Technical Support,Vehicle Maintenance Costs,121.06,ATS EUROMASTER LTD
Revenue,Economy & Environment,5105636631,11.12.2013,Fire Technical Support,Vehicle Maintenance Costs,18.80,ATS EUROMASTER LTD
Revenue,Economy & Environment,5105636631,11.12.2013,Fire Technical Support,Vehicle Maintenance Costs,4.64,ATS EUROMASTER LTD
Revenue,Economy & Environment,5105636631,11.12.2013,Fire Technical Support,Vehicle Maintenance Costs,7.44,ATS EUROMASTER LTD
Revenue,Economy & Environment,5105636631,11.12.2013,Fire Technical Support,Vehicle Maintenance Costs,17.40,ATS EUROMASTER LTD
Revenue,Economy & Environment,5105636631,11.12.2013,Fire Technical Support,Vehicle Maintenance Costs,318.33,ATS EUROMASTER LTD
Revenue,Economy & Environment,5105636631,11.12.2013,Fire Technical Support,Vehicle Maintenance Costs,413.99,ATS EUROMASTER LTD
Revenue,Economy & Environment,5105630013,09.12.2013,Fire Technical Support,Vehicle Maintenance Costs,14.74,ATS EUROMASTER LTD
Revenue,Economy & Environment,5105630013,09.12.2013,Fire Technical Support,Vehicle Maintenance Costs,14.74,ATS EUROMASTER LTD
Revenue,Economy & Environment,5105630013,09.12.2013,Fire Technical Support,Vehicle Maintenance Costs,86.62,ATS EUROMASTER LTD
Revenue,Economy & Environment,5105630013,09.12.2013,Fire Technical Support,Vehicle Maintenance Costs,226.34,ATS EUROMASTER LTD
Revenue,Community Wellbeing & Social Care,5105644220,24.12.2013,Elderly Frail Residential Care,Charges from Independent Providers,"1,998.08",AUTUMN HOUSE CARE LTD
Revenue,Community Wellbeing & Social Care,5105644220,24.12.2013,Elderly Frail Residential Care,Charges from Independent Providers,"1,998.08",AUTUMN HOUSE CARE LTD
Revenue,Community Wellbeing & Social Care,5105639271,04.12.2013,Elderly Frail Residential Care,Charges from Independent Providers,"1,699.88",AUTUMN HOUSE CARE LTD
Revenue,Community Wellbeing & Social Care,5105639271,04.12.2013,Elderly Frail Residential Care,Charges from Independent Providers,"1,998.08",AUTUMN HOUSE CARE LTD
Revenue,Community Wellbeing & Social Care,5105639271,04.12.2013,Elderly Frail Residential Care,Charges from Independent Providers,"1,998.08",AUTUMN HOUSE CARE LTD
Revenue,Community Wellbeing & Social Care,5105639271,04.12.2013,Elderly Frail Residential Care,Charges from Independent Providers,"1,998.08",AUTUMN HOUSE CARE LTD
Revenue,Community Wellbeing & Social Care,5105644220,24.12.2013,Elderly Mentally Ill Residential Care,Regular Respite Care,"1,699.88",AUTUMN HOUSE CARE LTD
Revenue,Community Wellbeing & Social Care,5105639271,04.12.2013,Elderly Mentally Ill Residential Care,Regular Respite Care,"1,699.88",AUTUMN HOUSE CARE LTD
Revenue,Community Wellbeing & Social Care,5105644220,24.12.2013,Elderly Mentally Ill Residential Care,Charges from Independent Providers,"1,998.08",AUTUMN HOUSE CARE LTD
Revenue,Community Wellbeing & Social Care,5105644220,24.12.2013,Elderly Mentally Ill Residential Care,Charges from Independent Providers,"1,998.08",AUTUMN HOUSE CARE LTD
Revenue,Community Wellbeing & Social Care,5105644220,24.12.2013,Elderly Mentally Ill Residential Care,Charges from Independent Providers,"1,998.08",AUTUMN HOUSE CARE LTD
Revenue,Community Wellbeing & Social Care,5105644220,24.12.2013,Elderly Mentally Ill Residential Care,Charges from Independent Providers,"1,998.08",AUTUMN HOUSE CARE LTD
Revenue,Community Wellbeing & Social Care,5105644220,24.12.2013,Elderly Mentally Ill Residential Care,Charges from Independent Providers,"1,998.08",AUTUMN HOUSE CARE LTD
Revenue,Community Wellbeing & Social Care,5105644220,24.12.2013,Elderly Mentally Ill Residential Care,Charges from Independent Providers,"1,998.08",AUTUMN HOUSE CARE LTD
Revenue,Community Wellbeing & Social Care,5105644220,24.12.2013,Elderly Mentally Ill Residential Care,Charges from Independent Providers,"1,998.08",AUTUMN HOUSE CARE LTD
Revenue,Community Wellbeing & Social Care,5105644220,24.12.2013,Elderly Mentally Ill Residential Care,Charges from Independent Providers,"1,699.88",AUTUMN HOUSE CARE LTD
Revenue,Community Wellbeing & Social Care,5105644220,24.12.2013,Elderly Mentally Ill Residential Care,Charges from Independent Providers,"1,998.08",AUTUMN HOUSE CARE LTD
Revenue,Community Wellbeing & Social Care,5105644220,24.12.2013,Elderly Mentally Ill Residential Care,Charges from Independent Providers,"1,998.08",AUTUMN HOUSE CARE LTD
Revenue,Community Wellbeing & Social Care,5105643144,20.12.2013,Elderly Mentally Ill Residential Care,Charges from Independent Providers,"1,998.08",AUTUMN HOUSE CARE LTD
Revenue,Community Wellbeing & Social Care,5105644220,24.12.2013,Elderly Mentally Ill Residential Care,Charges from Independent Providers,"1,699.88",AUTUMN HOUSE CARE LTD
Revenue,Community Wellbeing & Social Care,5105644220,24.12.2013,Elderly Mentally Ill Residential Care,Charges from Independent Providers,"1,998.08",AUTUMN HOUSE CARE LTD
Revenue,Community Wellbeing & Social Care,5105644220,24.12.2013,Elderly Mentally Ill Residential Care,Charges from Independent Providers,"1,998.08",AUTUMN HOUSE CARE LTD
Revenue,Community Wellbeing & Social Care,5105644220,24.12.2013,Elderly Mentally Ill Residential Care,Charges from Independent Providers,"1,998.08",AUTUMN HOUSE CARE LTD
Revenue,Community Wellbeing & Social Care,5105644220,24.12.2013,Elderly Mentally Ill Residential Care,Charges from Independent Providers,"1,699.88",AUTUMN HOUSE CARE LTD
Revenue,Community Wellbeing & Social Care,5105639271,04.12.2013,Elderly Mentally Ill Residential Care,Charges from Independent Providers,"1,699.88",AUTUMN HOUSE CARE LTD
Revenue,Community Wellbeing & Social Care,5105643144,20.12.2013,Elderly Mentally Ill Residential Care,Charges from Independent Providers,428.16,AUTUMN HOUSE CARE LTD
Revenue,Community Wellbeing & Social Care,5105639271,04.12.2013,Elderly Mentally Ill Residential Care,Charges from Independent Providers,"1,998.08",AUTUMN HOUSE CARE LTD
Revenue,Community Wellbeing & Social Care,5105639271,04.12.2013,Elderly Mentally Ill Residential Care,Charges from Independent Providers,"1,998.08",AUTUMN HOUSE CARE LTD
Revenue,Community Wellbeing & Social Care,5105639271,04.12.2013,Elderly Mentally Ill Residential Care,Charges from Independent Providers,"1,998.08",AUTUMN HOUSE CARE LTD
Revenue,Community Wellbeing & Social Care,5105639271,04.12.2013,Elderly Mentally Ill Residential Care,Charges from Independent Providers,"1,998.08",AUTUMN HOUSE CARE LTD
Revenue,Community Wellbeing & Social Care,5105639271,04.12.2013,Elderly Mentally Ill Residential Care,Charges from Independent Providers,"1,998.08",AUTUMN HOUSE CARE LTD
Revenue,Community Wellbeing & Social Care,5105639271,04.12.2013,Elderly Mentally Ill Residential Care,Charges from Independent Providers,"1,998.08",AUTUMN HOUSE CARE LTD
Revenue,Community Wellbeing & Social Care,5105639271,04.12.2013,Elderly Mentally Ill Residential Care,Charges from Independent Providers,"1,998.08",AUTUMN HOUSE CARE LTD
Revenue,Community Wellbeing & Social Care,5105639271,04.12.2013,Elderly Mentally Ill Residential Care,Charges from Independent Providers,"1,699.88",AUTUMN HOUSE CARE LTD
Revenue,Community Wellbeing & Social Care,5105639271,04.12.2013,Elderly Mentally Ill Residential Care,Charges from Independent Providers,"1,998.08",AUTUMN HOUSE CARE LTD
Revenue,Community Wellbeing & Social Care,5105639271,04.12.2013,Elderly Mentally Ill Residential Care,Charges from Independent Providers,"1,998.08",AUTUMN HOUSE CARE LTD
Revenue,Community Wellbeing & Social Care,5105639271,04.12.2013,Elderly Mentally Ill Residential Care,Charges from Independent Providers,"1,998.08",AUTUMN HOUSE CARE LTD
Revenue,Community Wellbeing & Social Care,5105639271,04.12.2013,Elderly Mentally Ill Residential Care,Charges from Independent Providers,"1,998.08",AUTUMN HOUSE CARE LTD
Revenue,Community Wellbeing & Social Care,5105639271,04.12.2013,Physical Disability Residential Care,Charges from Independent Providers,"1,998.08",AUTUMN HOUSE CARE LTD
Revenue,Community Wellbeing & Social Care,5105639271,04.12.2013,Physical Disability Residential Care,Charges from Independent Providers,"1,998.08",AUTUMN HOUSE CARE LTD
Revenue,Community Wellbeing & Social Care,5105644220,24.12.2013,Physical Disability Residential Care,Charges from Independent Providers,"1,998.08",AUTUMN HOUSE CARE LTD
Revenue,Community Wellbeing & Social Care,5105644220,24.12.2013,Physical Disability Residential Care,Charges from Independent Providers,"1,998.08",AUTUMN HOUSE CARE LTD
Revenue,Community Wellbeing & Social Care,5105639271,04.12.2013,Dementia Residential care,Charges from Independent Providers,"1,998.08",AUTUMN HOUSE CARE LTD
Revenue,Community Wellbeing & Social Care,5105639271,04.12.2013,Dementia Residential care,Charges from Independent Providers,"1,998.08",AUTUMN HOUSE CARE LTD
Revenue,Community Wellbeing & Social Care,5105644220,24.12.2013,Dementia Residential care,Charges from Independent Providers,"1,998.08",AUTUMN HOUSE CARE LTD
Revenue,Community Wellbeing & Social Care,5105644220,24.12.2013,Dementia Residential care,Charges from Independent Providers,"1,998.08",AUTUMN HOUSE CARE LTD
Revenue,Community Wellbeing & Social Care,5105639271,04.12.2013,REDACTED PERSONAL DATA,Order Settlement,"1,998.08",AUTUMN HOUSE CARE LTD
Revenue,Community Wellbeing & Social Care,5105644220,24.12.2013,REDACTED PERSONAL DATA,Order Settlement,"1,998.08",AUTUMN HOUSE CARE LTD
Revenue,Community Wellbeing & Social Care,5105644220,24.12.2013,REDACTED PERSONAL DATA,Order Settlement,"1,998.08",AUTUMN HOUSE CARE LTD
Revenue,Community Wellbeing & Social Care,5105639271,04.12.2013,REDACTED PERSONAL DATA,Order Settlement,"1,998.08",AUTUMN HOUSE CARE LTD
Revenue,Resources,5105641431,11.12.2013,Payroll,Consultants Fees,138.00,AVALON VALE UK LTD
Revenue,Childrens Services,5105643051,18.12.2013,Youth - Duke of Edinburgh Award,Operational Equipment,10.00,AWARD SCHEME LTD
Revenue,Childrens Services,5105643051,18.12.2013,Youth - Duke of Edinburgh Award,Operational Equipment,10.00,AWARD SCHEME LTD
Revenue,Childrens Services,5105643051,18.12.2013,Youth - Duke of Edinburgh Award,Operational Equipment,10.00,AWARD SCHEME LTD
Revenue,Childrens Services,5105643051,18.12.2013,Youth - Duke of Edinburgh Award,Operational Equipment,10.00,AWARD SCHEME LTD
Revenue,Childrens Services,5105643051,18.12.2013,Youth - Duke of Edinburgh Award,Operational Equipment,7.80,AWARD SCHEME LTD
Revenue,Childrens Services,5105643051,18.12.2013,Youth - Duke of Edinburgh Award,Operational Equipment,20.00,AWARD SCHEME LTD
Revenue,Childrens Services,5105643051,18.12.2013,Youth - Duke of Edinburgh Award,Operational Equipment,6.25,AWARD SCHEME LTD
Revenue,Childrens Services,5105643051,18.12.2013,Youth - Duke of Edinburgh Award,Operational Equipment,3.90,AWARD SCHEME LTD
Revenue,Childrens Services,5105643658,20.12.2013,Reviewing Officer,Agency staff,"1,489.80",AZ SOCIAL CARE SOLUTIONS LTD
Revenue,Childrens Services,5105643839,24.12.2013,Reviewing Officer,Agency staff,"1,489.80",AZ SOCIAL CARE SOLUTIONS LTD
Revenue,Childrens Services,5105644011,24.12.2013,Reviewing Officer,Agency staff,"1,489.80",AZ SOCIAL CARE SOLUTIONS LTD
Revenue,Childrens Services,5105644013,24.12.2013,Reviewing Officer,Agency staff,"1,489.80",AZ SOCIAL CARE SOLUTIONS LTD
Revenue,Childrens Services,5105641600,13.12.2013,Leaving Care Costs,Accommodation Costs - Service Users,57.50,REDACTED PERSONAL DATA
Revenue,Childrens Services,5105643185,20.12.2013,Leaving Care Costs,Accommodation Costs - Service Users,115.00,REDACTED PERSONAL DATA
Revenue,Childrens Services,5105640379,06.12.2013,Leaving Care Costs,Accommodation Costs - Service Users,57.50,REDACTED PERSONAL DATA
Revenue,Childrens Services,5105643185,20.12.2013,Leaving Care Costs,Support Children,241.78,REDACTED PERSONAL DATA
Revenue,Childrens Services,5105640379,06.12.2013,Leaving Care Costs,Support Children,120.89,REDACTED PERSONAL DATA
Revenue,Childrens Services,5105641600,13.12.2013,Leaving Care Costs,Support Children,120.89,REDACTED PERSONAL DATA
Revenue,Community Wellbeing & Social Care,5105644235,24.12.2013,Learning Disability Residential Care,Charges from Independent Providers,"2,625.00",REDACTED PERSONAL DATA
Revenue,Community Wellbeing & Social Care,5105644235,24.12.2013,Learning Disability Residential Care,Charges from Independent Providers,"1,811.88",REDACTED PERSONAL DATA
Revenue,Community Wellbeing & Social Care,5105644235,24.12.2013,Learning Disability Residential Care,Charges from Independent Providers,"1,811.88",REDACTED PERSONAL DATA
Revenue,Community Wellbeing & Social Care,5105639286,04.12.2013,Learning Disability Residential Care,Charges from Independent Providers,"1,811.88",REDACTED PERSONAL DATA
Revenue,Community Wellbeing & Social Care,5105639286,04.12.2013,Learning Disability Residential Care,Charges from Independent Providers,"2,625.00",REDACTED PERSONAL DATA
Revenue,Community Wellbeing & Social Care,5105639286,04.12.2013,Learning Disability Residential Care,Charges from Independent Providers,"1,811.88",REDACTED PERSONAL DATA
Revenue,Community Wellbeing & Social Care,5105643885,24.12.2013,Leaseholds by LA,Accommodation Costs - Leaseholder Payments,815.49,REDACTED PERSONAL DATA
Revenue,Resources,5105643760,20.12.2013,Staff Benefits,Payment to Private Contractors,50.00,REDACTED PERSONAL DATA
Revenue,Resources,5105643759,20.12.2013,Staff Benefits,Payment to Private Contractors,100.00,REDACTED PERSONAL DATA
Revenue,Resources,5105643758,20.12.2013,Staff Benefits,Payment to Private Contractors,243.00,REDACTED PERSONAL DATA
Revenue,Community Wellbeing & Social Care,5105643892,24.12.2013,Leaseholds by LA,Accommodation Costs - Leaseholder Payments,799.50,REDACTED PERSONAL DATA
Revenue,Community Wellbeing & Social Care,5105643892,24.12.2013,Leaseholds by LA,Accommodation Costs - Leaseholder Payments,866.67,REDACTED PERSONAL DATA
Revenue,Community Wellbeing & Social Care,5105643892,24.12.2013,Leaseholds by LA,Accommodation Costs - Leaseholder Payments,866.67,REDACTED PERSONAL DATA
Revenue,Community Wellbeing & Social Care,5105643892,24.12.2013,Leaseholds by LA,Accommodation Costs - Leaseholder Payments,888.33,REDACTED PERSONAL DATA
Revenue,Community Wellbeing & Social Care,5105643892,24.12.2013,Leaseholds by LA,Accommodation Costs - Leaseholder Payments,799.50,REDACTED PERSONAL DATA
Revenue,Childrens Services,5105644089,24.12.2013,Fostering Team,Training,200.00,BAAF REGISTERED CHARITY
Revenue,Childrens Services,5105644088,24.12.2013,Fostering Team,Training,675.00,BAAF REGISTERED CHARITY
Revenue,Childrens Services,5105644088,24.12.2013,Fostering Team,Training,55.50,BAAF REGISTERED CHARITY
Revenue,Childrens Services,5105644089,24.12.2013,Fostering Team,Training,53.20,BAAF REGISTERED CHARITY
Revenue,Childrens Services,5105643046,18.12.2013,Purchased Residential,Charges from Independent Providers,"16,039.25",BACK ON TRACK
Revenue,Childrens Services,5105643047,18.12.2013,Purchased Residential,Charges from Independent Providers,"13,574.79",BACK ON TRACK
Revenue,Resources,5105643544,20.12.2013,Administrative Buildings,Building & Room Rental,"6,625.00",BAE SYSTEMS
Revenue,Childrens Services,5105641513,13.12.2013,Beaulieu House,Minor Works,25.00,BAKARE BEDS LTD
Revenue,Childrens Services,5105636343,13.12.2013,Beaulieu House,Minor Works,75.00,BAKARE BEDS LTD
Revenue,Childrens Services,5105636343,13.12.2013,Beaulieu House,Minor Works,250.00,BAKARE BEDS LTD
Revenue,Childrens Services,5105636343,13.12.2013,Beaulieu House,General Materials,297.50,BAKARE BEDS LTD
Revenue,Economy & Environment,5105640604,06.12.2013,Fire Technical Support,Payment to Private Contractors,"6,651.40",BALLYCLARE LTD
Revenue,Economy & Environment,5105638471,04.12.2013,Fire Technical Support,Payment to Private Contractors,437.77,BALLYCLARE LTD
Revenue,Economy & Environment,5105644054,24.12.2013,Fire Technical Support,Payment to Private Contractors,"6,651.40",BALLYCLARE LTD
Revenue,Economy & Environment,5105644008,24.12.2013,Fire Technical Support,Payment to Private Contractors,439.86,BALLYCLARE LTD
Revenue,Economy & Environment,5105643391,20.12.2013,Diversity & Workforce,Operational Equipment,120.00,BARTLETTS SERVICE STATION
Revenue,Economy & Environment,5105642158,13.12.2013,Trading Standards,Vehicle Hire External,25.00,BARTLETTS SERVICE STATION
Revenue,Resources,5105643686,20.12.2013,Staff Benefits,Payment to Private Contractors,60.00,BARTON PRIMARY SCHOOL & EARLY YEARS
Revenue,Resources,5105643684,20.12.2013,Staff Benefits,Payment to Private Contractors,50.00,BARTON PRIMARY SCHOOL & EARLY YEARS
Revenue,Resources,5105643685,20.12.2013,Staff Benefits,Payment to Private Contractors,11.67,BARTON PRIMARY SCHOOL & EARLY YEARS
Revenue,Childrens Services,5105640794,06.12.2013,Support for Looked After Children (Children Young Adults Disability),Charges from Independent Providers,51.07,BARTON PRIMARY SCHOOL & EARLY YEARS
Revenue,Childrens Services,5105640794,06.12.2013,Support for Looked After Children (Children Young Adults Disability),Charges from Independent Providers,56.75,BARTON PRIMARY SCHOOL & EARLY YEARS
Revenue,Economy & Environment,5105640198,04.12.2013,LSTF Grant,Consultants Fees,550.00,BASEMAP LIMITED
Revenue,Economy & Environment,5105640198,04.12.2013,LSTF Grant,Consultants Fees,150.00,BASEMAP LIMITED
Revenue,Community Wellbeing & Social Care,5105644479,24.12.2013,Elderly Frail Nursing Mainland,Charges from Independent Providers,"2,269.40",BEAUMONT LODGE LTD
Revenue,Community Wellbeing & Social Care,5105639525,04.12.2013,Elderly Frail Nursing Mainland,Charges from Independent Providers,"2,269.40",BEAUMONT LODGE LTD
Revenue,Community Wellbeing & Social Care,5105642725,18.12.2013,Community Laundry Service,Clothing & Laundry,13.86,BERENDSEN
Revenue,Community Wellbeing & Social Care,5105642977,18.12.2013,Community Laundry Service,Clothing & Laundry,13.74,BERENDSEN
Revenue,Community Wellbeing & Social Care,5105642979,18.12.2013,Community Laundry Service,Clothing & Laundry,13.74,BERENDSEN
Revenue,Community Wellbeing & Social Care,5105640168,04.12.2013,Community Laundry Service,Clothing & Laundry,13.74,BERENDSEN
Revenue,Community Wellbeing & Social Care,5105640174,04.12.2013,Community Laundry Service,Clothing & Laundry,13.74,BERENDSEN
Revenue,Community Wellbeing & Social Care,5105640171,04.12.2013,Community Laundry Service,Clothing & Laundry,13.74,BERENDSEN
Revenue,Community Wellbeing & Social Care,5105640178,04.12.2013,Community Laundry Service,Clothing & Laundry,25.30,BERENDSEN
Revenue,Community Wellbeing & Social Care,5105642981,18.12.2013,B&B Properties,Accommodation Costs - Bed & Breakfast,"5,280.00",BERTRAM LODGE
Revenue,Community Wellbeing & Social Care,5105641518,11.12.2013,Downside Community & Learning Centre,Consumable Cleaning Materials,48.48,BETA PAK LTD
Revenue,Community Wellbeing & Social Care,5105641518,11.12.2013,Downside Community & Learning Centre,Consumable Cleaning Materials,7.41,BETA PAK LTD
Revenue,Community Wellbeing & Social Care,5105641518,11.12.2013,Downside Community & Learning Centre,Consumable Cleaning Materials,19.97,BETA PAK LTD
Revenue,Community Wellbeing & Social Care,5105641518,11.12.2013,Downside Community & Learning Centre,Consumable Cleaning Materials,5.44,BETA PAK LTD
Revenue,Community Wellbeing & Social Care,5105642996,18.12.2013,Downside Community & Learning Centre,Consumable Cleaning Materials,5.44,BETA PAK LTD
Revenue,Community Wellbeing & Social Care,5105642996,18.12.2013,Downside Community & Learning Centre,Consumable Cleaning Materials,25.04,BETA PAK LTD
Revenue,Community Wellbeing & Social Care,5105642996,18.12.2013,Downside Community & Learning Centre,Consumable Cleaning Materials,19.95,BETA PAK LTD
Revenue,Community Wellbeing & Social Care,5105643661,20.12.2013,Downside Community & Learning Centre,Consumable Cleaning Materials,122.91,BETA PAK LTD
Revenue,Community Wellbeing & Social Care,5105643606,20.12.2013,31 Carter Avenue,Operational Equipment,51.40,BETA PAK LTD
Revenue,Community Wellbeing & Social Care,5105642992,18.12.2013,31 Carter Avenue,Operational Equipment,12.85,BETA PAK LTD
Revenue,Community Wellbeing & Social Care,5105641898,13.12.2013,31 Carter Avenue,Operational Equipment,75.30,BETA PAK LTD
Revenue,Community Wellbeing & Social Care,5105641889,13.12.2013,31 Carter Avenue,Operational Equipment,18.95,BETA PAK LTD
Revenue,Community Wellbeing & Social Care,5105641257,11.12.2013,Overbrook,Operational Equipment,84.13,BETA PAK LTD
Revenue,Community Wellbeing & Social Care,5105640062,04.12.2013,Overbrook,Operational Equipment,1.96,BETA PAK LTD
Revenue,Community Wellbeing & Social Care,5105643662,20.12.2013,Seagulls,Operational Equipment,75.74,BETA PAK LTD
Revenue,Community Wellbeing & Social Care,5105643605,20.12.2013,Seagulls,Operational Equipment,4.80,BETA PAK LTD
Revenue,Community Wellbeing & Social Care,5105642587,20.12.2013,Seagulls,Operational Equipment,24.19,BETA PAK LTD
Revenue,Community Wellbeing & Social Care,5105641233,18.12.2013,Plean Dene,Operational Equipment,106.52,BETA PAK LTD
Revenue,Community Wellbeing & Social Care,5105641233,18.12.2013,Plean Dene,Operational Equipment,11.49,BETA PAK LTD
Revenue,Community Wellbeing & Social Care,5105642406,18.12.2013,Plean Dene,Operational Equipment,-70.60,BETA PAK LTD
Revenue,Community Wellbeing & Social Care,5105643100,20.12.2013,Plean Dene,Operational Equipment,132.07,BETA PAK LTD
Revenue,Community Wellbeing & Social Care,5105643100,20.12.2013,Plean Dene,Operational Equipment,14.75,BETA PAK LTD
Revenue,Community Wellbeing & Social Care,5105643471,20.12.2013,Plean Dene,Operational Equipment,116.55,BETA PAK LTD
Revenue,Community Wellbeing & Social Care,5105643471,20.12.2013,Plean Dene,Operational Equipment,55.19,BETA PAK LTD
Revenue,Community Wellbeing & Social Care,5105643481,20.12.2013,Saxonbury,Operational Equipment,144.61,BETA PAK LTD
Revenue,Community Wellbeing & Social Care,5105643664,20.12.2013,Saxonbury,Operational Equipment,3.89,BETA PAK LTD
Revenue,Community Wellbeing & Social Care,5105640063,04.12.2013,Saxonbury,Operational Equipment,6.49,BETA PAK LTD
Revenue,Community Wellbeing & Social Care,5105643059,20.12.2013,Saxonbury,Operational Equipment,162.44,BETA PAK LTD
Revenue,Community Wellbeing & Social Care,5105641430,11.12.2013,Saxonbury,Operational Equipment,62.90,BETA PAK LTD
Revenue,Community Wellbeing & Social Care,5105642160,18.12.2013,Saxonbury,Operational Equipment,-19.13,BETA PAK LTD
Revenue,Community Wellbeing & Social Care,5105641979,13.12.2013,40 Venner Avenue,Catering Purchases,14.48,BETA PAK LTD
Revenue,Community Wellbeing & Social Care,5105641432,11.12.2013,Highmead,Operational Equipment,151.69,BETA PAK LTD
Revenue,Community Wellbeing & Social Care,5105643418,20.12.2013,The Laurels,Operational Equipment,220.91,BETA PAK LTD
Revenue,Community Wellbeing & Social Care,5105641256,11.12.2013,The Laurels,Operational Equipment,8.85,BETA PAK LTD
Revenue,Community Wellbeing & Social Care,5105641240,11.12.2013,Wightcare,General Materials,135.99,BETA PAK LTD
Revenue,Community Wellbeing & Social Care,5105641239,11.12.2013,Wightcare,General Materials,135.99,BETA PAK LTD
Revenue,Community Wellbeing & Social Care,5105641127,11.12.2013,Adelaide Resource Centre,Clothing & Laundry,23.09,BETA PAK LTD
Revenue,Community Wellbeing & Social Care,5105641242,11.12.2013,Adelaide Resource Centre,Consumable Cleaning Materials,8.99,BETA PAK LTD
Revenue,Community Wellbeing & Social Care,5105642937,18.12.2013,Adelaide Resource Centre,Fixtures and Fittings,126.47,BETA PAK LTD
Revenue,Community Wellbeing & Social Care,5105642936,18.12.2013,Adelaide Resource Centre,Cleaning Contracts,45.77,BETA PAK LTD
Revenue,Community Wellbeing & Social Care,5105642995,18.12.2013,Adelaide Resource Centre,Cleaning Contracts,22.80,BETA PAK LTD
Revenue,Community Wellbeing & Social Care,5105642994,18.12.2013,Adelaide Resource Centre,Consumable Cleaning Materials,288.78,BETA PAK LTD
Revenue,Community Wellbeing & Social Care,5105641883,13.12.2013,Adelaide Resource Centre,Consumable Cleaning Materials,566.66,BETA PAK LTD
Revenue,Community Wellbeing & Social Care,5105643660,20.12.2013,Gouldings Resource Centre,Catering Purchases,30.85,BETA PAK LTD
Revenue,Community Wellbeing & Social Care,5105643814,24.12.2013,Gouldings Resource Centre,Catering Purchases,71.96,BETA PAK LTD
Revenue,Community Wellbeing & Social Care,5105641488,11.12.2013,Gouldings Resource Centre,Consumable Cleaning Materials,15.36,BETA PAK LTD
Revenue,Community Wellbeing & Social Care,5105641504,11.12.2013,Gouldings Resource Centre,Consumable Cleaning Materials,246.43,BETA PAK LTD
Revenue,Community Wellbeing & Social Care,5105640070,04.12.2013,Westminster House,Clothing & Laundry,41.04,BETA PAK LTD
Revenue,Community Wellbeing & Social Care,5105643498,20.12.2013,Westminster House,Clothing & Laundry,18.00,BETA PAK LTD
Revenue,Community Wellbeing & Social Care,5105643608,20.12.2013,Westminster House,Clothing & Laundry,82.08,BETA PAK LTD
Revenue,Community Wellbeing & Social Care,5105641060,11.12.2013,Westminster House,Consumable Cleaning Materials,30.54,BETA PAK LTD
Revenue,Community Wellbeing & Social Care,5105640071,04.12.2013,Westminster House,Consumable Cleaning Materials,63.44,BETA PAK LTD
Revenue,Community Wellbeing & Social Care,5105643607,20.12.2013,Westminster House,General Materials,45.60,BETA PAK LTD
Revenue,Community Wellbeing & Social Care,5105641243,11.12.2013,Westminster House,General Materials,23.43,BETA PAK LTD
Revenue,Community Wellbeing & Social Care,5105641259,11.12.2013,Westminster House,General Materials,66.98,BETA PAK LTD
Revenue,Economy & Environment,5105643510,20.12.2013,Medina Leisure Centre,Catering Purchases,41.88,BETA PAK LTD
Revenue,Economy & Environment,5105640124,18.12.2013,Medina Leisure Centre,Catering Purchases,55.60,BETA PAK LTD
Capital,Childrens Services,5105643663,20.12.2013,Adelaide & Gouldings Fixtures & Fittings,"Plant, Equipment & Furniture - Capital",109.99,BETA PAK LTD
Revenue,Economy & Environment,5105640123,18.12.2013,Medina Cafe Stock,Order Settlement,183.77,BETA PAK LTD
Revenue,Community Wellbeing & Social Care,5105640566,06.12.2013,Elderly Frail Homecare,Charges from Independent Providers,50.82,BETTER AT HOME IOW LTD
Revenue,Community Wellbeing & Social Care,5105640553,06.12.2013,Elderly Frail Homecare,Charges from Independent Providers,755.04,BETTER AT HOME IOW LTD
Revenue,Community Wellbeing & Social Care,5105640525,06.12.2013,Elderly Frail Homecare,Charges from Independent Providers,453.75,BETTER AT HOME IOW LTD
Revenue,Community Wellbeing & Social Care,5105640558,06.12.2013,Elderly Frail Homecare,Charges from Independent Providers,268.62,BETTER AT HOME IOW LTD
Revenue,Community Wellbeing & Social Care,5105640559,06.12.2013,Elderly Frail Homecare,Charges from Independent Providers,508.20,BETTER AT HOME IOW LTD
Revenue,Community Wellbeing & Social Care,5105640563,06.12.2013,Elderly Frail Homecare,Charges from Independent Providers,366.63,BETTER AT HOME IOW LTD
Revenue,Community Wellbeing & Social Care,5105640555,06.12.2013,Elderly Frail Homecare,Charges from Independent Providers,580.80,BETTER AT HOME IOW LTD
Revenue,Community Wellbeing & Social Care,5105640556,06.12.2013,Elderly Frail Homecare,Charges from Independent Providers,163.35,BETTER AT HOME IOW LTD
Revenue,Community Wellbeing & Social Care,5105640557,06.12.2013,Elderly Frail Homecare,Charges from Independent Providers,163.35,BETTER AT HOME IOW LTD
Revenue,Community Wellbeing & Social Care,5105640561,06.12.2013,Elderly Frail Homecare,Charges from Independent Providers,108.90,BETTER AT HOME IOW LTD
Revenue,Community Wellbeing & Social Care,5105640562,06.12.2013,Elderly Frail Homecare,Charges from Independent Providers,43.56,BETTER AT HOME IOW LTD
Revenue,Community Wellbeing & Social Care,5105640564,06.12.2013,Elderly Frail Homecare,Charges from Independent Providers,72.60,BETTER AT HOME IOW LTD
Revenue,Community Wellbeing & Social Care,5105640543,06.12.2013,Elderly Frail Homecare,Charges from Independent Providers,529.98,BETTER AT HOME IOW LTD
Revenue,Community Wellbeing & Social Care,5105640535,06.12.2013,Elderly Frail Homecare,Charges from Independent Providers,595.32,BETTER AT HOME IOW LTD
Revenue,Community Wellbeing & Social Care,5105640523,06.12.2013,Elderly Frail Homecare,Charges from Independent Providers,"1,248.72",BETTER AT HOME IOW LTD
Revenue,Community Wellbeing & Social Care,5105640529,06.12.2013,Elderly Frail Homecare,Charges from Independent Providers,428.34,BETTER AT HOME IOW LTD
Revenue,Community Wellbeing & Social Care,5105640532,06.12.2013,Elderly Frail Homecare,Charges from Independent Providers,863.94,BETTER AT HOME IOW LTD
Revenue,Community Wellbeing & Social Care,5105640538,06.12.2013,Elderly Frail Homecare,Charges from Independent Providers,508.20,BETTER AT HOME IOW LTD
Revenue,Community Wellbeing & Social Care,5105640537,06.12.2013,Elderly Frail Homecare,Charges from Independent Providers,889.35,BETTER AT HOME IOW LTD
Revenue,Community Wellbeing & Social Care,5105640527,06.12.2013,Elderly Frail Homecare,Charges from Independent Providers,"1,089.00",BETTER AT HOME IOW LTD
Revenue,Community Wellbeing & Social Care,5105640526,06.12.2013,Elderly Frail Homecare,Charges from Independent Providers,"1,056.33",BETTER AT HOME IOW LTD
Revenue,Community Wellbeing & Social Care,5105640524,06.12.2013,Elderly Frail Homecare,Charges from Independent Providers,631.62,BETTER AT HOME IOW LTD
Revenue,Community Wellbeing & Social Care,5105640552,06.12.2013,Elderly Frail Homecare,Charges from Independent Providers,72.60,BETTER AT HOME IOW LTD
Revenue,Community Wellbeing & Social Care,5105640546,06.12.2013,Elderly Frail Homecare,Charges from Independent Providers,508.20,BETTER AT HOME IOW LTD
Revenue,Community Wellbeing & Social Care,5105640551,06.12.2013,Elderly Frail Homecare,Charges from Independent Providers,72.60,BETTER AT HOME IOW LTD
Revenue,Community Wellbeing & Social Care,5105640550,06.12.2013,Elderly Frail Homecare,Charges from Independent Providers,254.10,BETTER AT HOME IOW LTD
Revenue,Community Wellbeing & Social Care,5105640549,06.12.2013,Elderly Frail Homecare,Charges from Independent Providers,"1,143.45",BETTER AT HOME IOW LTD
Revenue,Community Wellbeing & Social Care,5105640719,06.12.2013,Elderly Frail Homecare,Charges from Independent Providers,29.04,BETTER AT HOME IOW LTD
Revenue,Community Wellbeing & Social Care,5105640539,06.12.2013,Elderly Frail Homecare,Charges from Independent Providers,"1,078.11",BETTER AT HOME IOW LTD
Revenue,Community Wellbeing & Social Care,5105640718,06.12.2013,Elderly Frail Homecare,Charges from Independent Providers,254.10,BETTER AT HOME IOW LTD
Revenue,Community Wellbeing & Social Care,5105640718,06.12.2013,Elderly Frail Homecare,Charges from Independent Providers,"1,016.40",BETTER AT HOME IOW LTD
Revenue,Community Wellbeing & Social Care,5105640718,06.12.2013,Elderly Frail Homecare,Charges from Independent Providers,"1,016.40",BETTER AT HOME IOW LTD
Revenue,Community Wellbeing & Social Care,5105640718,06.12.2013,Elderly Frail Homecare,Charges from Independent Providers,"1,270.50",BETTER AT HOME IOW LTD
Revenue,Community Wellbeing & Social Care,5105640521,06.12.2013,Elderly Frail Homecare,Charges from Independent Providers,58.08,BETTER AT HOME IOW LTD
Revenue,Community Wellbeing & Social Care,5105640520,06.12.2013,Elderly Frail Homecare,Charges from Independent Providers,254.10,BETTER AT HOME IOW LTD
Revenue,Community Wellbeing & Social Care,5105640518,06.12.2013,Elderly Frail Homecare,Charges from Independent Providers,907.50,BETTER AT HOME IOW LTD
Revenue,Community Wellbeing & Social Care,5105640545,06.12.2013,Elderly Frail Homecare,Charges from Independent Providers,755.04,BETTER AT HOME IOW LTD
Revenue,Community Wellbeing & Social Care,5105640541,06.12.2013,Elderly Frail Homecare,Charges from Independent Providers,500.94,BETTER AT HOME IOW LTD
Revenue,Community Wellbeing & Social Care,5105640530,06.12.2013,Elderly Frail Homecare,Charges from Independent Providers,471.90,BETTER AT HOME IOW LTD
Revenue,Community Wellbeing & Social Care,5105640531,06.12.2013,Elderly Frail Homecare,Charges from Independent Providers,254.10,BETTER AT HOME IOW LTD
Revenue,Community Wellbeing & Social Care,5105640533,06.12.2013,Elderly Frail Homecare,Charges from Independent Providers,"1,270.50",BETTER AT HOME IOW LTD
Revenue,Community Wellbeing & Social Care,5105640534,06.12.2013,Elderly Frail Homecare,Charges from Independent Providers,508.20,BETTER AT HOME IOW LTD
Revenue,Community Wellbeing & Social Care,5105640536,06.12.2013,Elderly Frail Homecare,Charges from Independent Providers,381.15,BETTER AT HOME IOW LTD
Revenue,Community Wellbeing & Social Care,5105640519,06.12.2013,Elderly Frail Homecare,Charges from Independent Providers,780.45,BETTER AT HOME IOW LTD
Revenue,Community Wellbeing & Social Care,5105640522,06.12.2013,Elderly Frail Homecare,Charges from Independent Providers,"1,611.72",BETTER AT HOME IOW LTD
Revenue,Community Wellbeing & Social Care,5105643877,24.12.2013,Elderly Frail Homecare,Charges from Independent Providers,635.25,BETTER AT HOME IOW LTD
Revenue,Community Wellbeing & Social Care,5105643878,24.12.2013,Elderly Frail Homecare,Charges from Independent Providers,653.40,BETTER AT HOME IOW LTD
Revenue,Community Wellbeing & Social Care,5105640565,06.12.2013,Elderly Frail Homecare,Regular Respite Care,29.04,BETTER AT HOME IOW LTD
Revenue,Community Wellbeing & Social Care,5105640560,06.12.2013,Elderly Frail Homecare,Regular Respite Care,145.20,BETTER AT HOME IOW LTD
Revenue,Community Wellbeing & Social Care,5105640720,06.12.2013,Elderly Frail Homecare,Regular Respite Care,87.12,BETTER AT HOME IOW LTD
Revenue,Community Wellbeing & Social Care,5105640554,06.12.2013,Elderly Frail Homecare,Regular Respite Care,508.20,BETTER AT HOME IOW LTD
Revenue,Community Wellbeing & Social Care,5105642903,18.12.2013,Elderly Frail Homecare,Charges from Independent Providers,261.36,BETTER AT HOME IOW LTD
Revenue,Community Wellbeing & Social Care,5105642902,18.12.2013,Elderly Frail Homecare,Charges from Independent Providers,188.76,BETTER AT HOME IOW LTD
Revenue,Community Wellbeing & Social Care,5105643336,20.12.2013,Elderly Frail Homecare,Charges from Independent Providers,508.20,BETTER AT HOME IOW LTD
Revenue,Community Wellbeing & Social Care,5105643338,20.12.2013,Elderly Frail Homecare,Charges from Independent Providers,101.64,BETTER AT HOME IOW LTD
Revenue,Community Wellbeing & Social Care,5105643337,20.12.2013,Elderly Frail Homecare,Charges from Independent Providers,101.64,BETTER AT HOME IOW LTD
Revenue,Community Wellbeing & Social Care,5105640544,06.12.2013,Mental Health Homecare,Charges from Independent Providers,399.30,BETTER AT HOME IOW LTD
Revenue,Community Wellbeing & Social Care,5105640542,06.12.2013,Physical Disability Homecare,Charges from Independent Providers,217.80,BETTER AT HOME IOW LTD
Revenue,Community Wellbeing & Social Care,5105640547,06.12.2013,Physical Disability Homecare,Charges from Independent Providers,450.12,BETTER AT HOME IOW LTD
Revenue,Community Wellbeing & Social Care,5105640548,06.12.2013,Physical Disability Homecare,Charges from Independent Providers,254.10,BETTER AT HOME IOW LTD
Revenue,Community Wellbeing & Social Care,5105640540,06.12.2013,Elderly Frail Managed Accounts,Charges from Independent Providers,254.10,BETTER AT HOME IOW LTD
Revenue,Community Wellbeing & Social Care,5105640528,06.12.2013,Physical Disability Managed Accounts,Regular Respite Care,29.04,BETTER AT HOME IOW LTD
Revenue,Community Wellbeing & Social Care,5105644110,24.12.2013,Governors  Support,Training,750.00,BEVAN YOUNG ASSOCIATES
Revenue,Community Wellbeing & Social Care,5105642163,13.12.2013,Core Programmes,Training,750.00,BEVAN YOUNG ASSOCIATES
Revenue,Community Wellbeing & Social Care,5105642163,13.12.2013,Core Programmes,Training,750.00,BEVAN YOUNG ASSOCIATES
Revenue,Community Wellbeing & Social Care,5105642163,13.12.2013,Core Programmes,Training,750.00,BEVAN YOUNG ASSOCIATES
Revenue,Community Wellbeing & Social Care,5105640254,11.12.2013,Public Libraries Central,Stationery,210.84,BIBLIOTHECA LTD
Revenue,Resources,5105641461,18.12.2013,Administrative Buildings,"Refuse Collection, Disposal and Recycling Costs",44.96,BIFFA WASTE SERVICES LTD
Revenue,Resources,5105641462,18.12.2013,Administrative Buildings,"Refuse Collection, Disposal and Recycling Costs",78.44,BIFFA WASTE SERVICES LTD
Revenue,Resources,5105641271,13.12.2013,Administrative Buildings,"Refuse Collection, Disposal and Recycling Costs",142.12,BIFFA WASTE SERVICES LTD
Revenue,Resources,5105641537,13.12.2013,Rechargeable Properties,"Refuse Collection, Disposal and Recycling Costs",2.10,BIFFA WASTE SERVICES LTD
Revenue,Resources,5105641538,13.12.2013,Rechargeable Properties,"Refuse Collection, Disposal and Recycling Costs",65.12,BIFFA WASTE SERVICES LTD
Revenue,Community Wellbeing & Social Care,5105636629,13.12.2013,Integrated Community Equipment Service,"Refuse Collection, Disposal and Recycling Costs",55.00,BIFFA WASTE SERVICES LTD
Revenue,Community Wellbeing & Social Care,5105641935,18.12.2013,Integrated Community Equipment Service,"Refuse Collection, Disposal and Recycling Costs",110.28,BIFFA WASTE SERVICES LTD
Revenue,Community Wellbeing & Social Care,5105641930,18.12.2013,31 Carter Avenue,"Refuse Collection, Disposal and Recycling Costs",71.76,BIFFA WASTE SERVICES LTD
Revenue,Community Wellbeing & Social Care,5105637449,04.12.2013,Overbrook,"Refuse Collection, Disposal and Recycling Costs",109.60,BIFFA WASTE SERVICES LTD
Revenue,Community Wellbeing & Social Care,5105641927,18.12.2013,Seagulls,"Refuse Collection, Disposal and Recycling Costs",71.76,BIFFA WASTE SERVICES LTD
Revenue,Community Wellbeing & Social Care,5105642005,18.12.2013,Plean Dene,"Refuse Collection, Disposal and Recycling Costs",89.00,BIFFA WASTE SERVICES LTD
Revenue,Community Wellbeing & Social Care,5105641931,18.12.2013,Saxonbury,"Refuse Collection, Disposal and Recycling Costs",71.76,BIFFA WASTE SERVICES LTD
Revenue,Community Wellbeing & Social Care,5105641932,18.12.2013,40 Venner Avenue,"Refuse Collection, Disposal and Recycling Costs",88.56,BIFFA WASTE SERVICES LTD
Revenue,Community Wellbeing & Social Care,5105641933,18.12.2013,Highmead,"Refuse Collection, Disposal and Recycling Costs",39.48,BIFFA WASTE SERVICES LTD
Revenue,Community Wellbeing & Social Care,5105641934,18.12.2013,Highmead,"Refuse Collection, Disposal and Recycling Costs",90.10,BIFFA WASTE SERVICES LTD
Revenue,Community Wellbeing & Social Care,5105641933,18.12.2013,The Laurels,"Refuse Collection, Disposal and Recycling Costs",39.48,BIFFA WASTE SERVICES LTD
Revenue,Community Wellbeing & Social Care,5105642938,20.12.2013,Adelaide Resource Centre,"Refuse Collection, Disposal and Recycling Costs","1,265.55",BIFFA WASTE SERVICES LTD
Revenue,Community Wellbeing & Social Care,5105643079,20.12.2013,Adelaide Resource Centre,"Refuse Collection, Disposal and Recycling Costs",161.59,BIFFA WASTE SERVICES LTD
Revenue,Community Wellbeing & Social Care,5105641427,18.12.2013,Gouldings Resource Centre,"Refuse Collection, Disposal and Recycling Costs",91.19,BIFFA WASTE SERVICES LTD
Revenue,Community Wellbeing & Social Care,5105641428,18.12.2013,Gouldings Resource Centre,"Refuse Collection, Disposal and Recycling Costs",267.28,BIFFA WASTE SERVICES LTD
Revenue,Community Wellbeing & Social Care,5105642219,18.12.2013,Westminster House,"Refuse Collection, Disposal and Recycling Costs",43.68,BIFFA WASTE SERVICES LTD
Revenue,Economy & Environment,5105641945,18.12.2013,Leisure Management & Admin,"Refuse Collection, Disposal and Recycling Costs",6.76,BIFFA WASTE SERVICES LTD
Revenue,Economy & Environment,5105641107,13.12.2013,Leisure Management & Admin,"Refuse Collection, Disposal and Recycling Costs",142.12,BIFFA WASTE SERVICES LTD
Revenue,Community Wellbeing & Social Care,5105641424,18.12.2013,Workforce Development -  Westridge Centre,"Refuse Collection, Disposal and Recycling Costs",158.68,BIFFA WASTE SERVICES LTD
Revenue,Community Wellbeing & Social Care,5105641537,13.12.2013,Cothey Bottom Store RYDE,"Refuse Collection, Disposal and Recycling Costs",1.05,BIFFA WASTE SERVICES LTD
Revenue,Community Wellbeing & Social Care,5105641538,13.12.2013,Cothey Bottom Store RYDE,"Refuse Collection, Disposal and Recycling Costs",32.57,BIFFA WASTE SERVICES LTD
Revenue,Community Wellbeing & Social Care,5105642610,20.12.2013,Dinosaur Isle Museum (Sandown Geology),"Refuse Collection, Disposal and Recycling Costs",10.61,BIFFA WASTE SERVICES LTD
Revenue,Community Wellbeing & Social Care,5105641074,13.12.2013,Dinosaur Isle Museum (Sandown Geology),"Refuse Collection, Disposal and Recycling Costs",21.44,BIFFA WASTE SERVICES LTD
Revenue,Economy & Environment,5105641961,18.12.2013,The Heights,"Refuse Collection, Disposal and Recycling Costs",33.88,BIFFA WASTE SERVICES LTD
Revenue,Economy & Environment,5105641956,18.12.2013,The Heights,"Refuse Collection, Disposal and Recycling Costs",288.44,BIFFA WASTE SERVICES LTD
Revenue,Economy & Environment,5105641268,13.12.2013,Medina Leisure Centre,"Refuse Collection, Disposal and Recycling Costs",275.40,BIFFA WASTE SERVICES LTD
Revenue,Economy & Environment,5105641084,13.12.2013,Medina Leisure Centre,"Refuse Collection, Disposal and Recycling Costs",17.08,BIFFA WASTE SERVICES LTD
Revenue,Economy & Environment,5105641537,13.12.2013,Westridge Squash Courts,"Refuse Collection, Disposal and Recycling Costs",1.05,BIFFA WASTE SERVICES LTD
Revenue,Economy & Environment,5105641538,13.12.2013,Westridge Squash Courts,"Refuse Collection, Disposal and Recycling Costs",32.57,BIFFA WASTE SERVICES LTD
Revenue,Economy & Environment,5105641929,18.12.2013,Ryde Harbour,"Refuse Collection, Disposal and Recycling Costs",20.72,BIFFA WASTE SERVICES LTD
Revenue,Economy & Environment,5105641175,13.12.2013,Ryde Harbour,"Refuse Collection, Disposal and Recycling Costs",29.84,BIFFA WASTE SERVICES LTD
Revenue,Economy & Environment,5105641189,13.12.2013,Seaclose Amusements,"Refuse Collection, Disposal and Recycling Costs",11.95,BIFFA WASTE SERVICES LTD
Revenue,Childrens Services,5105642015,18.12.2013,Family Information Zone,"Refuse Collection, Disposal and Recycling Costs",15.59,BIFFA WASTE SERVICES LTD
Revenue,Childrens Services,5105641928,18.12.2013,Contact & Assessment Team,"Refuse Collection, Disposal and Recycling Costs",27.36,BIFFA WASTE SERVICES LTD
Revenue,Childrens Services,5105641115,18.12.2013,Specialist Service Business Admin,"Refuse Collection, Disposal and Recycling Costs",146.32,BIFFA WASTE SERVICES LTD
Revenue,Childrens Services,5105640137,18.12.2013,Beaulieu House,"Refuse Collection, Disposal and Recycling Costs",13.96,BIFFA WASTE SERVICES LTD
Revenue,Childrens Services,5105640139,18.12.2013,Beaulieu House,"Refuse Collection, Disposal and Recycling Costs",146.32,BIFFA WASTE SERVICES LTD
Revenue,Childrens Services,5105641497,18.12.2013,Beaulieu House,"Refuse Collection, Disposal and Recycling Costs",13.96,BIFFA WASTE SERVICES LTD
Revenue,Childrens Services,5105641466,18.12.2013,Beaulieu House,"Refuse Collection, Disposal and Recycling Costs",146.32,BIFFA WASTE SERVICES LTD
Revenue,Childrens Services,5105642015,18.12.2013,Parent Partnership,"Refuse Collection, Disposal and Recycling Costs",15.69,BIFFA WASTE SERVICES LTD
Revenue,Childrens Services,5105641937,18.12.2013,Education Participation Team,"Refuse Collection, Disposal and Recycling Costs",39.40,BIFFA WASTE SERVICES LTD
Revenue,Childrens Services,5105641941,13.12.2013,Education Participation Team,"Refuse Collection, Disposal and Recycling Costs",42.04,BIFFA WASTE SERVICES LTD
Revenue,Childrens Services,5105629656,06.12.2013,Education Participation Team,"Refuse Collection, Disposal and Recycling Costs",49.25,BIFFA WASTE SERVICES LTD
Revenue,Economy & Environment,5105639130,06.12.2013,Old Cowes Enterprise College,"Refuse Collection, Disposal and Recycling Costs",306.72,BIFFA WASTE SERVICES LTD
Capital,Community Wellbeing & Social Care,5105639130,06.12.2013,One School Pathfinder,Eligible Supplies and Services - Capital,100.00,BIFFA WASTE SERVICES LTD
Capital,Community Wellbeing & Social Care,5105641954,13.12.2013,Schools Reorganisation,Eligible Supplies and Services - Capital,200.00,BIFFA WASTE SERVICES LTD
Capital,Community Wellbeing & Social Care,5105641954,13.12.2013,Schools Reorganisation,Eligible Supplies and Services - Capital,266.32,BIFFA WASTE SERVICES LTD
Capital,Community Wellbeing & Social Care,5105641954,13.12.2013,Schools Reorganisation,Eligible Supplies and Services - Capital,354.88,BIFFA WASTE SERVICES LTD
Revenue,Economy & Environment,5105641162,13.12.2013,Ferry Management,"Refuse Collection, Disposal and Recycling Costs",77.56,BIFFA WASTE SERVICES LTD
Revenue,Economy & Environment,5105641535,13.12.2013,Fort Victoria,"Refuse Collection, Disposal and Recycling Costs",90.40,BIFFA WASTE SERVICES LTD
Revenue,Resources,5105641262,11.12.2013,Coastal Visitors Centre,"Refuse Collection, Disposal and Recycling Costs",39.40,BIFFA WASTE SERVICES LTD
Revenue,Economy & Environment,5105641247,18.12.2013,Newport Harbour Account,"Refuse Collection, Disposal and Recycling Costs",432.96,BIFFA WASTE SERVICES LTD
Revenue,Economy & Environment,5105641270,13.12.2013,Newport Harbour Account,"Refuse Collection, Disposal and Recycling Costs",150.92,BIFFA WASTE SERVICES LTD
Revenue,Economy & Environment,5105642165,13.12.2013,Fire Operations,"Refuse Collection, Disposal and Recycling Costs",555.59,BIFFA WASTE SERVICES LTD
Revenue,Economy & Environment,5105641474,11.12.2013,Fire Operations,"Refuse Collection, Disposal and Recycling Costs",305.52,BIFFA WASTE SERVICES LTD
Revenue,Economy & Environment,5105641480,11.12.2013,Fire Operations,"Refuse Collection, Disposal and Recycling Costs",21.56,BIFFA WASTE SERVICES LTD
Revenue,Economy & Environment,5105641255,13.12.2013,Planning Business Support,"Refuse Collection, Disposal and Recycling Costs",135.00,BIFFA WASTE SERVICES LTD
Revenue,Economy & Environment,5105641253,13.12.2013,Planning Business Support,"Refuse Collection, Disposal and Recycling Costs",146.32,BIFFA WASTE SERVICES LTD
Revenue,Economy & Environment,5105641266,13.12.2013,Regulatory Management & Admin Support,"Refuse Collection, Disposal and Recycling Costs",73.16,BIFFA WASTE SERVICES LTD
Revenue,Economy & Environment,5105641251,13.12.2013,Crematorium,"Refuse Collection, Disposal and Recycling Costs",73.16,BIFFA WASTE SERVICES LTD
Revenue,Economy & Environment,5105636612,04.12.2013,Crematorium,"Refuse Collection, Disposal and Recycling Costs",73.16,BIFFA WASTE SERVICES LTD
Revenue,Economy & Environment,5105624253,04.12.2013,Crematorium,"Refuse Collection, Disposal and Recycling Costs",21.44,BIFFA WASTE SERVICES LTD
Revenue,Corporate,5105639130,06.12.2013,BSIP savings,Other Capital Expenditure,555.76,BIFFA WASTE SERVICES LTD
Revenue,Childrens Services,5105643082,20.12.2013,Purchased Residential,Charges from Independent Providers,"13,844.82",BIG BRIGHT HOLIDAYS
Revenue,Childrens Services,5105643080,20.12.2013,Purchased Residential,Charges from Independent Providers,"13,844.82",BIG BRIGHT HOLIDAYS
Revenue,Economy & Environment,5105640317,06.12.2013,Play Development,Operational Equipment,29.16,BIG WIGHT T-SHIRT CO
Revenue,Childrens Services,5105642939,18.12.2013,Beaulieu House,Clothing & Laundry,205.50,BIG WIGHT T-SHIRT CO
Revenue,Childrens Services,5105640116,18.12.2013,Beaulieu House,Clothing & Laundry,641.20,BIG WIGHT T-SHIRT CO
Revenue,Childrens Services,5105643298,20.12.2013,Support for Looked After Children,Support Children,130.00,REDACTED PERSONAL DATA
Revenue,Childrens Services,5105641711,13.12.2013,Support for Looked After Children,Support Children,65.00,REDACTED PERSONAL DATA
Revenue,Childrens Services,5105640490,06.12.2013,Support for Looked After Children,Support Children,65.00,REDACTED PERSONAL DATA
Revenue,Childrens Services,5105643395,20.12.2013,North & East Provision,General Materials,57.40,BISHOP SPORTS & LEISURE LTD
Revenue,Childrens Services,5105643395,20.12.2013,North & East Provision,General Materials,8.00,BISHOP SPORTS & LEISURE LTD
Revenue,Economy & Environment,5105643491,24.12.2013,Recycling initiative,Printing Costs,"2,986.00",BISHOPS PRINTERS LTD
Revenue,Economy & Environment,5105643649,20.12.2013,Recycling initiative,Postage,"22,281.10",BISHOPS PRINTERS LTD
Revenue,Community Wellbeing & Social Care,5105638192,04.12.2013,Homecare Reablement,Vehicle Maintenance Costs,5.00,REDACTED PERSONAL DATA
Revenue,Community Wellbeing & Social Care,5105638192,04.12.2013,Homecare Reablement,Vehicle Maintenance Costs,25.00,REDACTED PERSONAL DATA
Revenue,Community Wellbeing & Social Care,5105638192,04.12.2013,Homecare Reablement,Vehicle Maintenance Costs,5.00,REDACTED PERSONAL DATA
Revenue,Community Wellbeing & Social Care,5105638192,04.12.2013,Homecare Reablement,Vehicle Maintenance Costs,5.00,REDACTED PERSONAL DATA
Revenue,Community Wellbeing & Social Care,5105638192,04.12.2013,Homecare Reablement,Vehicle Maintenance Costs,15.00,REDACTED PERSONAL DATA
Revenue,Childrens Services,5105642228,18.12.2013,Purchased Fostering,Charges from Independent Providers,"3,230.51",BLUE SKY FOSTERING LTD
Revenue,Childrens Services,5105642252,18.12.2013,Purchased Fostering,Charges from Independent Providers,"3,230.51",BLUE SKY FOSTERING LTD
Revenue,Childrens Services,5105642521,17.12.2013,Purchased Fostering,Charges from Independent Providers,"3,230.51",BLUE SKY FOSTERING LTD
Revenue,Childrens Services,5105643359,20.12.2013,Beaulieu House,Professional Services,32.60,BOC LTD
Revenue,Economy & Environment,5105643610,20.12.2013,Ferry Operation,Vehicle Maintenance Costs,137.65,BOC LTD
Revenue,Childrens Services,5105643064,18.12.2013,Short Breaks,Payments to Voluntary and Other Associations,390.00,BODSTER EQUINE ASSISTED LEARN CIC
Revenue,Community Wellbeing & Social Care,5105644733,24.12.2013,Elderly Frail Residential Care,Charges from Independent Providers,"1,837.08",BONDCARE NILERACE LIMITED
Revenue,Community Wellbeing & Social Care,5105639775,04.12.2013,Elderly Frail Residential Care,Charges from Independent Providers,"1,837.08",BONDCARE NILERACE LIMITED
Revenue,Community Wellbeing & Social Care,5105640113,18.12.2013,Overbrook,Catering Purchases,9.99,BOOKER CASH & CARRY
Revenue,Community Wellbeing & Social Care,5105640113,18.12.2013,Overbrook,Catering Purchases,118.96,BOOKER CASH & CARRY
Revenue,Community Wellbeing & Social Care,5105643005,18.12.2013,Plean Dene,Catering Purchases,14.04,BOOKER CASH & CARRY
Revenue,Community Wellbeing & Social Care,5105643001,18.12.2013,Plean Dene,Catering Purchases,170.39,BOOKER CASH & CARRY
Revenue,Community Wellbeing & Social Care,5105643004,18.12.2013,Plean Dene,Catering Purchases,144.00,BOOKER CASH & CARRY
Revenue,Community Wellbeing & Social Care,5105643004,18.12.2013,Plean Dene,Catering Purchases,18.88,BOOKER CASH & CARRY
Revenue,Community Wellbeing & Social Care,5105643001,18.12.2013,Plean Dene,Catering Purchases,17.95,BOOKER CASH & CARRY
Revenue,Community Wellbeing & Social Care,5105640596,06.12.2013,Plean Dene,Catering Purchases,41.81,BOOKER CASH & CARRY
Revenue,Community Wellbeing & Social Care,5105640596,06.12.2013,Plean Dene,Catering Purchases,5.95,BOOKER CASH & CARRY
Revenue,Community Wellbeing & Social Care,5105641129,11.12.2013,Plean Dene,Catering Purchases,49.86,BOOKER CASH & CARRY
Revenue,Community Wellbeing & Social Care,5105640159,18.12.2013,Plean Dene,Catering Purchases,142.73,BOOKER CASH & CARRY
Revenue,Community Wellbeing & Social Care,5105640159,18.12.2013,Plean Dene,Catering Purchases,17.88,BOOKER CASH & CARRY
Revenue,Community Wellbeing & Social Care,5105640824,06.12.2013,Plean Dene,Catering Purchases,34.96,BOOKER CASH & CARRY
Revenue,Community Wellbeing & Social Care,5105641029,11.12.2013,Plean Dene,Catering Purchases,7.92,BOOKER CASH & CARRY
Revenue,Community Wellbeing & Social Care,5105641030,11.12.2013,Plean Dene,Catering Purchases,170.22,BOOKER CASH & CARRY
Revenue,Community Wellbeing & Social Care,5105641030,11.12.2013,Plean Dene,Catering Purchases,11.37,BOOKER CASH & CARRY
Revenue,Community Wellbeing & Social Care,5105638347,04.12.2013,Contraception,Payment to Private Contractors,"1,425.00",BOOTS THE CHEMIST LTD
Revenue,Community Wellbeing & Social Care,5105638347,04.12.2013,Contraception,Payment to Private Contractors,483.60,BOOTS THE CHEMIST LTD
Revenue,Community Wellbeing & Social Care,5105638347,04.12.2013,Contraception,Payment to Private Contractors,7.10,BOOTS THE CHEMIST LTD
Revenue,Community Wellbeing & Social Care,5105638347,04.12.2013,Contraception,Payment to Private Contractors,142.50,BOOTS THE CHEMIST LTD
Revenue,Community Wellbeing & Social Care,5105638347,04.12.2013,Contraception,Payment to Private Contractors,475.00,BOOTS THE CHEMIST LTD
Revenue,Community Wellbeing & Social Care,5105638347,04.12.2013,STI Tests & Treatment,Payment to Private Contractors,10.00,BOOTS THE CHEMIST LTD
Revenue,Community Wellbeing & Social Care,5105638347,04.12.2013,STI Tests & Treatment,Payment to Private Contractors,40.00,BOOTS THE CHEMIST LTD
Revenue,Community Wellbeing & Social Care,5105638347,04.12.2013,STI Tests & Treatment,Payment to Private Contractors,20.00,BOOTS THE CHEMIST LTD
Revenue,Community Wellbeing & Social Care,5105638347,04.12.2013,STI Tests & Treatment,Payment to Private Contractors,24.12,BOOTS THE CHEMIST LTD
Revenue,Community Wellbeing & Social Care,5105638347,04.12.2013,STI Tests & Treatment,Payment to Private Contractors,30.00,BOOTS THE CHEMIST LTD
Revenue,Community Wellbeing & Social Care,5105638347,04.12.2013,Drug Misuse - Adults,Payment to Private Contractors,30.00,BOOTS THE CHEMIST LTD
Revenue,Community Wellbeing & Social Care,5105638347,04.12.2013,Drug Misuse - Adults,Payment to Private Contractors,430.50,BOOTS THE CHEMIST LTD
Revenue,Community Wellbeing & Social Care,5105638347,04.12.2013,Drug Misuse - Adults,Payment to Private Contractors,692.00,BOOTS THE CHEMIST LTD
Revenue,Community Wellbeing & Social Care,5105642150,13.12.2013,Contraception,Payment to Private Contractors,180.00,BOOTS UK LTD
Revenue,Community Wellbeing & Social Care,5105642150,13.12.2013,Contraception,Payment to Private Contractors,62.40,BOOTS UK LTD
Revenue,Community Wellbeing & Social Care,5105642150,13.12.2013,Contraception,Payment to Private Contractors,18.00,BOOTS UK LTD
Revenue,Community Wellbeing & Social Care,5105642150,13.12.2013,Contraception,Payment to Private Contractors,60.00,BOOTS UK LTD
Revenue,Community Wellbeing & Social Care,5105643054,20.12.2013,Drug Misuse - Adults,Payment to Private Contractors,3.50,BOOTS UK LTD
Revenue,Community Wellbeing & Social Care,5105643054,20.12.2013,Drug Misuse - Adults,Payment to Private Contractors,30.00,BOOTS UK LTD
Revenue,Community Wellbeing & Social Care,5105642150,13.12.2013,Drug Misuse - Adults,Payment to Private Contractors,115.50,BOOTS UK LTD
Revenue,Community Wellbeing & Social Care,5105642150,13.12.2013,Drug Misuse - Adults,Payment to Private Contractors,424.00,BOOTS UK LTD
Revenue,Community Wellbeing & Social Care,5105642150,13.12.2013,Drug Misuse - Adults,Payment to Private Contractors,30.00,BOOTS UK LTD
Revenue,Community Wellbeing & Social Care,5105638224,04.12.2013,Contraception,Payment to Private Contractors,60.00,BOOTS UK LTD
Revenue,Community Wellbeing & Social Care,5105638224,04.12.2013,Contraception,Payment to Private Contractors,3.55,BOOTS UK LTD
Revenue,Community Wellbeing & Social Care,5105638224,04.12.2013,Contraception,Payment to Private Contractors,20.80,BOOTS UK LTD
Revenue,Community Wellbeing & Social Care,5105638224,04.12.2013,Contraception,Payment to Private Contractors,6.00,BOOTS UK LTD
Revenue,Community Wellbeing & Social Care,5105638224,04.12.2013,Contraception,Payment to Private Contractors,20.00,BOOTS UK LTD
Revenue,Community Wellbeing & Social Care,5105643472,24.12.2013,STI Tests & Treatment,Payment to Private Contractors,5.00,BOOTS UK LTD
Revenue,Community Wellbeing & Social Care,5105643472,24.12.2013,Drug Misuse - Adults,Payment to Private Contractors,105.00,BOOTS UK LTD
Revenue,Community Wellbeing & Social Care,5105643472,24.12.2013,Drug Misuse - Adults,Payment to Private Contractors,118.00,BOOTS UK LTD
Revenue,Community Wellbeing & Social Care,5105643078,20.12.2013,Drug Misuse - Adults,Payment to Private Contractors,30.00,BOOTS UK LTD
Revenue,Community Wellbeing & Social Care,5105638260,04.12.2013,Drug Misuse - Adults,Payment to Private Contractors,30.00,BOOTS UK LTD
Revenue,Community Wellbeing & Social Care,5105638224,04.12.2013,Drug Misuse - Adults,Payment to Private Contractors,150.50,BOOTS UK LTD
Revenue,Community Wellbeing & Social Care,5105638224,04.12.2013,Drug Misuse - Adults,Payment to Private Contractors,542.00,BOOTS UK LTD
Revenue,Community Wellbeing & Social Care,5105643494,20.12.2013,Drug Misuse - Adults,Payment to Private Contractors,30.00,BOOTS UK LTD
Revenue,Community Wellbeing & Social Care,5105643494,20.12.2013,Drug Misuse - Adults,Payment to Private Contractors,238.00,BOOTS UK LTD
Revenue,Community Wellbeing & Social Care,5105643494,20.12.2013,Drug Misuse - Adults,Payment to Private Contractors,330.00,BOOTS UK LTD
Revenue,Community Wellbeing & Social Care,5105643502,20.12.2013,Drug Misuse - Adults,Payment to Private Contractors,30.00,BOOTS UK LTD
Revenue,Community Wellbeing & Social Care,5105643084,20.12.2013,Contraception,Payment to Private Contractors,202.80,BOOTS UK LTD
Revenue,Community Wellbeing & Social Care,5105643084,20.12.2013,Contraception,Payment to Private Contractors,3.55,BOOTS UK LTD
Revenue,Community Wellbeing & Social Care,5105643084,20.12.2013,Contraception,Payment to Private Contractors,58.50,BOOTS UK LTD
Revenue,Community Wellbeing & Social Care,5105643084,20.12.2013,Contraception,Payment to Private Contractors,195.00,BOOTS UK LTD
Revenue,Community Wellbeing & Social Care,5105643084,20.12.2013,Contraception,Payment to Private Contractors,585.00,BOOTS UK LTD
Revenue,Community Wellbeing & Social Care,5105643084,20.12.2013,STI Tests & Treatment,Payment to Private Contractors,5.00,BOOTS UK LTD
Revenue,Community Wellbeing & Social Care,5105643084,20.12.2013,Drug Misuse - Adults,Payment to Private Contractors,30.00,BOOTS UK LTD
Revenue,Community Wellbeing & Social Care,5105643084,20.12.2013,Drug Misuse - Adults,Payment to Private Contractors,49.00,BOOTS UK LTD
Revenue,Community Wellbeing & Social Care,5105643084,20.12.2013,Drug Misuse - Adults,Payment to Private Contractors,46.00,BOOTS UK LTD
Revenue,Community Wellbeing & Social Care,5105643078,20.12.2013,Contraception,Payment to Private Contractors,15.00,BOOTS UK LTD
Revenue,Community Wellbeing & Social Care,5105643078,20.12.2013,Contraception,Payment to Private Contractors,5.20,BOOTS UK LTD
Revenue,Community Wellbeing & Social Care,5105643078,20.12.2013,Contraception,Payment to Private Contractors,1.50,BOOTS UK LTD
Revenue,Community Wellbeing & Social Care,5105643078,20.12.2013,Contraception,Payment to Private Contractors,5.00,BOOTS UK LTD
Revenue,Community Wellbeing & Social Care,5105638260,04.12.2013,Contraception,Payment to Private Contractors,85.00,BOOTS UK LTD
Revenue,Community Wellbeing & Social Care,5105638260,04.12.2013,Contraception,Payment to Private Contractors,25.50,BOOTS UK LTD
Revenue,Community Wellbeing & Social Care,5105638260,04.12.2013,Contraception,Payment to Private Contractors,88.40,BOOTS UK LTD
Revenue,Community Wellbeing & Social Care,5105638260,04.12.2013,Contraception,Payment to Private Contractors,255.00,BOOTS UK LTD
Revenue,Community Wellbeing & Social Care,5105643472,24.12.2013,Drug Misuse - Adults,Payment to Private Contractors,30.00,BOOTS UK LTD
Revenue,Community Wellbeing & Social Care,5105643078,20.12.2013,Drug Misuse - Adults,Payment to Private Contractors,80.50,BOOTS UK LTD
Revenue,Community Wellbeing & Social Care,5105643078,20.12.2013,Drug Misuse - Adults,Payment to Private Contractors,420.00,BOOTS UK LTD
Revenue,Community Wellbeing & Social Care,5105638224,04.12.2013,Drug Misuse - Adults,Payment to Private Contractors,30.00,BOOTS UK LTD
Revenue,Community Wellbeing & Social Care,5105638260,04.12.2013,Drug Misuse - Adults,Payment to Private Contractors,49.00,BOOTS UK LTD
Revenue,Community Wellbeing & Social Care,5105638260,04.12.2013,Drug Misuse - Adults,Payment to Private Contractors,"1,354.00",BOOTS UK LTD
Revenue,Community Wellbeing & Social Care,5105643058,20.12.2013,Contraception,Payment to Private Contractors,30.00,BOOTS UK LTD
Revenue,Community Wellbeing & Social Care,5105643058,20.12.2013,Contraception,Payment to Private Contractors,10.40,BOOTS UK LTD
Revenue,Community Wellbeing & Social Care,5105643058,20.12.2013,Contraception,Payment to Private Contractors,3.00,BOOTS UK LTD
Revenue,Community Wellbeing & Social Care,5105643058,20.12.2013,Contraception,Payment to Private Contractors,10.00,BOOTS UK LTD
Revenue,Community Wellbeing & Social Care,5105637395,06.12.2013,Contraception,Payment to Private Contractors,225.00,BOOTS UK LTD
Revenue,Community Wellbeing & Social Care,5105637395,06.12.2013,Contraception,Payment to Private Contractors,22.50,BOOTS UK LTD
Revenue,Community Wellbeing & Social Care,5105637395,06.12.2013,Contraception,Payment to Private Contractors,75.00,BOOTS UK LTD
Revenue,Community Wellbeing & Social Care,5105638583,18.12.2013,Contraception,Payment to Private Contractors,180.00,BOOTS UK LTD
Revenue,Community Wellbeing & Social Care,5105638583,18.12.2013,Contraception,Payment to Private Contractors,62.40,BOOTS UK LTD
Revenue,Community Wellbeing & Social Care,5105638583,18.12.2013,Contraception,Payment to Private Contractors,18.00,BOOTS UK LTD
Revenue,Community Wellbeing & Social Care,5105638583,18.12.2013,Contraception,Payment to Private Contractors,60.00,BOOTS UK LTD
Revenue,Community Wellbeing & Social Care,5105637395,06.12.2013,Contraception,Payment to Private Contractors,78.00,BOOTS UK LTD
Revenue,Community Wellbeing & Social Care,5105637395,06.12.2013,STI Tests & Treatment,Payment to Private Contractors,5.00,BOOTS UK LTD
Revenue,Community Wellbeing & Social Care,5105643058,20.12.2013,Drug Misuse - Adults,Payment to Private Contractors,30.00,BOOTS UK LTD
Revenue,Community Wellbeing & Social Care,5105637395,06.12.2013,Drug Misuse - Adults,Payment to Private Contractors,160.00,BOOTS UK LTD
Revenue,Community Wellbeing & Social Care,5105637395,06.12.2013,Drug Misuse - Adults,Payment to Private Contractors,30.00,BOOTS UK LTD
Revenue,Community Wellbeing & Social Care,5105638583,18.12.2013,Drug Misuse - Adults,Payment to Private Contractors,56.00,BOOTS UK LTD
Revenue,Community Wellbeing & Social Care,5105640804,06.12.2013,Contraception,Payment to Private Contractors,165.00,BOOTS UK LTD
Revenue,Community Wellbeing & Social Care,5105640804,06.12.2013,Contraception,Payment to Private Contractors,16.50,BOOTS UK LTD
Revenue,Community Wellbeing & Social Care,5105640804,06.12.2013,Contraception,Payment to Private Contractors,55.00,BOOTS UK LTD
Revenue,Community Wellbeing & Social Care,5105640804,06.12.2013,STI Tests & Treatment,Payment to Private Contractors,20.00,BOOTS UK LTD
Revenue,Community Wellbeing & Social Care,5105640804,06.12.2013,STI Tests & Treatment,Payment to Private Contractors,20.00,BOOTS UK LTD
Revenue,Community Wellbeing & Social Care,5105640804,06.12.2013,STI Tests & Treatment,Payment to Private Contractors,16.08,BOOTS UK LTD
Revenue,Community Wellbeing & Social Care,5105640804,06.12.2013,STI Tests & Treatment,Payment to Private Contractors,20.00,BOOTS UK LTD
Revenue,Community Wellbeing & Social Care,5105640804,06.12.2013,STI Tests & Treatment,Payment to Private Contractors,52.00,BOOTS UK LTD
Revenue,Community Wellbeing & Social Care,5105640804,06.12.2013,STI Tests & Treatment,Payment to Private Contractors,5.00,BOOTS UK LTD
Revenue,Community Wellbeing & Social Care,5105640805,06.12.2013,Drug Misuse - Adults,Payment to Private Contractors,38.50,BOOTS UK LTD
Revenue,Community Wellbeing & Social Care,5105640806,06.12.2013,Drug Misuse - Adults,Payment to Private Contractors,31.50,BOOTS UK LTD
Revenue,Community Wellbeing & Social Care,5105640804,06.12.2013,Drug Misuse - Adults,Payment to Private Contractors,660.00,BOOTS UK LTD
Revenue,Community Wellbeing & Social Care,5105640804,06.12.2013,Drug Misuse - Adults,Payment to Private Contractors,30.00,BOOTS UK LTD
Revenue,Community Wellbeing & Social Care,5105640804,06.12.2013,Drug Misuse - Adults,Payment to Private Contractors,56.00,BOOTS UK LTD
Revenue,Community Wellbeing & Social Care,5105643444,20.12.2013,Contraception,Payment to Private Contractors,45.00,BOOTS UK LTD
Revenue,Community Wellbeing & Social Care,5105643444,20.12.2013,Contraception,Payment to Private Contractors,15.60,BOOTS UK LTD
Revenue,Community Wellbeing & Social Care,5105643444,20.12.2013,Contraception,Payment to Private Contractors,4.50,BOOTS UK LTD
Revenue,Community Wellbeing & Social Care,5105643444,20.12.2013,Contraception,Payment to Private Contractors,15.00,BOOTS UK LTD
Revenue,Community Wellbeing & Social Care,5105638324,04.12.2013,Contraception,Payment to Private Contractors,5.00,BOOTS UK LTD
Revenue,Community Wellbeing & Social Care,5105638324,04.12.2013,Contraception,Payment to Private Contractors,1.50,BOOTS UK LTD
Revenue,Community Wellbeing & Social Care,5105638324,04.12.2013,Contraception,Payment to Private Contractors,5.20,BOOTS UK LTD
Revenue,Community Wellbeing & Social Care,5105638324,04.12.2013,Contraception,Payment to Private Contractors,15.00,BOOTS UK LTD
Revenue,Community Wellbeing & Social Care,5105643444,20.12.2013,Drug Misuse - Adults,Payment to Private Contractors,30.00,BOOTS UK LTD
Revenue,Community Wellbeing & Social Care,5105638324,04.12.2013,Drug Misuse - Adults,Payment to Private Contractors,30.00,BOOTS UK LTD
Revenue,Community Wellbeing & Social Care,5105638324,04.12.2013,Drug Misuse - Adults,Payment to Private Contractors,348.00,BOOTS UK LTD
Revenue,Childrens Services,5105642588,18.12.2013,Special Educational Needs Inter-Authority Recoupment,Payments to Other Local Authorities,"14,333.00",BOURNEMOUTH BOROUGH COUNCIL
Revenue,Community Wellbeing & Social Care,5105644174,24.12.2013,Public Libraries Central,Computer Maintenance,475.00,BPH DATA LTD
Revenue,Economy & Environment,5105642940,18.12.2013,Heights Cafe Stock,Order Settlement,66.27,BRAKE BROS LTD
Revenue,Economy & Environment,5105642941,18.12.2013,Heights Cafe Stock,Order Settlement,111.47,BRAKE BROS LTD
Revenue,Economy & Environment,5105640024,04.12.2013,Heights Cafe Stock,Order Settlement,92.45,BRAKE BROS LTD
Revenue,Community Wellbeing & Social Care,5105643915,24.12.2013,Leaseholds by LA,Accommodation Costs - Leaseholder Payments,588.38,BRAMBLE LETTINGS
Revenue,Community Wellbeing & Social Care,5105643915,24.12.2013,Leaseholds by LA,Accommodation Costs - Leaseholder Payments,588.38,BRAMBLE LETTINGS
Revenue,Community Wellbeing & Social Care,5105643915,24.12.2013,Leaseholds by LA,Accommodation Costs - Leaseholder Payments,588.38,BRAMBLE LETTINGS
Revenue,Community Wellbeing & Social Care,5105643915,24.12.2013,Leaseholds by LA,Accommodation Costs - Leaseholder Payments,588.38,BRAMBLE LETTINGS
Revenue,Community Wellbeing & Social Care,5105643915,24.12.2013,Leaseholds by LA,Accommodation Costs - Leaseholder Payments,746.81,BRAMBLE LETTINGS
Revenue,Community Wellbeing & Social Care,5105643915,24.12.2013,Leaseholds by LA,Accommodation Costs - Leaseholder Payments,588.38,BRAMBLE LETTINGS
Revenue,Community Wellbeing & Social Care,5105643915,24.12.2013,Leaseholds by LA,Accommodation Costs - Leaseholder Payments,746.81,BRAMBLE LETTINGS
Revenue,Community Wellbeing & Social Care,5105643915,24.12.2013,Leaseholds by LA,Accommodation Costs - Leaseholder Payments,769.43,BRAMBLE LETTINGS
Revenue,Community Wellbeing & Social Care,5105643915,24.12.2013,Leaseholds by LA,Accommodation Costs - Leaseholder Payments,746.81,BRAMBLE LETTINGS
Revenue,Community Wellbeing & Social Care,5105643915,24.12.2013,Leaseholds by LA,Accommodation Costs - Leaseholder Payments,746.81,BRAMBLE LETTINGS
Revenue,Community Wellbeing & Social Care,5105643915,24.12.2013,Leaseholds by LA,Accommodation Costs - Leaseholder Payments,746.81,BRAMBLE LETTINGS
Revenue,Community Wellbeing & Social Care,5105643915,24.12.2013,Leaseholds by LA,Accommodation Costs - Leaseholder Payments,746.81,BRAMBLE LETTINGS
Revenue,Community Wellbeing & Social Care,5105643915,24.12.2013,Leaseholds by LA,Accommodation Costs - Leaseholder Payments,746.81,BRAMBLE LETTINGS
Revenue,Community Wellbeing & Social Care,5105643915,24.12.2013,Leaseholds by LA,Accommodation Costs - Leaseholder Payments,746.81,BRAMBLE LETTINGS
Revenue,Community Wellbeing & Social Care,5105643915,24.12.2013,Leaseholds by LA,Accommodation Costs - Leaseholder Payments,746.81,BRAMBLE LETTINGS
Revenue,Community Wellbeing & Social Care,5105643915,24.12.2013,Leaseholds by LA,Accommodation Costs - Leaseholder Payments,746.81,BRAMBLE LETTINGS
Revenue,Community Wellbeing & Social Care,5105643915,24.12.2013,Leaseholds by LA,Accommodation Costs - Leaseholder Payments,588.38,BRAMBLE LETTINGS
Revenue,Community Wellbeing & Social Care,5105643915,24.12.2013,Leaseholds by LA,Accommodation Costs - Leaseholder Payments,746.81,BRAMBLE LETTINGS
Revenue,Community Wellbeing & Social Care,5105643915,24.12.2013,Leaseholds by LA,Accommodation Costs - Leaseholder Payments,746.81,BRAMBLE LETTINGS
Revenue,Community Wellbeing & Social Care,5105643915,24.12.2013,Leaseholds by LA,Accommodation Costs - Leaseholder Payments,746.81,BRAMBLE LETTINGS
Revenue,Community Wellbeing & Social Care,5105643915,24.12.2013,Leaseholds by LA,Accommodation Costs - Leaseholder Payments,746.81,BRAMBLE LETTINGS
Revenue,Community Wellbeing & Social Care,5105643915,24.12.2013,Leaseholds by LA,Accommodation Costs - Leaseholder Payments,746.81,BRAMBLE LETTINGS
Revenue,Resources,5105643761,20.12.2013,Staff Benefits,Payment to Private Contractors,118.75,BRAMBLES AFTER SCHOOL CLUB
Revenue,Childrens Services,5105643474,20.12.2013,Court Work & Consultancy Services,Legal Fees - Other Parties,68.58,BRAMSDON & CHILDS SOLICITORS
Revenue,Childrens Services,5105643474,20.12.2013,Court Work & Consultancy Services,Legal Fees - Other Parties,665.55,BRAMSDON & CHILDS SOLICITORS
Revenue,Childrens Services,5105643474,20.12.2013,Court Work & Consultancy Services,Legal Fees - Other Parties,43.30,BRAMSDON & CHILDS SOLICITORS
Revenue,Community Wellbeing & Social Care,5105644823,24.12.2013,Elderly Frail Residential Care,Charges from Independent Providers,"2,048.76",BRENDONCARE FOUNDATION
Revenue,Community Wellbeing & Social Care,5105639869,04.12.2013,Elderly Frail Residential Care,Charges from Independent Providers,"2,048.76",BRENDONCARE FOUNDATION
Revenue,Economy & Environment,5105641423,11.12.2013,Medina Leisure Centre,Consumable Cleaning Materials,"1,416.00",BRENNTAG UK LTD
Revenue,Economy & Environment,5105641423,11.12.2013,Medina Leisure Centre,Consumable Cleaning Materials,42.84,BRENNTAG UK LTD
Revenue,Community Wellbeing & Social Care,5105644253,24.12.2013,Elderly Frail Residential Care,Charges from Independent Providers,"1,622.60",BRIGHSTONE CARE LTD
Revenue,Community Wellbeing & Social Care,5105644253,24.12.2013,Elderly Frail Residential Care,Charges from Independent Providers,"1,998.08",BRIGHSTONE CARE LTD
Revenue,Community Wellbeing & Social Care,5105644253,24.12.2013,Elderly Frail Residential Care,Charges from Independent Providers,"1,998.08",BRIGHSTONE CARE LTD
Revenue,Community Wellbeing & Social Care,5105644253,24.12.2013,Elderly Frail Residential Care,Charges from Independent Providers,"1,998.08",BRIGHSTONE CARE LTD
Revenue,Community Wellbeing & Social Care,5105642748,24.12.2013,Elderly Frail Residential Care,Charges from Independent Providers,"1,712.64",BRIGHSTONE CARE LTD
Revenue,Community Wellbeing & Social Care,5105639304,04.12.2013,Elderly Frail Residential Care,Charges from Independent Providers,"1,998.08",BRIGHSTONE CARE LTD
Revenue,Community Wellbeing & Social Care,5105639304,04.12.2013,Elderly Frail Residential Care,Charges from Independent Providers,"1,622.60",BRIGHSTONE CARE LTD
Revenue,Community Wellbeing & Social Care,5105639304,04.12.2013,Elderly Frail Residential Care,Charges from Independent Providers,"1,998.08",BRIGHSTONE CARE LTD
Revenue,Community Wellbeing & Social Care,5105644253,24.12.2013,Elderly Mentally Ill Residential Care,Charges from Independent Providers,"1,998.08",BRIGHSTONE CARE LTD
Revenue,Community Wellbeing & Social Care,5105644938,24.12.2013,Elderly Mentally Ill Residential Care,Charges from Independent Providers,"1,998.08",BRIGHSTONE CARE LTD
Revenue,Community Wellbeing & Social Care,5105644253,24.12.2013,Elderly Mentally Ill Residential Care,Charges from Independent Providers,"1,699.88",BRIGHSTONE CARE LTD
Revenue,Community Wellbeing & Social Care,5105639987,04.12.2013,Elderly Mentally Ill Residential Care,Charges from Independent Providers,"1,998.08",BRIGHSTONE CARE LTD
Revenue,Community Wellbeing & Social Care,5105639304,04.12.2013,Elderly Mentally Ill Residential Care,Charges from Independent Providers,"1,998.08",BRIGHSTONE CARE LTD
Revenue,Community Wellbeing & Social Care,5105639304,04.12.2013,Elderly Mentally Ill Residential Care,Charges from Independent Providers,"1,699.88",BRIGHSTONE CARE LTD
Revenue,Community Wellbeing & Social Care,5105639304,04.12.2013,Elderly Mentally Ill Residential Care,Charges from Independent Providers,"1,998.08",BRIGHSTONE CARE LTD
Revenue,Community Wellbeing & Social Care,5105639304,04.12.2013,REDACTED PERSONAL DATA,Order Settlement,"1,699.88",BRIGHSTONE CARE LTD
Revenue,Community Wellbeing & Social Care,5105639304,04.12.2013,REDACTED PERSONAL DATA,Order Settlement,657.72,BRIGHSTONE CARE LTD
Revenue,Community Wellbeing & Social Care,5105644253,24.12.2013,REDACTED PERSONAL DATA,Order Settlement,"1,699.88",BRIGHSTONE CARE LTD
Revenue,Community Wellbeing & Social Care,5105644253,24.12.2013,REDACTED PERSONAL DATA,Order Settlement,657.72,BRIGHSTONE CARE LTD
Revenue,Economy & Environment,5105643381,20.12.2013,Play Areas Health & Safety work,Payment to Private Contractors,792.00,BRIGHSTONE LANDSCAPING LTD
Revenue,Economy & Environment,5105643402,20.12.2013,Play Areas Health & Safety work,Payment to Private Contractors,197.50,BRIGHSTONE LANDSCAPING LTD
Revenue,Economy & Environment,5105642006,13.12.2013,Beach Cleaning,Payment to Private Contractors,40.00,BRIGHSTONE LANDSCAPING LTD
Revenue,Economy & Environment,5105643404,20.12.2013,Beach Cleaning,Payment to Private Contractors,235.00,BRIGHSTONE LANDSCAPING LTD
Revenue,Economy & Environment,5105644071,24.12.2013,Beach Cleaning,Beach Cleansing Contract,"4,168.77",BRIGHSTONE LANDSCAPING LTD
Revenue,Economy & Environment,5105640156,18.12.2013,Beach Cleaning,Payment to Private Contractors,"1,035.00",BRIGHSTONE LANDSCAPING LTD
Revenue,Economy & Environment,5105641997,13.12.2013,Beach Safety & Inspection / Beach Awards,Payment to Private Contractors,640.00,BRIGHSTONE LANDSCAPING LTD
Revenue,Community Wellbeing & Social Care,5105642026,13.12.2013,Personal & Community Development Learning,General Materials,207.00,BRITISH COMPUTER SOCIETY
Revenue,Community Wellbeing & Social Care,5105643060,20.12.2013,Drug Misuse - Adults,Payment to Private Contractors,"2,978.57",BROADREACH HOUSE
Revenue,Economy & Environment,5105642672,18.12.2013,Transport Fleet Administration,Vehicle Fuel Costs,406.36,BROADWAY GARAGE
Revenue,Corporate,5105640217,04.12.2013,Insurance Suspense - Claims Outstanding,Insurance Premiums Paid,"3,142.50",BROWNE JACOBSON
Revenue,Corporate,5105640212,04.12.2013,Insurance Suspense - Claims Outstanding,Insurance Premiums Paid,"2,047.00",BROWNE JACOBSON
Revenue,Corporate,5105640211,04.12.2013,Insurance Suspense - Claims Outstanding,Insurance Premiums Paid,756.00,BROWNE JACOBSON
Revenue,Economy & Environment,5105641185,11.12.2013,Other Grounds Maintenance,Operational Equipment,45.00,BROXAP LTD
Revenue,Community Wellbeing & Social Care,5105641456,11.12.2013,Gouldings Resource Centre,Fixed Telephones,743.18,BT FINANCE
Revenue,Childrens Services,5105640096,06.12.2013,Youth Offending Team,Office Equipment,90.00,BT FINANCE
Revenue,Childrens Services,5105640096,06.12.2013,Youth Offending Team,Fixed Telephones,136.41,BT FINANCE
Revenue,Community Wellbeing & Social Care,5105643547,20.12.2013,Elderly Frail Residential Care,Crisis Support for Carers,499.52,BUCKLAND CARE LTD
Revenue,Community Wellbeing & Social Care,5105644277,24.12.2013,Elderly Frail Residential Care,Charges from Independent Providers,"1,998.08",BUCKLAND CARE LTD
Revenue,Community Wellbeing & Social Care,5105644277,24.12.2013,Elderly Frail Residential Care,Charges from Independent Providers,"1,998.08",BUCKLAND CARE LTD
Revenue,Community Wellbeing & Social Care,5105644277,24.12.2013,Elderly Frail Residential Care,Charges from Independent Providers,"1,622.60",BUCKLAND CARE LTD
Revenue,Community Wellbeing & Social Care,5105644277,24.12.2013,Elderly Frail Residential Care,Charges from Independent Providers,"1,622.60",BUCKLAND CARE LTD
Revenue,Community Wellbeing & Social Care,5105644277,24.12.2013,Elderly Frail Residential Care,Charges from Independent Providers,"1,622.60",BUCKLAND CARE LTD
Revenue,Community Wellbeing & Social Care,5105644277,24.12.2013,Elderly Frail Residential Care,Charges from Independent Providers,"1,998.08",BUCKLAND CARE LTD
Revenue,Community Wellbeing & Social Care,5105644277,24.12.2013,Elderly Frail Residential Care,Charges from Independent Providers,"1,622.60",BUCKLAND CARE LTD
Revenue,Community Wellbeing & Social Care,5105644277,24.12.2013,Elderly Frail Residential Care,Charges from Independent Providers,"1,622.60",BUCKLAND CARE LTD
Revenue,Community Wellbeing & Social Care,5105639326,04.12.2013,Elderly Frail Residential Care,Charges from Independent Providers,"1,998.08",BUCKLAND CARE LTD
Revenue,Community Wellbeing & Social Care,5105639326,04.12.2013,Elderly Frail Residential Care,Charges from Independent Providers,"1,622.60",BUCKLAND CARE LTD
Revenue,Community Wellbeing & Social Care,5105639326,04.12.2013,Elderly Frail Residential Care,Charges from Independent Providers,"1,622.60",BUCKLAND CARE LTD
Revenue,Community Wellbeing & Social Care,5105639326,04.12.2013,Elderly Frail Residential Care,Charges from Independent Providers,"1,998.08",BUCKLAND CARE LTD
Revenue,Community Wellbeing & Social Care,5105644277,24.12.2013,Elderly Frail Residential Care,Charges from Independent Providers,"1,998.08",BUCKLAND CARE LTD
Revenue,Community Wellbeing & Social Care,5105644277,24.12.2013,Elderly Frail Residential Care,Charges from Independent Providers,"1,998.08",BUCKLAND CARE LTD
Revenue,Community Wellbeing & Social Care,5105639326,04.12.2013,Elderly Frail Residential Care,Charges from Independent Providers,"1,998.08",BUCKLAND CARE LTD
Revenue,Community Wellbeing & Social Care,5105639326,04.12.2013,Elderly Frail Residential Care,Charges from Independent Providers,"1,998.08",BUCKLAND CARE LTD
Revenue,Community Wellbeing & Social Care,5105639326,04.12.2013,Elderly Frail Residential Care,Charges from Independent Providers,"1,622.60",BUCKLAND CARE LTD
Revenue,Community Wellbeing & Social Care,5105639326,04.12.2013,Elderly Frail Residential Care,Charges from Independent Providers,"1,622.60",BUCKLAND CARE LTD
Revenue,Community Wellbeing & Social Care,5105639326,04.12.2013,Elderly Frail Residential Care,Charges from Independent Providers,"1,622.60",BUCKLAND CARE LTD
Revenue,Community Wellbeing & Social Care,5105639326,04.12.2013,Elderly Frail Residential Care,Charges from Independent Providers,"1,998.08",BUCKLAND CARE LTD
Revenue,Community Wellbeing & Social Care,5105644277,24.12.2013,Elderly Mentally Ill Residential Care,Charges from Independent Providers,"1,998.08",BUCKLAND CARE LTD
Revenue,Community Wellbeing & Social Care,5105644277,24.12.2013,Elderly Mentally Ill Residential Care,Charges from Independent Providers,"1,699.88",BUCKLAND CARE LTD
Revenue,Community Wellbeing & Social Care,5105644277,24.12.2013,Elderly Mentally Ill Residential Care,Charges from Independent Providers,"1,699.88",BUCKLAND CARE LTD
Revenue,Community Wellbeing & Social Care,5105644277,24.12.2013,Elderly Mentally Ill Residential Care,Charges from Independent Providers,"1,699.88",BUCKLAND CARE LTD
Revenue,Community Wellbeing & Social Care,5105644277,24.12.2013,Elderly Mentally Ill Residential Care,Charges from Independent Providers,"1,699.88",BUCKLAND CARE LTD
Revenue,Community Wellbeing & Social Care,5105641276,11.12.2013,Elderly Mentally Ill Residential Care,Charges from Independent Providers,303.55,BUCKLAND CARE LTD
Revenue,Community Wellbeing & Social Care,5105641276,11.12.2013,Elderly Mentally Ill Residential Care,Charges from Independent Providers,"1,699.88",BUCKLAND CARE LTD
Revenue,Community Wellbeing & Social Care,5105639326,04.12.2013,Elderly Mentally Ill Residential Care,Charges from Independent Providers,"1,699.88",BUCKLAND CARE LTD
Revenue,Community Wellbeing & Social Care,5105639326,04.12.2013,Elderly Mentally Ill Residential Care,Charges from Independent Providers,"1,699.88",BUCKLAND CARE LTD
Revenue,Community Wellbeing & Social Care,5105639326,04.12.2013,Elderly Mentally Ill Residential Care,Charges from Independent Providers,"1,998.08",BUCKLAND CARE LTD
Revenue,Community Wellbeing & Social Care,5105639326,04.12.2013,Elderly Mentally Ill Residential Care,Charges from Independent Providers,"1,699.88",BUCKLAND CARE LTD
Revenue,Community Wellbeing & Social Care,5105639326,04.12.2013,Elderly Mentally Ill Residential Care,Charges from Independent Providers,"1,998.08",BUCKLAND CARE LTD
Revenue,Community Wellbeing & Social Care,5105639326,04.12.2013,REDACTED PERSONAL DATA,Order Settlement,577.36,BUCKLAND CARE LTD
Revenue,Community Wellbeing & Social Care,5105644277,24.12.2013,REDACTED PERSONAL DATA,Order Settlement,"1,622.60",BUCKLAND CARE LTD
Revenue,Community Wellbeing & Social Care,5105644277,24.12.2013,REDACTED PERSONAL DATA,Order Settlement,577.36,BUCKLAND CARE LTD
Revenue,Community Wellbeing & Social Care,5105639326,04.12.2013,REDACTED PERSONAL DATA,Order Settlement,"1,622.60",BUCKLAND CARE LTD
Revenue,Community Wellbeing & Social Care,5105639326,04.12.2013,REDACTED PERSONAL DATA,Order Settlement,"1,699.88",BUCKLAND CARE LTD
Revenue,Community Wellbeing & Social Care,5105644277,24.12.2013,REDACTED PERSONAL DATA,Order Settlement,"1,699.88",BUCKLAND CARE LTD
Revenue,Community Wellbeing & Social Care,5105644277,24.12.2013,REDACTED PERSONAL DATA,Order Settlement,"1,998.08",BUCKLAND CARE LTD
Revenue,Community Wellbeing & Social Care,5105644260,24.12.2013,Elderly Frail Nursing Island,Charges from Independent Providers,"2,672.32",BUCKLAND CARE LTD
Revenue,Community Wellbeing & Social Care,5105644260,24.12.2013,Elderly Frail Nursing Island,Charges from Independent Providers,"2,672.32",BUCKLAND CARE LTD
Revenue,Community Wellbeing & Social Care,5105644260,24.12.2013,Elderly Frail Nursing Island,Charges from Independent Providers,"2,672.32",BUCKLAND CARE LTD
Revenue,Community Wellbeing & Social Care,5105644260,24.12.2013,Elderly Frail Nursing Island,Charges from Independent Providers,"2,672.32",BUCKLAND CARE LTD
Revenue,Community Wellbeing & Social Care,5105644260,24.12.2013,Elderly Frail Nursing Island,Charges from Independent Providers,"2,672.32",BUCKLAND CARE LTD
Revenue,Community Wellbeing & Social Care,5105644260,24.12.2013,Elderly Frail Nursing Island,Charges from Independent Providers,"2,672.32",BUCKLAND CARE LTD
Revenue,Community Wellbeing & Social Care,5105644260,24.12.2013,Elderly Frail Nursing Island,Charges from Independent Providers,"2,672.32",BUCKLAND CARE LTD
Revenue,Community Wellbeing & Social Care,5105644260,24.12.2013,Elderly Frail Nursing Island,Charges from Independent Providers,"2,672.32",BUCKLAND CARE LTD
Revenue,Community Wellbeing & Social Care,5105644260,24.12.2013,Elderly Frail Nursing Island,Charges from Independent Providers,"2,672.32",BUCKLAND CARE LTD
Revenue,Community Wellbeing & Social Care,5105644260,24.12.2013,Elderly Frail Nursing Island,Charges from Independent Providers,"2,672.32",BUCKLAND CARE LTD
Revenue,Community Wellbeing & Social Care,5105639311,04.12.2013,Elderly Frail Nursing Island,Charges from Independent Providers,"2,672.32",BUCKLAND CARE LTD
Revenue,Community Wellbeing & Social Care,5105639311,04.12.2013,Elderly Frail Nursing Island,Charges from Independent Providers,"2,672.32",BUCKLAND CARE LTD
Revenue,Community Wellbeing & Social Care,5105639311,04.12.2013,Elderly Frail Nursing Island,Charges from Independent Providers,"2,672.32",BUCKLAND CARE LTD
Revenue,Community Wellbeing & Social Care,5105639311,04.12.2013,Elderly Frail Nursing Island,Charges from Independent Providers,"2,672.32",BUCKLAND CARE LTD
Revenue,Community Wellbeing & Social Care,5105639311,04.12.2013,Elderly Frail Nursing Island,Charges from Independent Providers,"2,672.32",BUCKLAND CARE LTD
Revenue,Community Wellbeing & Social Care,5105639311,04.12.2013,Elderly Frail Nursing Island,Charges from Independent Providers,"2,672.32",BUCKLAND CARE LTD
Revenue,Community Wellbeing & Social Care,5105639311,04.12.2013,Elderly Frail Nursing Island,Charges from Independent Providers,"2,672.32",BUCKLAND CARE LTD
Revenue,Community Wellbeing & Social Care,5105639311,04.12.2013,Elderly Frail Nursing Island,Charges from Independent Providers,"2,672.32",BUCKLAND CARE LTD
Revenue,Community Wellbeing & Social Care,5105639311,04.12.2013,Elderly Frail Nursing Island,Charges from Independent Providers,"2,672.32",BUCKLAND CARE LTD
Revenue,Community Wellbeing & Social Care,5105639311,04.12.2013,Elderly Frail Nursing Island,Charges from Independent Providers,"2,672.32",BUCKLAND CARE LTD
Revenue,Community Wellbeing & Social Care,5105639311,04.12.2013,Elderly Frail Nursing Island,Charges from Independent Providers,"2,672.32",BUCKLAND CARE LTD
Revenue,Community Wellbeing & Social Care,5105639311,04.12.2013,Elderly Mentally Ill Nursing Island,Regular Respite Care,"2,672.32",BUCKLAND CARE LTD
Revenue,Community Wellbeing & Social Care,5105644260,24.12.2013,Elderly Mentally Ill Nursing Island,Charges from Independent Providers,"2,672.32",BUCKLAND CARE LTD
Revenue,Community Wellbeing & Social Care,5105644260,24.12.2013,Elderly Mentally Ill Nursing Island,Regular Respite Care,"2,672.32",BUCKLAND CARE LTD
Revenue,Community Wellbeing & Social Care,5105640343,06.12.2013,Elderly Mentally Ill Nursing Island,Charges from Independent Providers,"2,672.32",BUCKLAND CARE LTD
Revenue,Community Wellbeing & Social Care,5105640343,06.12.2013,Elderly Mentally Ill Nursing Island,Charges from Independent Providers,954.40,BUCKLAND CARE LTD
Revenue,Community Wellbeing & Social Care,5105644260,24.12.2013,Funded Nursing Care Island,Charges from Independent Providers,439.32,BUCKLAND CARE LTD
Revenue,Community Wellbeing & Social Care,5105644260,24.12.2013,Funded Nursing Care Island,Charges from Independent Providers,439.32,BUCKLAND CARE LTD
Revenue,Community Wellbeing & Social Care,5105644260,24.12.2013,Funded Nursing Care Island,Charges from Independent Providers,439.32,BUCKLAND CARE LTD
Revenue,Community Wellbeing & Social Care,5105644260,24.12.2013,Funded Nursing Care Island,Charges from Independent Providers,439.32,BUCKLAND CARE LTD
Revenue,Community Wellbeing & Social Care,5105644260,24.12.2013,Funded Nursing Care Island,Charges from Independent Providers,439.32,BUCKLAND CARE LTD
Revenue,Community Wellbeing & Social Care,5105644260,24.12.2013,Funded Nursing Care Island,Charges from Independent Providers,439.32,BUCKLAND CARE LTD
Revenue,Community Wellbeing & Social Care,5105644260,24.12.2013,Funded Nursing Care Island,Charges from Independent Providers,439.32,BUCKLAND CARE LTD
Revenue,Community Wellbeing & Social Care,5105644260,24.12.2013,Funded Nursing Care Island,Charges from Independent Providers,439.32,BUCKLAND CARE LTD
Revenue,Community Wellbeing & Social Care,5105644260,24.12.2013,Funded Nursing Care Island,Charges from Independent Providers,439.32,BUCKLAND CARE LTD
Revenue,Community Wellbeing & Social Care,5105642036,13.12.2013,Funded Nursing Care Island,Charges from Independent Providers,878.64,BUCKLAND CARE LTD
Revenue,Community Wellbeing & Social Care,5105639311,04.12.2013,Funded Nursing Care Island,Charges from Independent Providers,439.32,BUCKLAND CARE LTD
Revenue,Community Wellbeing & Social Care,5105639311,04.12.2013,Funded Nursing Care Island,Charges from Independent Providers,439.32,BUCKLAND CARE LTD
Revenue,Community Wellbeing & Social Care,5105642036,13.12.2013,Funded Nursing Care Island,Charges from Independent Providers,235.35,BUCKLAND CARE LTD
Revenue,Community Wellbeing & Social Care,5105639311,04.12.2013,Funded Nursing Care Island,Charges from Independent Providers,439.32,BUCKLAND CARE LTD
Revenue,Community Wellbeing & Social Care,5105639311,04.12.2013,Funded Nursing Care Island,Charges from Independent Providers,439.32,BUCKLAND CARE LTD
Revenue,Community Wellbeing & Social Care,5105639311,04.12.2013,Funded Nursing Care Island,Charges from Independent Providers,439.32,BUCKLAND CARE LTD
Revenue,Community Wellbeing & Social Care,5105639311,04.12.2013,Funded Nursing Care Island,Charges from Independent Providers,439.32,BUCKLAND CARE LTD
Revenue,Community Wellbeing & Social Care,5105639311,04.12.2013,Funded Nursing Care Island,Charges from Independent Providers,439.32,BUCKLAND CARE LTD
Revenue,Community Wellbeing & Social Care,5105639311,04.12.2013,Funded Nursing Care Island,Charges from Independent Providers,439.32,BUCKLAND CARE LTD
Revenue,Community Wellbeing & Social Care,5105644260,24.12.2013,REDACTED PERSONAL DATA,Order Settlement,"2,672.32",BUCKLAND CARE LTD
Revenue,Community Wellbeing & Social Care,5105639311,04.12.2013,REDACTED PERSONAL DATA,Order Settlement,"2,672.32",BUCKLAND CARE LTD
Revenue,Community Wellbeing & Social Care,5105639311,04.12.2013,REDACTED PERSONAL DATA,Order Settlement,"2,672.32",BUCKLAND CARE LTD
Revenue,Community Wellbeing & Social Care,5105644260,24.12.2013,REDACTED PERSONAL DATA,Order Settlement,"2,672.32",BUCKLAND CARE LTD
Revenue,Community Wellbeing & Social Care,5105644260,24.12.2013,REDACTED PERSONAL DATA,Order Settlement,"2,672.32",BUCKLAND CARE LTD
Revenue,Community Wellbeing & Social Care,5105644260,24.12.2013,REDACTED PERSONAL DATA,Order Settlement,732.20,BUCKLAND CARE LTD
Revenue,Community Wellbeing & Social Care,5105639311,04.12.2013,REDACTED PERSONAL DATA,Order Settlement,"2,672.32",BUCKLAND CARE LTD
Revenue,Community Wellbeing & Social Care,5105643147,20.12.2013,REDACTED PERSONAL DATA,Order Settlement,732.20,BUCKLAND CARE LTD
Revenue,Economy & Environment,5105642589,18.12.2013,Medina Leisure Centre,Payment to Private Contractors,772.69,BUILDING DESIGN SERVICES
Revenue,Community Wellbeing & Social Care,5105639671,04.12.2013,Elderly Frail Nursing Mainland,Charges from Independent Providers,"1,841.84",BUPA CARE HOME (BNH) LTD
Revenue,Community Wellbeing & Social Care,5105644627,24.12.2013,Elderly Frail Nursing Mainland,Charges from Independent Providers,"1,841.84",BUPA CARE HOME (BNH) LTD
Revenue,Economy & Environment,5105641061,11.12.2013,Project Manager Waste Strategy,Professional Services,"2,601.75",BURGES SALMON LLP
Revenue,Community Wellbeing & Social Care,5105640200,04.12.2013,Seagulls,Clothing & Laundry,333.33,BUYWISE
Revenue,Community Wellbeing & Social Care,5105640199,04.12.2013,Saxonbury,Clothing & Laundry,950.00,BUYWISE
Revenue,Community Wellbeing & Social Care,5105640199,04.12.2013,Saxonbury,Clothing & Laundry,850.00,BUYWISE
Revenue,Community Wellbeing & Social Care,5105640199,04.12.2013,Saxonbury,Clothing & Laundry,100.00,BUYWISE
Revenue,Resources,5105643387,20.12.2013,Properties  - Other Properties,Grounds Maintenance,35.00,C & J GROUND MAINTENANCE
Revenue,Resources,5105643383,24.12.2013,Properties  - Other Properties,Grounds Maintenance,"2,060.00",C & J GROUND MAINTENANCE
Revenue,Resources,5105643991,24.12.2013,Properties  - Other Properties,Grounds Maintenance,85.00,C & J GROUND MAINTENANCE
Revenue,Resources,5105643941,24.12.2013,Rechargeable Properties,Grounds Maintenance,47.50,C & J GROUND MAINTENANCE
Revenue,Community Wellbeing & Social Care,5105643385,20.12.2013,Shanklin Library,Grounds Maintenance,75.00,C & J GROUND MAINTENANCE
Revenue,Childrens Services,5105642425,18.12.2013,Beaulieu House,Grounds Maintenance,225.00,C & J GROUND MAINTENANCE
Revenue,Economy & Environment,5105643936,24.12.2013,Fire Operations,Grounds Maintenance,"1,000.00",C & J GROUND MAINTENANCE
Revenue,Childrens Services,5105643277,20.12.2013,In-house Fostering,Boarding Out Allowances,33.00,REDACTED PERSONAL DATA
Revenue,Childrens Services,5105641691,13.12.2013,In-house Fostering,Boarding Out Allowances,16.50,REDACTED PERSONAL DATA
Revenue,Childrens Services,5105640470,06.12.2013,In-house Fostering,Boarding Out Allowances,16.50,REDACTED PERSONAL DATA
Revenue,Childrens Services,5105639248,04.12.2013,Family Support Work,Building & Room Rental,750.00,REDACTED PERSONAL DATA
Revenue,Childrens Services,5105641663,13.12.2013,Children placed with Family & Friends,Boarding Out Allowances,257.29,REDACTED PERSONAL DATA
Revenue,Childrens Services,5105643249,20.12.2013,Children placed with Family & Friends,Boarding Out Allowances,514.58,REDACTED PERSONAL DATA
Revenue,Childrens Services,5105640442,06.12.2013,Children placed with Family & Friends,Boarding Out Allowances,257.29,REDACTED PERSONAL DATA
Revenue,Childrens Services,5105640417,06.12.2013,Special Guardianship Order Costs,Support Children,125.79,REDACTED PERSONAL DATA
Revenue,Childrens Services,5105643223,20.12.2013,Special Guardianship Order Costs,Support Children,251.58,REDACTED PERSONAL DATA
Revenue,Childrens Services,5105641638,13.12.2013,Special Guardianship Order Costs,Support Children,125.79,REDACTED PERSONAL DATA
Revenue,Childrens Services,5105641698,13.12.2013,Children placed with Family & Friends,Boarding Out Allowances,130.20,REDACTED PERSONAL DATA
Revenue,Childrens Services,5105640477,06.12.2013,Children placed with Family & Friends,Boarding Out Allowances,130.20,REDACTED PERSONAL DATA
Revenue,Childrens Services,5105643284,20.12.2013,Children placed with Family & Friends,Boarding Out Allowances,260.40,REDACTED PERSONAL DATA
Revenue,Childrens Services,5105641674,13.12.2013,Adoption Costs,Support Children,125.79,REDACTED PERSONAL DATA
Revenue,Childrens Services,5105641674,13.12.2013,Adoption Costs,Support Children,132.69,REDACTED PERSONAL DATA
Revenue,Childrens Services,5105640453,06.12.2013,Adoption Costs,Support Children,125.79,REDACTED PERSONAL DATA
Revenue,Childrens Services,5105640453,06.12.2013,Adoption Costs,Support Children,132.69,REDACTED PERSONAL DATA
Revenue,Childrens Services,5105643260,20.12.2013,Adoption Costs,Support Children,251.58,REDACTED PERSONAL DATA
Revenue,Childrens Services,5105643260,20.12.2013,Adoption Costs,Support Children,265.38,REDACTED PERSONAL DATA
Revenue,Resources,5105643775,20.12.2013,Staff Benefits,Payment to Private Contractors,138.72,REDACTED PERSONAL DATA
Revenue,Childrens Services,5105643244,20.12.2013,Leaving Care Costs,Accommodation Costs - Service Users,115.00,REDACTED PERSONAL DATA
Revenue,Childrens Services,5105643244,20.12.2013,Leaving Care Costs,Accommodation Costs - Service Users,115.00,REDACTED PERSONAL DATA
Revenue,Childrens Services,5105641658,13.12.2013,Leaving Care Costs,Accommodation Costs - Service Users,57.50,REDACTED PERSONAL DATA
Revenue,Childrens Services,5105640437,06.12.2013,Leaving Care Costs,Accommodation Costs - Service Users,57.50,REDACTED PERSONAL DATA
Revenue,Childrens Services,5105641658,13.12.2013,Leaving Care Costs,Support Children,120.89,REDACTED PERSONAL DATA
Revenue,Childrens Services,5105643244,20.12.2013,Leaving Care Costs,Support Children,241.78,REDACTED PERSONAL DATA
Revenue,Childrens Services,5105643244,20.12.2013,Leaving Care Costs,Support Children,120.90,REDACTED PERSONAL DATA
Revenue,Childrens Services,5105643244,20.12.2013,Leaving Care Costs,Support Children,241.78,REDACTED PERSONAL DATA
Revenue,Childrens Services,5105640437,06.12.2013,Leaving Care Costs,Support Children,120.89,REDACTED PERSONAL DATA
Revenue,Childrens Services,5105640433,06.12.2013,Special Guardianship Order Costs,Support Children,125.79,REDACTED PERSONAL DATA
Revenue,Childrens Services,5105643239,20.12.2013,Special Guardianship Order Costs,Support Children,251.58,REDACTED PERSONAL DATA
Revenue,Childrens Services,5105641654,13.12.2013,Special Guardianship Order Costs,Support Children,125.79,REDACTED PERSONAL DATA
Revenue,Childrens Services,5105641642,13.12.2013,Adoption Costs,Support Children,168.39,REDACTED PERSONAL DATA
Revenue,Childrens Services,5105641642,13.12.2013,Adoption Costs,Support Children,168.39,REDACTED PERSONAL DATA
Revenue,Childrens Services,5105640421,06.12.2013,Adoption Costs,Support Children,168.39,REDACTED PERSONAL DATA
Revenue,Childrens Services,5105640421,06.12.2013,Adoption Costs,Support Children,168.39,REDACTED PERSONAL DATA
Revenue,Childrens Services,5105643226,20.12.2013,Adoption Costs,Support Children,336.78,REDACTED PERSONAL DATA
Revenue,Childrens Services,5105643226,20.12.2013,Adoption Costs,Support Children,336.78,REDACTED PERSONAL DATA
Revenue,Childrens Services,5105643310,20.12.2013,Special Guardianship Order Costs,Support Children,233.60,REDACTED PERSONAL DATA
Revenue,Childrens Services,5105641723,13.12.2013,Special Guardianship Order Costs,Support Children,116.80,REDACTED PERSONAL DATA
Revenue,Childrens Services,5105640502,06.12.2013,Children placed with Family & Friends,Boarding Out Allowances,130.20,REDACTED PERSONAL DATA
Revenue,Childrens Services,5105641635,13.12.2013,In-house Fostering,Boarding Out Allowances,221.13,REDACTED PERSONAL DATA
Revenue,Childrens Services,5105641635,13.12.2013,In-house Fostering,Boarding Out Allowances,238.87,REDACTED PERSONAL DATA
Revenue,Childrens Services,5105641635,13.12.2013,In-house Fostering,Boarding Out Allowances,268.21,REDACTED PERSONAL DATA
Revenue,Childrens Services,5105643220,20.12.2013,In-house Fostering,Boarding Out Allowances,442.26,REDACTED PERSONAL DATA
Revenue,Childrens Services,5105643220,20.12.2013,In-house Fostering,Boarding Out Allowances,477.74,REDACTED PERSONAL DATA
Revenue,Childrens Services,5105643220,20.12.2013,In-house Fostering,Boarding Out Allowances,536.42,REDACTED PERSONAL DATA
Revenue,Childrens Services,5105643220,20.12.2013,In-house Fostering,Boarding Out Allowances,442.26,REDACTED PERSONAL DATA
Revenue,Childrens Services,5105643220,20.12.2013,In-house Fostering,Boarding Out Allowances,20.00,REDACTED PERSONAL DATA
Revenue,Childrens Services,5105641635,13.12.2013,In-house Fostering,Boarding Out Allowances,221.13,REDACTED PERSONAL DATA
Revenue,Childrens Services,5105641635,13.12.2013,In-house Fostering,Boarding Out Allowances,10.00,REDACTED PERSONAL DATA
Revenue,Childrens Services,5105640414,06.12.2013,In-house Fostering,Boarding Out Allowances,221.13,REDACTED PERSONAL DATA
Revenue,Childrens Services,5105640414,06.12.2013,In-house Fostering,Boarding Out Allowances,238.87,REDACTED PERSONAL DATA
Revenue,Childrens Services,5105640414,06.12.2013,In-house Fostering,Boarding Out Allowances,10.00,REDACTED PERSONAL DATA
Revenue,Childrens Services,5105640414,06.12.2013,In-house Fostering,Boarding Out Allowances,221.13,REDACTED PERSONAL DATA
Revenue,Childrens Services,5105640414,06.12.2013,In-house Fostering,Boarding Out Allowances,268.21,REDACTED PERSONAL DATA
Revenue,Childrens Services,5105641571,13.12.2013,Leaving Care Costs,Accommodation Costs - Service Users,57.50,REDACTED PERSONAL DATA
Revenue,Childrens Services,5105643156,20.12.2013,Leaving Care Costs,Accommodation Costs - Service Users,115.00,REDACTED PERSONAL DATA
Revenue,Childrens Services,5105640350,06.12.2013,Leaving Care Costs,Accommodation Costs - Service Users,57.50,REDACTED PERSONAL DATA
Revenue,Childrens Services,5105643156,20.12.2013,Leaving Care Costs,Support Children,241.78,REDACTED PERSONAL DATA
Revenue,Childrens Services,5105640350,06.12.2013,Leaving Care Costs,Support Children,120.89,REDACTED PERSONAL DATA
Revenue,Childrens Services,5105641571,13.12.2013,Leaving Care Costs,Support Children,120.89,REDACTED PERSONAL DATA
Revenue,Resources,5105644145,24.12.2013,Litigation Costs,Legal Fees - Other Parties,101.16,REDACTED PERSONAL DATA
Revenue,Childrens Services,5105640389,06.12.2013,Leaving Care Costs,Accommodation Costs - Service Users,57.50,REDACTED PERSONAL DATA
Revenue,Childrens Services,5105640389,06.12.2013,Leaving Care Costs,Support Children,120.89,REDACTED PERSONAL DATA
Revenue,Childrens Services,5105643195,20.12.2013,In-house Fostering,Boarding Out Allowances,442.26,REDACTED PERSONAL DATA
Revenue,Childrens Services,5105643195,20.12.2013,In-house Fostering,Boarding Out Allowances,30.00,REDACTED PERSONAL DATA
Revenue,Childrens Services,5105641610,13.12.2013,In-house Fostering,Boarding Out Allowances,221.13,REDACTED PERSONAL DATA
Revenue,Childrens Services,5105641610,13.12.2013,In-house Fostering,Boarding Out Allowances,15.00,REDACTED PERSONAL DATA
Revenue,Childrens Services,5105640389,06.12.2013,In-house Fostering,Boarding Out Allowances,221.13,REDACTED PERSONAL DATA
Revenue,Childrens Services,5105640389,06.12.2013,In-house Fostering,Boarding Out Allowances,15.00,REDACTED PERSONAL DATA
Revenue,Childrens Services,5105643216,20.12.2013,Children placed with Family & Friends,Boarding Out Allowances,363.58,REDACTED PERSONAL DATA
Revenue,Childrens Services,5105641631,13.12.2013,Children placed with Family & Friends,Boarding Out Allowances,100.00,REDACTED PERSONAL DATA
Revenue,Childrens Services,5105643216,20.12.2013,Children placed with Family & Friends,Boarding Out Allowances,200.00,REDACTED PERSONAL DATA
Revenue,Childrens Services,5105641631,13.12.2013,Children placed with Family & Friends,Boarding Out Allowances,181.79,REDACTED PERSONAL DATA
Revenue,Childrens Services,5105640410,06.12.2013,Children placed with Family & Friends,Boarding Out Allowances,181.79,REDACTED PERSONAL DATA
Revenue,Childrens Services,5105640410,06.12.2013,Children placed with Family & Friends,Boarding Out Allowances,100.00,REDACTED PERSONAL DATA
Revenue,Economy & Environment,5105643378,20.12.2013,Other Grounds Maintenance,Payment to Private Contractors,692.75,C N SERVICES
Revenue,Economy & Environment,5105643380,20.12.2013,Other Grounds Maintenance,Payment to Private Contractors,68.00,C N SERVICES
Revenue,Economy & Environment,5105643379,20.12.2013,Play Areas Health & Safety work,Payment to Private Contractors,761.75,C N SERVICES
Revenue,Childrens Services,5105643188,20.12.2013,In-house Fostering,Regular Respite Care,240.00,REDACTED PERSONAL DATA
Revenue,Childrens Services,5105641603,13.12.2013,In-house Fostering,Regular Respite Care,120.00,REDACTED PERSONAL DATA
Revenue,Childrens Services,5105640382,06.12.2013,In-house Fostering,Regular Respite Care,120.00,REDACTED PERSONAL DATA
Revenue,Resources,5105643787,20.12.2013,Staff Benefits,Payment to Private Contractors,243.00,REDACTED PERSONAL DATA
Revenue,Childrens Services,5105643230,20.12.2013,In-house Fostering,Boarding Out Allowances,260.40,REDACTED PERSONAL DATA
Revenue,Childrens Services,5105643230,20.12.2013,In-house Fostering,Boarding Out Allowances,20.00,REDACTED PERSONAL DATA
Revenue,Childrens Services,5105641646,13.12.2013,In-house Fostering,Boarding Out Allowances,130.20,REDACTED PERSONAL DATA
Revenue,Childrens Services,5105641646,13.12.2013,In-house Fostering,Boarding Out Allowances,10.00,REDACTED PERSONAL DATA
Revenue,Childrens Services,5105640425,06.12.2013,In-house Fostering,Boarding Out Allowances,130.20,REDACTED PERSONAL DATA
Revenue,Childrens Services,5105640425,06.12.2013,In-house Fostering,Boarding Out Allowances,10.00,REDACTED PERSONAL DATA
Revenue,Childrens Services,5105641732,13.12.2013,Children placed with Family & Friends,Boarding Out Allowances,181.79,REDACTED PERSONAL DATA
Revenue,Childrens Services,5105643319,20.12.2013,Children placed with Family & Friends,Boarding Out Allowances,363.58,REDACTED PERSONAL DATA
Revenue,Childrens Services,5105640510,06.12.2013,Children placed with Family & Friends,Boarding Out Allowances,181.79,REDACTED PERSONAL DATA
Revenue,Childrens Services,5105643253,20.12.2013,Special Guardianship Order Costs,Support Children,251.58,REDACTED PERSONAL DATA
Revenue,Childrens Services,5105641667,13.12.2013,Special Guardianship Order Costs,Support Children,125.79,REDACTED PERSONAL DATA
Revenue,Childrens Services,5105640446,06.12.2013,Special Guardianship Order Costs,Support Children,125.79,REDACTED PERSONAL DATA
Revenue,Community Wellbeing & Social Care,5105644213,24.12.2013,Learning Disability Residential Care,Charges from Independent Providers,"1,811.88",REDACTED PERSONAL DATA
Revenue,Community Wellbeing & Social Care,5105639264,04.12.2013,Learning Disability Residential Care,Charges from Independent Providers,"1,811.88",REDACTED PERSONAL DATA
Revenue,Childrens Services,5105641636,13.12.2013,Adoption Costs,Support Children,132.69,REDACTED PERSONAL DATA
Revenue,Childrens Services,5105643221,20.12.2013,Adoption Costs,Support Children,265.38,REDACTED PERSONAL DATA
Revenue,Childrens Services,5105640415,06.12.2013,Adoption Costs,Support Children,132.69,REDACTED PERSONAL DATA
Revenue,Community Wellbeing & Social Care,5105642668,18.12.2013,Workforce Development -  Westridge Centre,Gas,417.90,CALOR GAS LIMITED
Revenue,Community Wellbeing & Social Care,5105642590,18.12.2013,STI Tests & Treatment,Payments to Health Authorities,148.97,CAMBRIDGESHIRE COMMUNITY SERVICES
Revenue,Community Wellbeing & Social Care,5105642591,18.12.2013,STI Tests & Treatment,Payments to Health Authorities,91.85,CAMBRIDGESHIRE COMMUNITY SERVICES
Revenue,Resources,5105643003,20.12.2013,Help Centres Shared Service Centre,Sundry Office Expenses,3.12,CANNON HYGIENE
Revenue,Childrens Services,5105643365,20.12.2013,Beaulieu House,"Refuse Collection, Disposal and Recycling Costs",729.30,CANNON HYGIENE
Revenue,Economy & Environment,5105638624,04.12.2013,Planning Business Support,Office Equipment,133.14,CANON (UK) LTD
Revenue,Community Wellbeing & Social Care,5105642593,18.12.2013,Archives,Printing Costs,408.00,CAPITA BUSINESS SERVICES LTD
Capital,Childrens Services,5105643609,24.12.2013,Leisure Facility Improvement,"Plant, Equipment & Furniture - Capital",500.00,CAPITA BUSINESS SERVICES LTD
Revenue,Resources,5105643009,18.12.2013,Human Resources,Agency staff,"7,800.00",CAPITA RESOURCING LTD
Revenue,Resources,5105643066,20.12.2013,Human Resources,Agency staff,"1,000.00",CAPITA RESOURCING LTD
Revenue,Economy & Environment,5105644186,24.12.2013,Highways PFI Project,Building & Room Rental,"3,750.00",CAPITA SYMONDS LTD
Revenue,Childrens Services,5105641485,24.12.2013,Purchased Fostering,Charges from Independent Providers,"3,542.45",CAPSTONE FOSTER CARE LTD
Revenue,Community Wellbeing & Social Care,5105642125,13.12.2013,Elderly Frail Homecare,Charges from Independent Providers,254.10,CARE FIRST IW LTD
Revenue,Community Wellbeing & Social Care,5105642126,13.12.2013,Elderly Frail Homecare,Charges from Independent Providers,163.35,CARE FIRST IW LTD
Revenue,Community Wellbeing & Social Care,5105642120,13.12.2013,Elderly Frail Homecare,Charges from Independent Providers,254.10,CARE FIRST IW LTD
Revenue,Community Wellbeing & Social Care,5105642119,13.12.2013,Elderly Frail Homecare,Charges from Independent Providers,290.40,CARE FIRST IW LTD
Revenue,Community Wellbeing & Social Care,5105642123,13.12.2013,Elderly Frail Homecare,Charges from Independent Providers,217.80,CARE FIRST IW LTD
Revenue,Community Wellbeing & Social Care,5105642121,13.12.2013,Elderly Frail Homecare,Charges from Independent Providers,145.20,CARE FIRST IW LTD
Revenue,Community Wellbeing & Social Care,5105643592,20.12.2013,Elderly Frail Homecare,Charges from Independent Providers,254.10,CARE FIRST IW LTD
Revenue,Community Wellbeing & Social Care,5105643593,20.12.2013,Elderly Frail Homecare,Charges from Independent Providers,"1,009.14",CARE FIRST IW LTD
Revenue,Community Wellbeing & Social Care,5105643594,20.12.2013,Elderly Frail Homecare,Charges from Independent Providers,918.39,CARE FIRST IW LTD
Revenue,Community Wellbeing & Social Care,5105642122,13.12.2013,Elderly Frail Homecare,Regular Respite Care,145.20,CARE FIRST IW LTD
Revenue,Community Wellbeing & Social Care,5105642124,13.12.2013,Elderly Frail Homecare,Regular Respite Care,435.60,CARE FIRST IW LTD
Revenue,Community Wellbeing & Social Care,5105642101,13.12.2013,Elderly Frail Homecare,Regular Respite Care,145.20,CARE FIRST IW LTD
Revenue,Community Wellbeing & Social Care,5105642116,13.12.2013,Elderly Frail Homecare,Regular Respite Care,232.32,CARE FIRST IW LTD
Revenue,Community Wellbeing & Social Care,5105642096,13.12.2013,Elderly Frail Homecare,Charges from Independent Providers,932.91,CARE FIRST IW LTD
Revenue,Community Wellbeing & Social Care,5105642097,13.12.2013,Elderly Frail Homecare,Charges from Independent Providers,"2,541.00",CARE FIRST IW LTD
Revenue,Community Wellbeing & Social Care,5105642098,13.12.2013,Elderly Frail Homecare,Charges from Independent Providers,"2,286.90",CARE FIRST IW LTD
Revenue,Community Wellbeing & Social Care,5105642099,13.12.2013,Elderly Frail Homecare,Charges from Independent Providers,381.15,CARE FIRST IW LTD
Revenue,Community Wellbeing & Social Care,5105642100,13.12.2013,Elderly Frail Homecare,Charges from Independent Providers,217.80,CARE FIRST IW LTD
Revenue,Community Wellbeing & Social Care,5105642110,13.12.2013,Elderly Frail Homecare,Charges from Independent Providers,108.90,CARE FIRST IW LTD
Revenue,Community Wellbeing & Social Care,5105642113,13.12.2013,Elderly Frail Homecare,Charges from Independent Providers,762.30,CARE FIRST IW LTD
Revenue,Community Wellbeing & Social Care,5105642117,13.12.2013,Elderly Frail Homecare,Charges from Independent Providers,254.10,CARE FIRST IW LTD
Revenue,Community Wellbeing & Social Care,5105642118,13.12.2013,Elderly Frail Homecare,Charges from Independent Providers,304.92,CARE FIRST IW LTD
Revenue,Community Wellbeing & Social Care,5105642114,13.12.2013,Elderly Frail Homecare,Charges from Independent Providers,137.94,CARE FIRST IW LTD
Revenue,Community Wellbeing & Social Care,5105642109,13.12.2013,Elderly Frail Homecare,Charges from Independent Providers,635.25,CARE FIRST IW LTD
Revenue,Community Wellbeing & Social Care,5105642107,13.12.2013,Elderly Frail Homecare,Charges from Independent Providers,635.25,CARE FIRST IW LTD
Revenue,Community Wellbeing & Social Care,5105642105,13.12.2013,Elderly Frail Homecare,Charges from Independent Providers,239.58,CARE FIRST IW LTD
Revenue,Community Wellbeing & Social Care,5105642102,13.12.2013,Elderly Frail Homecare,Charges from Independent Providers,762.30,CARE FIRST IW LTD
Revenue,Community Wellbeing & Social Care,5105642103,13.12.2013,Elderly Frail Homecare,Charges from Independent Providers,653.40,CARE FIRST IW LTD
Revenue,Community Wellbeing & Social Care,5105642104,13.12.2013,Elderly Frail Homecare,Charges from Independent Providers,"1,778.70",CARE FIRST IW LTD
Revenue,Community Wellbeing & Social Care,5105642106,13.12.2013,Elderly Frail Homecare,Charges from Independent Providers,254.10,CARE FIRST IW LTD
Revenue,Community Wellbeing & Social Care,5105642112,13.12.2013,Elderly Mentally Ill Homecare,Charges from Independent Providers,"2,613.60",CARE FIRST IW LTD
Revenue,Community Wellbeing & Social Care,5105642127,13.12.2013,Elderly Mentally Ill Homecare,Charges from Independent Providers,381.15,CARE FIRST IW LTD
Revenue,Community Wellbeing & Social Care,5105643591,20.12.2013,Mental Health Homecare,Charges from Independent Providers,105.27,CARE FIRST IW LTD
Revenue,Community Wellbeing & Social Care,5105642115,13.12.2013,Physical Disability Homecare,Regular Respite Care,145.20,CARE FIRST IW LTD
Revenue,Community Wellbeing & Social Care,5105642108,13.12.2013,Physical Disability Homecare,Charges from Independent Providers,"2,780.58",CARE FIRST IW LTD
Revenue,Community Wellbeing & Social Care,5105639995,04.12.2013,Elderly Frail Managed Accounts,Charges from Independent Providers,377.52,CARE FIRST IW LTD
Revenue,Community Wellbeing & Social Care,5105642111,13.12.2013,Elderly Frail Managed Accounts,Charges from Independent Providers,471.90,CARE FIRST IW LTD
Revenue,Community Wellbeing & Social Care,5105641476,11.12.2013,Overbrook,Grounds Maintenance,20.00,CARE IN THE GARDEN
Revenue,Community Wellbeing & Social Care,5105641479,11.12.2013,Seagulls,Grounds Maintenance,30.00,CARE IN THE GARDEN
Revenue,Community Wellbeing & Social Care,5105641477,11.12.2013,Plean Dene,Grounds Maintenance,50.00,CARE IN THE GARDEN
Revenue,Community Wellbeing & Social Care,5105641478,11.12.2013,Saxonbury,Grounds Maintenance,30.00,CARE IN THE GARDEN
Revenue,Community Wellbeing & Social Care,5105641481,11.12.2013,40 Venner Avenue,Grounds Maintenance,20.00,CARE IN THE GARDEN
Revenue,Community Wellbeing & Social Care,5105641471,11.12.2013,Highmead,Grounds Maintenance,40.00,CARE IN THE GARDEN
Revenue,Community Wellbeing & Social Care,5105641473,11.12.2013,The Laurels,Grounds Maintenance,20.00,CARE IN THE GARDEN
Revenue,Community Wellbeing & Social Care,5105642360,18.12.2013,Elderly Frail Homecare,Charges from Independent Providers,65.34,CAREWATCH (ISLE OF WIGHT)
Revenue,Community Wellbeing & Social Care,5105642361,18.12.2013,Elderly Frail Homecare,Charges from Independent Providers,588.06,CAREWATCH (ISLE OF WIGHT)
Revenue,Community Wellbeing & Social Care,5105642363,18.12.2013,Elderly Frail Homecare,Charges from Independent Providers,660.66,CAREWATCH (ISLE OF WIGHT)
Revenue,Community Wellbeing & Social Care,5105642367,18.12.2013,Elderly Frail Homecare,Charges from Independent Providers,232.32,CAREWATCH (ISLE OF WIGHT)
Revenue,Community Wellbeing & Social Care,5105642372,18.12.2013,Elderly Frail Homecare,Charges from Independent Providers,279.51,CAREWATCH (ISLE OF WIGHT)
Revenue,Community Wellbeing & Social Care,5105642369,18.12.2013,Elderly Frail Homecare,Charges from Independent Providers,203.28,CAREWATCH (ISLE OF WIGHT)
Revenue,Community Wellbeing & Social Care,5105642368,18.12.2013,Elderly Frail Homecare,Charges from Independent Providers,21.78,CAREWATCH (ISLE OF WIGHT)
Revenue,Community Wellbeing & Social Care,5105642343,18.12.2013,Elderly Frail Homecare,Charges from Independent Providers,254.10,CAREWATCH (ISLE OF WIGHT)
Revenue,Community Wellbeing & Social Care,5105642340,18.12.2013,Elderly Frail Homecare,Charges from Independent Providers,508.20,CAREWATCH (ISLE OF WIGHT)
Revenue,Community Wellbeing & Social Care,5105642281,18.12.2013,Elderly Frail Homecare,Charges from Independent Providers,798.60,CAREWATCH (ISLE OF WIGHT)
Revenue,Community Wellbeing & Social Care,5105642282,18.12.2013,Elderly Frail Homecare,Charges from Independent Providers,"1,016.40",CAREWATCH (ISLE OF WIGHT)
Revenue,Community Wellbeing & Social Care,5105642283,18.12.2013,Elderly Frail Homecare,Charges from Independent Providers,508.20,CAREWATCH (ISLE OF WIGHT)
Revenue,Community Wellbeing & Social Care,5105642284,18.12.2013,Elderly Frail Homecare,Charges from Independent Providers,217.80,CAREWATCH (ISLE OF WIGHT)
Revenue,Community Wellbeing & Social Care,5105642277,18.12.2013,Elderly Frail Homecare,Charges from Independent Providers,"1,219.68",CAREWATCH (ISLE OF WIGHT)
Revenue,Community Wellbeing & Social Care,5105642278,18.12.2013,Elderly Frail Homecare,Charges from Independent Providers,508.20,CAREWATCH (ISLE OF WIGHT)
Revenue,Community Wellbeing & Social Care,5105642288,18.12.2013,Elderly Frail Homecare,Charges from Independent Providers,508.20,CAREWATCH (ISLE OF WIGHT)
Revenue,Community Wellbeing & Social Care,5105642289,18.12.2013,Elderly Frail Homecare,Charges from Independent Providers,254.10,CAREWATCH (ISLE OF WIGHT)
Revenue,Community Wellbeing & Social Care,5105642290,18.12.2013,Elderly Frail Homecare,Charges from Independent Providers,254.10,CAREWATCH (ISLE OF WIGHT)
Revenue,Community Wellbeing & Social Care,5105642291,18.12.2013,Elderly Frail Homecare,Charges from Independent Providers,381.15,CAREWATCH (ISLE OF WIGHT)
Revenue,Community Wellbeing & Social Care,5105642293,18.12.2013,Elderly Frail Homecare,Charges from Independent Providers,740.52,CAREWATCH (ISLE OF WIGHT)
Revenue,Community Wellbeing & Social Care,5105642294,18.12.2013,Elderly Frail Homecare,Charges from Independent Providers,635.25,CAREWATCH (ISLE OF WIGHT)
Revenue,Community Wellbeing & Social Care,5105642295,18.12.2013,Elderly Frail Homecare,Charges from Independent Providers,381.15,CAREWATCH (ISLE OF WIGHT)
Revenue,Community Wellbeing & Social Care,5105642296,18.12.2013,Elderly Frail Homecare,Charges from Independent Providers,370.26,CAREWATCH (ISLE OF WIGHT)
Revenue,Community Wellbeing & Social Care,5105642297,18.12.2013,Elderly Frail Homecare,Charges from Independent Providers,573.54,CAREWATCH (ISLE OF WIGHT)
Revenue,Community Wellbeing & Social Care,5105642298,18.12.2013,Elderly Frail Homecare,Charges from Independent Providers,464.64,CAREWATCH (ISLE OF WIGHT)
Revenue,Community Wellbeing & Social Care,5105642299,18.12.2013,Elderly Frail Homecare,Charges from Independent Providers,718.74,CAREWATCH (ISLE OF WIGHT)
Revenue,Community Wellbeing & Social Care,5105642300,18.12.2013,Elderly Frail Homecare,Charges from Independent Providers,181.50,CAREWATCH (ISLE OF WIGHT)
Revenue,Community Wellbeing & Social Care,5105642302,18.12.2013,Elderly Frail Homecare,Charges from Independent Providers,867.57,CAREWATCH (ISLE OF WIGHT)
Revenue,Community Wellbeing & Social Care,5105642303,18.12.2013,Elderly Frail Homecare,Charges from Independent Providers,"1,270.50",CAREWATCH (ISLE OF WIGHT)
Revenue,Community Wellbeing & Social Care,5105642271,18.12.2013,Elderly Frail Homecare,Charges from Independent Providers,268.62,CAREWATCH (ISLE OF WIGHT)
Revenue,Community Wellbeing & Social Care,5105642272,18.12.2013,Elderly Frail Homecare,Charges from Independent Providers,381.15,CAREWATCH (ISLE OF WIGHT)
Revenue,Community Wellbeing & Social Care,5105642305,18.12.2013,Elderly Frail Homecare,Charges from Independent Providers,"1,655.28",CAREWATCH (ISLE OF WIGHT)
Revenue,Community Wellbeing & Social Care,5105642319,18.12.2013,Elderly Frail Homecare,Charges from Independent Providers,508.20,CAREWATCH (ISLE OF WIGHT)
Revenue,Community Wellbeing & Social Care,5105642307,18.12.2013,Elderly Frail Homecare,Charges from Independent Providers,10.89,CAREWATCH (ISLE OF WIGHT)
Revenue,Community Wellbeing & Social Care,5105642325,18.12.2013,Elderly Frail Homecare,Charges from Independent Providers,254.10,CAREWATCH (ISLE OF WIGHT)
Revenue,Community Wellbeing & Social Care,5105642331,18.12.2013,Elderly Frail Homecare,Charges from Independent Providers,116.16,CAREWATCH (ISLE OF WIGHT)
Revenue,Community Wellbeing & Social Care,5105642332,18.12.2013,Elderly Frail Homecare,Charges from Independent Providers,773.19,CAREWATCH (ISLE OF WIGHT)
Revenue,Community Wellbeing & Social Care,5105642333,18.12.2013,Elderly Frail Homecare,Charges from Independent Providers,130.68,CAREWATCH (ISLE OF WIGHT)
Revenue,Community Wellbeing & Social Care,5105642334,18.12.2013,Elderly Frail Homecare,Charges from Independent Providers,508.20,CAREWATCH (ISLE OF WIGHT)
Revenue,Community Wellbeing & Social Care,5105642310,18.12.2013,Elderly Frail Homecare,Charges from Independent Providers,384.78,CAREWATCH (ISLE OF WIGHT)
Revenue,Community Wellbeing & Social Care,5105642311,18.12.2013,Elderly Frail Homecare,Charges from Independent Providers,254.10,CAREWATCH (ISLE OF WIGHT)
Revenue,Community Wellbeing & Social Care,5105642312,18.12.2013,Elderly Frail Homecare,Charges from Independent Providers,"1,001.88",CAREWATCH (ISLE OF WIGHT)
Revenue,Community Wellbeing & Social Care,5105642336,18.12.2013,Elderly Frail Homecare,Regular Respite Care,145.20,CAREWATCH (ISLE OF WIGHT)
Revenue,Community Wellbeing & Social Care,5105642337,18.12.2013,Elderly Frail Homecare,Regular Respite Care,87.12,CAREWATCH (ISLE OF WIGHT)
Revenue,Community Wellbeing & Social Care,5105642338,18.12.2013,Elderly Frail Homecare,Regular Respite Care,384.78,CAREWATCH (ISLE OF WIGHT)
Revenue,Community Wellbeing & Social Care,5105642335,18.12.2013,Elderly Frail Homecare,Regular Respite Care,87.12,CAREWATCH (ISLE OF WIGHT)
Revenue,Community Wellbeing & Social Care,5105642345,18.12.2013,Elderly Frail Homecare,Regular Respite Care,435.60,CAREWATCH (ISLE OF WIGHT)
Revenue,Community Wellbeing & Social Care,5105642339,18.12.2013,Elderly Frail Homecare,Regular Respite Care,145.20,CAREWATCH (ISLE OF WIGHT)
Revenue,Community Wellbeing & Social Care,5105642316,18.12.2013,Elderly Frail Homecare,Regular Respite Care,145.20,CAREWATCH (ISLE OF WIGHT)
Revenue,Community Wellbeing & Social Care,5105642304,18.12.2013,Elderly Frail Homecare,Regular Respite Care,145.20,CAREWATCH (ISLE OF WIGHT)
Revenue,Community Wellbeing & Social Care,5105642327,18.12.2013,Elderly Frail Homecare,Regular Respite Care,145.20,CAREWATCH (ISLE OF WIGHT)
Revenue,Community Wellbeing & Social Care,5105642308,18.12.2013,Elderly Frail Homecare,Regular Respite Care,290.40,CAREWATCH (ISLE OF WIGHT)
Revenue,Community Wellbeing & Social Care,5105642344,18.12.2013,Elderly Frail Homecare,Regular Respite Care,87.12,CAREWATCH (ISLE OF WIGHT)
Revenue,Community Wellbeing & Social Care,5105642357,18.12.2013,Elderly Frail Homecare,Regular Respite Care,145.20,CAREWATCH (ISLE OF WIGHT)
Revenue,Community Wellbeing & Social Care,5105642362,18.12.2013,Elderly Frail Homecare,Regular Respite Care,145.20,CAREWATCH (ISLE OF WIGHT)
Revenue,Community Wellbeing & Social Care,5105642371,18.12.2013,Elderly Frail Homecare,Regular Respite Care,58.08,CAREWATCH (ISLE OF WIGHT)
Revenue,Community Wellbeing & Social Care,5105643574,20.12.2013,Elderly Frail Homecare,Regular Respite Care,145.20,CAREWATCH (ISLE OF WIGHT)
Revenue,Community Wellbeing & Social Care,5105643564,20.12.2013,Elderly Frail Homecare,Regular Respite Care,145.20,CAREWATCH (ISLE OF WIGHT)
Revenue,Community Wellbeing & Social Care,5105642366,18.12.2013,Elderly Frail Homecare,Charges from Independent Providers,384.78,CAREWATCH (ISLE OF WIGHT)
Revenue,Community Wellbeing & Social Care,5105642365,18.12.2013,Elderly Frail Homecare,Charges from Independent Providers,486.42,CAREWATCH (ISLE OF WIGHT)
Revenue,Community Wellbeing & Social Care,5105642356,18.12.2013,Elderly Frail Homecare,Charges from Independent Providers,500.94,CAREWATCH (ISLE OF WIGHT)
Revenue,Community Wellbeing & Social Care,5105642329,18.12.2013,Elderly Frail Homecare,Charges from Independent Providers,108.90,CAREWATCH (ISLE OF WIGHT)
Revenue,Community Wellbeing & Social Care,5105642349,18.12.2013,Elderly Frail Homecare,Charges from Independent Providers,254.10,CAREWATCH (ISLE OF WIGHT)
Revenue,Community Wellbeing & Social Care,5105642350,18.12.2013,Elderly Frail Homecare,Charges from Independent Providers,326.70,CAREWATCH (ISLE OF WIGHT)
Revenue,Community Wellbeing & Social Care,5105642342,18.12.2013,Elderly Frail Homecare,Charges from Independent Providers,381.15,CAREWATCH (ISLE OF WIGHT)
Revenue,Community Wellbeing & Social Care,5105642341,18.12.2013,Elderly Frail Homecare,Charges from Independent Providers,381.15,CAREWATCH (ISLE OF WIGHT)
Revenue,Community Wellbeing & Social Care,5105642328,18.12.2013,Elderly Frail Homecare,Charges from Independent Providers,254.10,CAREWATCH (ISLE OF WIGHT)
Revenue,Community Wellbeing & Social Care,5105642323,18.12.2013,Elderly Frail Homecare,Charges from Independent Providers,250.47,CAREWATCH (ISLE OF WIGHT)
Revenue,Community Wellbeing & Social Care,5105642321,18.12.2013,Elderly Frail Homecare,Charges from Independent Providers,"1,001.88",CAREWATCH (ISLE OF WIGHT)
Revenue,Community Wellbeing & Social Care,5105642314,18.12.2013,Elderly Frail Homecare,Charges from Independent Providers,"1,524.60",CAREWATCH (ISLE OF WIGHT)
Revenue,Community Wellbeing & Social Care,5105642309,18.12.2013,Elderly Frail Homecare,Charges from Independent Providers,508.20,CAREWATCH (ISLE OF WIGHT)
Revenue,Community Wellbeing & Social Care,5105642292,18.12.2013,Elderly Frail Homecare,Charges from Independent Providers,493.68,CAREWATCH (ISLE OF WIGHT)
Revenue,Community Wellbeing & Social Care,5105642313,18.12.2013,Elderly Frail Homecare,Charges from Independent Providers,58.08,CAREWATCH (ISLE OF WIGHT)
Revenue,Community Wellbeing & Social Care,5105642352,18.12.2013,Elderly Frail Homecare,Charges from Independent Providers,"2,526.48",CAREWATCH (ISLE OF WIGHT)
Revenue,Community Wellbeing & Social Care,5105642354,18.12.2013,Elderly Frail Homecare,Charges from Independent Providers,101.64,CAREWATCH (ISLE OF WIGHT)
Revenue,Community Wellbeing & Social Care,5105642355,18.12.2013,Elderly Frail Homecare,Charges from Independent Providers,508.20,CAREWATCH (ISLE OF WIGHT)
Revenue,Community Wellbeing & Social Care,5105642274,18.12.2013,Elderly Frail Homecare,Charges from Independent Providers,254.10,CAREWATCH (ISLE OF WIGHT)
Revenue,Community Wellbeing & Social Care,5105642275,18.12.2013,Elderly Frail Homecare,Charges from Independent Providers,246.84,CAREWATCH (ISLE OF WIGHT)
Revenue,Community Wellbeing & Social Care,5105643563,20.12.2013,Elderly Frail Homecare,Charges from Independent Providers,217.80,CAREWATCH (ISLE OF WIGHT)
Revenue,Community Wellbeing & Social Care,5105643571,20.12.2013,Elderly Frail Homecare,Charges from Independent Providers,508.20,CAREWATCH (ISLE OF WIGHT)
Revenue,Community Wellbeing & Social Care,5105642373,18.12.2013,Elderly Mentally Ill Homecare,Regular Respite Care,29.04,CAREWATCH (ISLE OF WIGHT)
Revenue,Community Wellbeing & Social Care,5105642273,18.12.2013,Elderly Mentally Ill Homecare,Regular Respite Care,58.08,CAREWATCH (ISLE OF WIGHT)
Revenue,Community Wellbeing & Social Care,5105642347,18.12.2013,Elderly Mentally Ill Homecare,Charges from Independent Providers,457.38,CAREWATCH (ISLE OF WIGHT)
Revenue,Community Wellbeing & Social Care,5105642322,18.12.2013,Elderly Mentally Ill Homecare,Charges from Independent Providers,791.34,CAREWATCH (ISLE OF WIGHT)
Revenue,Community Wellbeing & Social Care,5105642353,18.12.2013,Elderly Mentally Ill Homecare,Charges from Independent Providers,72.60,CAREWATCH (ISLE OF WIGHT)
Revenue,Community Wellbeing & Social Care,5105642348,18.12.2013,Elderly Mentally Ill Homecare,Charges from Independent Providers,500.94,CAREWATCH (ISLE OF WIGHT)
Revenue,Community Wellbeing & Social Care,5105642318,18.12.2013,Elderly Mentally Ill Homecare,Charges from Independent Providers,675.18,CAREWATCH (ISLE OF WIGHT)
Revenue,Community Wellbeing & Social Care,5105642315,18.12.2013,Mental Health Homecare,Charges from Independent Providers,145.20,CAREWATCH (ISLE OF WIGHT)
Revenue,Community Wellbeing & Social Care,5105642279,18.12.2013,Mental Health Homecare,Charges from Independent Providers,232.32,CAREWATCH (ISLE OF WIGHT)
Revenue,Community Wellbeing & Social Care,5105642359,18.12.2013,Mental Health Homecare,Charges from Independent Providers,254.10,CAREWATCH (ISLE OF WIGHT)
Revenue,Community Wellbeing & Social Care,5105642306,18.12.2013,Mental Health Homecare,Charges from Independent Providers,177.87,CAREWATCH (ISLE OF WIGHT)
Revenue,Community Wellbeing & Social Care,5105642276,18.12.2013,Mental Health Homecare,Charges from Independent Providers,130.68,CAREWATCH (ISLE OF WIGHT)
Revenue,Community Wellbeing & Social Care,5105643582,20.12.2013,Physical Disability Homecare,Charges from Independent Providers,"1,343.10",CAREWATCH (ISLE OF WIGHT)
Revenue,Community Wellbeing & Social Care,5105643575,20.12.2013,Physical Disability Homecare,Charges from Independent Providers,464.64,CAREWATCH (ISLE OF WIGHT)
Revenue,Community Wellbeing & Social Care,5105642346,18.12.2013,Physical Disability Homecare,Charges from Independent Providers,"2,541.00",CAREWATCH (ISLE OF WIGHT)
Revenue,Community Wellbeing & Social Care,5105642370,18.12.2013,Physical Disability Homecare,Charges from Independent Providers,127.05,CAREWATCH (ISLE OF WIGHT)
Revenue,Community Wellbeing & Social Care,5105642324,18.12.2013,Physical Disability Homecare,Charges from Independent Providers,"1,288.65",CAREWATCH (ISLE OF WIGHT)
Revenue,Community Wellbeing & Social Care,5105642326,18.12.2013,Physical Disability Homecare,Charges from Independent Providers,145.20,CAREWATCH (ISLE OF WIGHT)
Revenue,Community Wellbeing & Social Care,5105642317,18.12.2013,Physical Disability Homecare,Charges from Independent Providers,"1,248.72",CAREWATCH (ISLE OF WIGHT)
Revenue,Community Wellbeing & Social Care,5105642301,18.12.2013,Physical Disability Homecare,Charges from Independent Providers,435.60,CAREWATCH (ISLE OF WIGHT)
Revenue,Community Wellbeing & Social Care,5105642280,18.12.2013,Physical Disability Homecare,Charges from Independent Providers,907.50,CAREWATCH (ISLE OF WIGHT)
Revenue,Community Wellbeing & Social Care,5105642286,18.12.2013,Physical Disability Homecare,Charges from Independent Providers,341.22,CAREWATCH (ISLE OF WIGHT)
Revenue,Community Wellbeing & Social Care,5105642287,18.12.2013,Physical Disability Homecare,Charges from Independent Providers,"1,524.60",CAREWATCH (ISLE OF WIGHT)
Revenue,Community Wellbeing & Social Care,5105642330,18.12.2013,Physical Disability Homecare,Charges from Independent Providers,225.06,CAREWATCH (ISLE OF WIGHT)
Revenue,Community Wellbeing & Social Care,5105642285,18.12.2013,Dementia Homecare,Charges from Independent Providers,980.10,CAREWATCH (ISLE OF WIGHT)
Revenue,Community Wellbeing & Social Care,5105643562,20.12.2013,Dementia Homecare,Charges from Independent Providers,"2,098.14",CAREWATCH (ISLE OF WIGHT)
Revenue,Community Wellbeing & Social Care,5105643572,20.12.2013,Dementia Homecare,Regular Respite Care,348.48,CAREWATCH (ISLE OF WIGHT)
Revenue,Community Wellbeing & Social Care,5105643578,20.12.2013,Elderly Frail Managed Accounts,Charges from Independent Providers,246.84,CAREWATCH (ISLE OF WIGHT)
Revenue,Community Wellbeing & Social Care,5105642364,18.12.2013,Physical Disability Managed Accounts,Charges from Independent Providers,377.52,CAREWATCH (ISLE OF WIGHT)
Revenue,Community Wellbeing & Social Care,5105642358,18.12.2013,Physical Disability Managed Accounts,Charges from Independent Providers,943.80,CAREWATCH (ISLE OF WIGHT)
Revenue,Childrens Services,5105640515,06.12.2013,Short Breaks,Charges from Independent Providers,67.41,CAREWATCH (ISLE OF WIGHT)
Revenue,Childrens Services,5105640713,06.12.2013,S17 Disabled Children,Charges from Independent Providers,27.00,CAREWATCH (ISLE OF WIGHT)
Revenue,Childrens Services,5105643576,20.12.2013,S17 Disabled Children,Charges from Independent Providers,130.68,CAREWATCH (ISLE OF WIGHT)
Revenue,Childrens Services,5105643577,20.12.2013,S17 Disabled Children,Charges from Independent Providers,348.48,CAREWATCH (ISLE OF WIGHT)
Revenue,Childrens Services,5105643579,20.12.2013,S17 Disabled Children,Charges from Independent Providers,94.38,CAREWATCH (ISLE OF WIGHT)
Revenue,Childrens Services,5105643580,20.12.2013,S17 Disabled Children,Charges from Independent Providers,225.06,CAREWATCH (ISLE OF WIGHT)
Revenue,Childrens Services,5105643581,20.12.2013,S17 Disabled Children,Charges from Independent Providers,130.68,CAREWATCH (ISLE OF WIGHT)
Revenue,Childrens Services,5105643573,20.12.2013,S17 Disabled Children,Charges from Independent Providers,130.68,CAREWATCH (ISLE OF WIGHT)
Revenue,Childrens Services,5105643584,20.12.2013,Parenting and Family Support,Charges from Independent Providers,522.72,CAREWATCH (ISLE OF WIGHT)
Revenue,Childrens Services,5105643565,20.12.2013,Agency Domiciliary Care,Professional Services,123.04,CAREWATCH (ISLE OF WIGHT)
Revenue,Childrens Services,5105643566,20.12.2013,Agency Domiciliary Care,Professional Services,123.04,CAREWATCH (ISLE OF WIGHT)
Revenue,Childrens Services,5105640868,11.12.2013,Agency Domiciliary Care,Charges from Independent Providers,347.64,CAREWATCH (ISLE OF WIGHT)
Revenue,Childrens Services,5105643567,20.12.2013,Agency Domiciliary Care,Charges from Independent Providers,899.86,CAREWATCH (ISLE OF WIGHT)
Revenue,Childrens Services,5105643568,20.12.2013,Agency Domiciliary Care,Charges from Independent Providers,265.50,CAREWATCH (ISLE OF WIGHT)
Revenue,Childrens Services,5105643569,20.12.2013,Agency Domiciliary Care,Charges from Independent Providers,479.16,CAREWATCH (ISLE OF WIGHT)
Revenue,Childrens Services,5105643570,20.12.2013,Agency Domiciliary Care,Charges from Independent Providers,439.02,CAREWATCH (ISLE OF WIGHT)
Revenue,Childrens Services,5105643583,20.12.2013,Support for Looked After Children (Children Young Adults Disability),Charges from Independent Providers,232.32,CAREWATCH (ISLE OF WIGHT)
Revenue,Childrens Services,5105639993,04.12.2013,Beaulieu House,Agency staff,"6,632.31",CAREWATCH (ISLE OF WIGHT)
